Workbook

Sheet A Y II D3
B8: Formato: Personal Comisionado | X8: GUANAJUATO
B9: Fondo de Aportaciones para la Educación Tecnológica y de Adultos/Colegio Nacional de Educación Profesional Técnica (FAETA/CONALEP) | X9: 1er. TRIMESTRE 2019
B12: Entidad Federativa | C12: R.F.C. | D12: CURP | E12: Nombre | F12: Clave integrada | G12: Clave Presupuestal | N12: Fecha Comisión | P12: Percepciones pagadas en el Periodo de Comisión con Presupuesto Federal* | Q12: Percepciones pagadas en el Periodo de Comisión con Presupuesto de otra fuente* | R12: Clave CT Origen | S12: CT Destino dentro del sector | U12: Lugar de la comisión fuera del sector educativo | V12: Tipo de Comisión | W12: Función Específica | X12: Objeto de la comision | Y12: No. Oficio
G13: Partida Presupuestal | H13: Código de Pago | I13: Clave de Unidad | J13: Clave de Sub Unidad | K13: Clave de Categoría | L13: Horas Semana Mes | M13: Número de Plaza | N13: Inicio | O13: Conclusión | S13: Clave | T13: Turno
B15: Entidad Federativa | C15: R.F.C. | D15: CURP | E15: Nombre | F15: Clave integrada | G15: Partida Presupuestal | H15: Código de Pago | I15: Clave de Unidad | J15: Clave de Sub Unidad | K15: Clave de Categoría | L15: Horas Semana Mes | M15: Número de Plaza | N15: Fecha Comisión Inicio | O15: Fecha Comisión Conclusión | P15: Percepciones pagadas en el Periodo de Comisión con Presupuesto Federal* | Q15: Percepciones pagadas en el Periodo de Comisión con Presupuesto de otra fuente* | R15: Clave CT Origen | S15: Clave | T15: Turno | U15: Lugar de la comisión fuera del sector educativo | V15: Tipo de Comisión | W15: Función Específica | X15: Objeto de la comision | Y15: No. Oficio
B16: GUANAJUATO | C16: PAJJ830708SK1 | D16: PAJJ830708HQTTMR06 | E16: JORGE ADALBERTO PATIÑO JIMENEZ | F16: =G16&H16&I16&J16&K16&L16&M16 -> 113010030163CF3320400.07693 | G16: 1130 | H16: 1003 | I16: 01 | J16: 63 | K16: CF33204 | L16: 00.0 | M16: 7693 | N16: 20170301 | O16: 99999999 | P16: 76012.75 | Q16: 0 | R16: 11DPT0006L | S16: 11DPT0008J | T16: 120 | U16: PLANTEL CORTAZAR | V16: C | W16: SUBJEFE TECNICO ESPECIALISTA | X16: APOYO AL AREA POR FALTA DE PERSONAL | Y16: 0337/2017
B17: GUANAJUATO | C17: RARL5612292P3 | D17: RARL561229HGTMMS07 | E17: JOSE LUIS RAMIREZ RAMIREZ | F17: 113010030163CF0210300.012618 | G17: 1130 | H17: 1003 | I17: 01 | J17: 63 | K17: CF02103 | L17: 00.0 | M17: 12618 | N17: 20170801 | O17: 99999999 | P17: 94529.46 | Q17: 12100 | R17: 11DPT0006L | S17: 11DPT0004N | T17: 120 | U17: PLANTEL MOROLEON | V17: C | W17: DIRECTOR DE PLANTEL | X17: DIRECTOR DE PLANTEL | Y17: 0868/2017
B18: GUANAJUATO | C18: RASJ781020U88 | D18: RASJ781020MGTZSS02 | E18: JOSEFINA RAZO SOSA | F18: 113010030233CF3320600.014312 | G18: 1130 | H18: 1003 | I18: 02 | J18: 33 | K18: CF33206 | L18: 00.0 | M18: 14312 | N18: 20160516 | O18: 99999999 | P18: 97392.02 | Q18: 0 | R18: 11DPT0008J | S18: 11DPT0006L | T18: 120 | U18: PLANTEL ACAMBARO | V18: C | W18: JEFE DE PROYECTO | X18: RESPONSABLE DE FORMACIÓN TÉCNICA | Y18: 0803/2016
B19: GUANAJUATO | C19: AECL710621SE4 | D19: AECL710621HGTRRS02 | E19: JOSE LUIS ARELLANO CRUZ | F19: 113010030000A0320200.010301 | G19: 1130 | H19: 1003 | I19: 00 | J19: 00 | K19: A03202 | L19: 00.0 | M19: 10301 | N19: 20141117 | O19: 99999999 | P19: 39512.43 | Q19: 0 | R19: 11APT0001T | S19: 11DPT0010Y | T19: 120 | U19: PLANTEL SILAO | V19: C | W19: APOYO AL AREA DE CAPACITACION | X19: APOYO AL AREA POR FALTA DE PERSONAL | Y19: 1619/2014
B20: GUANAJUATO | C20: AAMJ801225Q90 | D20: AAMJ801225HGTVXS01 | E20: JESUS ALONSO AVALOS MUÑOZ | F20: 113010030000CF0210500.014598 | G20: 1130 | H20: 1003 | I20: 00 | J20: 00 | K20: CF02105 | L20: 00.0 | M20: 14598 | N20: 20181022 | O20: 99999999 | P20: 79727.2 | Q20: 0 | R20: 11APT0001T | S20: 11DPT0007K | T20: 120 | U20: PLANTEL LEON II | V20: C | W20: JEFE DE SERVICIOS ADMINISTRATIVOS | X20: JEFE DE SERVICIOS ADMINISTRATIVOS | Y20: 1599/2018
B21: GUANAJUATO | C21: VAGD690328F80 | D21: VAGD690328MGTRRL04 | E21: MA. DOLORES VARGAS GARCIA | F21: 113010030000S0120100.02502 | G21: 1130 | H21: 1003 | I21: 00 | J21: 00 | K21: S01201 | L21: 00.0 | M21: 2502 | N21: 20180601 | O21: 99999999 | P21: 29710.26 | Q21: 0 | R21: 11APT0001T | S21: 11DPT0003O | T21: 120 | U21: PLANTEL LEON I | V21: C | W21: ASISTENTE DE SERVICIOS BASICOS | X21: APOYO ADMINISTRATIVO | Y21: 0827/2018
B22: GUANAJUATO | C22: MOGM581228P96 | D22: MOGM581228MGTRNR09 | E22: MARTHA DEL CARMEN MORENO GONZALEZ | F22: 113010030000A0180100.018843 | G22: 1130 | H22: 1003 | I22: 00 | J22: 00 | K22: A01801 | L22: 00.0 | M22: 18843 | N22: 20080801 | O22: 99999999 | P22: 52509.52 | Q22: 0 | R22: 11APT0001T | S22: 11DPT0007K | T22: 120 | U22: PLANTEL LEON II | V22: C | W22: ADMINISTRATIVO TECNICO ESPECIALISTA | X22: COLABORAR EN LAS ACTIVIDADES DEL PLANTEL LEON II | Y22: 729/2008
B23: GUANAJUATO | C23: HEGG810820ID3 | D23: HEGG810820HGTRMR07 | E23: GERARDO HERNANDEZ GOMEZ | F23: 113010030000CF3320400.03181 | G23: 1130 | H23: 1003 | I23: 00 | J23: 00 | K23: CF33204 | L23: 00.0 | M23: 3181 | N23: 20170216 | O23: 99999999 | P23: 65854.11 | Q23: 0 | R23: 11APT0001T | S23: 11DPT0010Y | T23: 120 | U23: PLANTEL SILAO | V23: C | W23: SUBJEFE TECNICO ESPECIALISTA | X23: REALIZAR LAS ACTIVIDADES DEL DEPARTAMENTO DE INFORMATICA | Y23: 231/2017
B24: GUANAJUATO | C24: PELI680925LM6 | D24: PELI680925MGTDPV03 | E24: IVONNE YOLANDA PEDROZA LOPEZ | F24: 113010030000CF3320600.010303 | G24: 1130 | H24: 1003 | I24: 00 | J24: 00 | K24: CF33206 | L24: 00.0 | M24: 10303 | N24: 20140901 | O24: 99999999 | P24: 133046.54 | Q24: 0 | R24: 11APT0001T | S24: 11DPT0013V | T24: 120 | U24: PLANTEL LEÓN III | V24: C | W24: JEFE DE PROYECTO DE FORMACION TECNICA | X24: REALIZA LABORES RELACIONADAS CON FORMACION TECNICA | Y24: 1206/2014
B25: GUANAJUATO | C25: COAJ850104JY6 | D25: COAJ850104HGTNMN00 | E25: JUAN MAURICIO CONTRERAS AMARO | F25: 113010030705S0120100.02653 | G25: 1130 | H25: 1003 | I25: 07 | J25: 05 | K25: S01201 | L25: 00.0 | M25: 2653 | N25: 20161016 | O25: 99999999 | P25: 33826.38 | Q25: 0 | R25: 11APT0001T | S25: 11DPT0003O | T25: 120 | U25: PLANTEL LEON I | V25: C | W25: APOYO AL PLANTEL | X25: APOYO AL AREA POR FALTA DE PERSONAL | Y25: S/N
B26: GUANAJUATO | C26: EIPA861113S53 | D26: EIPA861113HGTSRB08 | E26: JOSE ABRAHAM ESPINOZA PORRAS | F26: 113010030705CF3420200.05581 | G26: 1130 | H26: 1003 | I26: 07 | J26: 05 | K26: CF34202 | L26: 00.0 | M26: 5581 | N26: 20080601 | O26: 99999999 | P26: 39637.83 | Q26: 0 | R26: 11APT0001T | S26: 11APT0001T | T26: 100 | U26: DIRECCION GENERAL | V26: C | W26: AREA DE ACADEMICOS | X26: APOYO AL AREA POR FALTA DE PERSONAL | Y26: S/N
B27: GUANAJUATO | C27: GUJE870107661 | D27: GUJE870107MGTTRL01 | E27: ELIZABETH VERONICA GUTIERREZ JUAREZ | F27: 113010030705CF3320400.02546 | G27: 1130 | H27: 1003 | I27: 07 | J27: 05 | K27: CF33204 | L27: 00.0 | M27: 2546 | N27: 20090601 | O27: 99999999 | P27: 71441.63 | Q27: 0 | R27: 11APT0001T | S27: 11APT0001T | T27: 100 | U27: DIRECCION GENERAL | V27: C | W27: AREA DE PLANEACION | X27: APOYO AL AREA POR FALTA DE PERSONAL | Y27: S/N
B28: GUANAJUATO | C28: LELV821109N79 | D28: LELV821109HGTNPC03 | E28: VICTOR FERNANDO LEON LOPEZ | F28: 113010030705CF0160100.011098 | G28: 1130 | H28: 1003 | I28: 07 | J28: 05 | K28: CF01601 | L28: 00.0 | M28: 11098 | N28: 20170403 | O28: 99999999 | P28: 92713.08 | Q28: 12100 | R28: 11APT0001T | S28: 11APT0001T | T28: 100 | U28: DIRECCION GENERAL | V28: C | W28: APOYO AL AREA DE INFRAESTRUCTURA | X28: APOYO AL AREA POR FALTA DE PERSONAL | Y28: 0424/2017
B29: GUANAJUATO | C29: MANR8209073S1 | D29: MANR820907HGTCGT04 | E29: RITO MACIAS NEGRETE | F29: 113010030705CF0160100.011035 | G29: 1130 | H29: 1003 | I29: 07 | J29: 05 | K29: CF01601 | L29: 00.0 | M29: 11035 | N29: 20100901 | O29: 99999999 | P29: 92713.08 | Q29: 12100 | R29: 11APT0001T | S29: 11APT0001T | T29: 100 | U29: DIRECCION GENERAL | V29: C | W29: APOYO AL AREA DE PLANEACION | X29: APOYO AL AREA POR FALTA DE PERSONAL | Y29: S/N
B30: GUANAJUATO | C30: SELI670221LM0 | D30: SELI670221MGTRPR02 | E30: IRMA SERRANO LOPEZ | F30: 113010030705S0120100.02647 | G30: 1130 | H30: 1003 | I30: 07 | J30: 05 | K30: S01201 | L30: 00.0 | M30: 2647 | N30: 20180216 | O30: 99999999 | P30: 30815.26 | Q30: 0 | R30: 11APT0001T | S30: 11APT0001T | T30: 100 | U30: DIRECCION GENERAL | V30: C | W30: APOYO AL AREA DE JURIDICO | X30: APOYO AL AREA POR FALTA DE PERSONAL | Y30: 0278/2018
B31: GUANAJUATO | C31: VARG660927MXA | D31: VARG660927MDFLSL01 | E31: GLORIA GUADALUPE VALENZUELA RIOS | F31: 113010030705CF0160100.011090 | G31: 1130 | H31: 1003 | I31: 07 | J31: 05 | K31: CF01601 | L31: 00.0 | M31: 11090 | N31: 20130201 | O31: 99999999 | P31: 92713.08 | Q31: 12100 | R31: 11APT0001T | S31: 11APT0001T | T31: 100 | U31: DIRECCION GENERAL | V31: C | W31: EN EL AREA DE PROMOCION Y VINCULACION | X31: APOYO AL AREA POR FALTA DE PERSONAL | Y31: 1565/2013
B32: GUANAJUATO | C32: MOFD741006FM4 | D32: MOFD741006HGTSLV05 | E32: DAVID MOSQUEDA FLORES | F32: 113010030029CF1820300.011914 | G32: 1130 | H32: 1003 | I32: 00 | J32: 29 | K32: CF18203 | L32: 00.0 | M32: 11914 | N32: 20150916 | O32: 99999999 | P32: 45102 | Q32: 0 | R32: 11DPT0002P | S32: 11DPT0016S | T32: 120 | U32: PLANTEL IRAPUATO II | V32: C | W32: SUPERVISOR DE MANTENIMIENTO | X32: ACTIVIDADES RELATIVAS AL NOMBRAMIENTO | Y32: 1409/2015
B33: GUANAJUATO | C33: AUBR860428EH1 | D33: AUBR860428HGTGLM03 | E33: JOSE RAMON AGUILAR BLANCO | F33: 113010030029CF0210300.012628 | G33: 1130 | H33: 1003 | I33: 00 | J33: 29 | K33: CF02103 | L33: 00.0 | M33: 12628 | N33: 20180416 | O33: 99999999 | P33: 94529.46 | Q33: 12100 | R33: 11DPT0002P | S33: 11DPT0009I | T33: 120 | U33: PLANTEL PENJAMO | V33: C | W33: DIRECTOR | X33: DIRECCION DEL PLANTEL | Y33: 0583/2018
B34: GUANAJUATO | C34: GOML690426EW2 | D34: GOML690426MGTNDZ08 | E34: LUZ ESTELA GONZALEZ MEDINA | F34: 113010030030CF3320400.02666 | G34: 1130 | H34: 1003 | I34: 00 | J34: 30 | K34: CF33204 | L34: 00.0 | M34: 2666 | N34: 20170201 | O34: 99999999 | P34: 97207.02 | Q34: 0 | R34: 11DPT0003O | S34: 11DPT0007K | T34: 120 | U34: PLANTEL LEON II | V34: C | W34: RECURSOS HUMANOS | X34: RECURSOS HUMANOS | Y34: 0093/2017
B35: GUANAJUATO | C35: NIRA700123GK9 | D35: NIRA700123MGTTVN01 | E35: ANA LAURA NIETO RIVERA | F35: 113010030030CF3320600.014316 | G35: 1130 | H35: 1003 | I35: 00 | J35: 30 | K35: CF33206 | L35: 00.0 | M35: 14316 | N35: 20090812 | O35: 99999999 | P35: 140051.84 | Q35: 0 | R35: 11DPT0003O | S35: 11APT0001T | T35: 100 | U35: CAST | V35: C | W35: MEJORAMIENTO DE LOS PROCESOS DEL CAST | X35: MEJORAMIENTO DE LOS PROCESOS EN CAST | Y35: S/N
B36: GUANAJUATO | C36: PAPA810618AR6 | D36: PAPA810618HGTLLB03 | E36: ABRAHAM PALACIOS PALACIOS | F36: 113010030030S0120200.02637 | G36: 1130 | H36: 1003 | I36: 00 | J36: 30 | K36: S01202 | L36: 00.0 | M36: 2637 | N36: 20150701 | O36: 99999999 | P36: 35378.26 | Q36: 0 | R36: 11DPT0003O | S36: 11APT0001T | T36: 100 | U36: DIRECCION GENERAL | V36: C | W36: APOYO AL AREA DE SERVICIOS GENERALES | X36: DESARROLLAR ACTIVIDADES DE SERVICIOS GENERALES | Y36: 883/2015
B37: GUANAJUATO | C37: SAML830406CC2 | D37: SAML830406HDFNNS01 | E37: LUIS ENRIQUE SANCHEZ MENDOZA | F37: 113010030030CF3320600.013322 | G37: 1130 | H37: 1003 | I37: 00 | J37: 30 | K37: CF33206 | L37: 00.0 | M37: 13322 | N37: 20170216 | O37: 99999999 | P37: 106313.58 | Q37: 0 | R37: 11DPT0003O | S37: 11APT0001T | T37: 100 | U37: DIRECCION GENERAL | V37: C | W37: JEFE DE PROYECTO | X37: DESARROLLAR ACTIVIDADES EN LA DIRECCION DE INFORMATICA | Y37: 0226/2017
B38: GUANAJUATO | C38: UAFC7007035L8 | D38: UAFC700703HGTRRR14 | E38: CARLOS ALBERTO URANGA FERNANDEZ | F38: =G38&H38&I38&J38&K38&L38&M38 -> 113010030030CF0210300.012664 | G38: 1130 | H38: 1003 | I38: 00 | J38: 30 | K38: CF02103 | L38: 00.0 | M38: 12664 | N38: 20191206 | O38: 99999999 | P38: 93679.46 | Q38: 12100 | R38: 11DPT0003O | S38: 11DPT0010Y | T38: 120 | U38: PLANTEL SILAO | V38: C | W38: DIRECTOR DE PLANTEL | X38: DIRECTOR DE PLANTEL | Y38: 1927/2018
B39: GUANAJUATO | C39: BAMJ651013MA3 | D39: BAMJ651013HGTRRN08 | E39: JUAN PEDRO BARBOSA MORALES | F39: 113010030203CF3320600.013321 | G39: 1130 | H39: 1003 | I39: 02 | J39: 03 | K39: CF33206 | L39: 00.0 | M39: 13321 | N39: 20170216 | O39: 99999999 | P39: 95602.13 | Q39: 0 | R39: 11DPT0007K | S39: 11DPT0013V | T39: 120 | U39: PLANTEL LEON III | V39: C | W39: SERVICIOS ESCOLARES | X39: SERVICIOS ESCOLARES | Y39: 283/2017
B40: GUANAJUATO | C40: EARG790128PM3 | D40: EARG790128MGTSYL06 | E40: GLORIA ESCAREÑO REYES | F40: 113010030203CF3320400.09199 | G40: 1130 | H40: 1003 | I40: 02 | J40: 03 | K40: CF33204 | L40: 00.0 | M40: 9199 | N40: 20170821 | O40: 99999999 | P40: 61855.65 | Q40: 0 | R40: 11DPT0007K | S40: 11DPT0013V | T40: 120 | U40: PLANTEL LEON III | V40: C | W40: JEFE DE OFICINA | X40: JEFE DE OFICINA | Y40: 1029/2017
B41: GUANAJUATO | C41: IAVC761114FE1 | D41: IAVC761114MNTBLL00 | E41: CLAUDIA ELIZABETH IBARRA VILLANUEVA | F41: 113010030203CF3320600.013320 | G41: 1130 | H41: 1003 | I41: 02 | J41: 03 | K41: CF33206 | L41: 00.0 | M41: 13320 | N41: 20160701 | O41: 99999999 | P41: 118870.66 | Q41: 0 | R41: 11DPT0007K | S41: 11APT0001T | T41: 100 | U41: DIRECCION GENERAL | V41: C | W41: COORDINADORA DE PRESUPUESTO | X41: COORDINADORA DE PRESUPUESTO | Y41: 0971/2016
B42: GUANAJUATO | C42: MAMN910328KD9 | D42: MAMN910328HGTRDS06 | E42: NESTOR ISIDRO MARTINEZ MEDINA | F42: 113010030203CF3320400.09174 | G42: 1130 | H42: 1003 | I42: 02 | J42: 03 | K42: CF33204 | L42: 00.0 | M42: 9174 | N42: 20170102 | O42: 99999999 | P42: 65983.09 | Q42: 0 | R42: 11DPT0007K | S42: 11APT0001T | T42: 100 | U42: DIRECCION GENERAL | V42: C | W42: APOYO EN FINANZAS DE LA DIRECCION GENERAL | X42: APOYO EN FINANZAS DE LA DIRECCION GENERAL | Y42: 0754/2017
B43: GUANAJUATO | C43: POMR6708302N1 | D43: POMR670830MGTRNS05 | E43: ROSA MARIA PORRAS MANRIQUE | F43: 113010030203CF3320400.02642 | G43: 1130 | H43: 1003 | I43: 02 | J43: 03 | K43: CF33204 | L43: 00.0 | M43: 2642 | N43: 20170201 | O43: 99999999 | P43: 91758.96 | Q43: 0 | R43: 11DPT0007K | S43: 11DPT0013V | T43: 120 | U43: PLANTEL LEÓN III | V43: C | W43: RECURSOS HUMANOS | X43: RECURSOS HUMANOS | Y43: 0095/2017
B44: GUANAJUATO | C44: QUEJ910602LA4 | D44: QUEJ910602HGTRSL08 | E44: JOSE JULIAN MIGUEL QUIROZ ESTRADA | F44: 113010030203CF3320400.09201 | G44: 1130 | H44: 1003 | I44: 02 | J44: 03 | K44: CF33204 | L44: 00.0 | M44: 9201 | N44: 20171016 | O44: 99999999 | P44: 66499.02 | Q44: 0 | R44: 11DPT0007K | S44: 11APT0001T | T44: 100 | U44: CAST | V44: C | W44: COORDINADOR DE CERTIFICACION | X44: COORDINADOR DE SERVICIOS DE CERTIFICACION | Y44: 1332/2017
B45: GUANAJUATO | C45: SACA791207U75 | D45: SACA791207MGTLSL02 | E45: MARIA ALEJANDRA GUADALUPE SALAZAR CASTAÑEDA | F45: 113010030203CF3320600.010298 | G45: 1130 | H45: 1003 | I45: 02 | J45: 03 | K45: CF33206 | L45: 00.0 | M45: 10298 | N45: 20180916 | O45: 99999999 | P45: 110814.84 | Q45: 0 | R45: 11DPT0007K | S45: 11APT0001T | T45: 100 | U45: DIRECCION GENERAL | V45: C | W45: JEFE DE PROYECTO | X45: COORDINADOR DE SERVICIOS ESCOLARES | Y45: 1371/2018
B46: GUANAJUATO | C46: PECA790403IL7 | D46: PECA790403MDGRHL02 | E46: ALEJANDRA PEREZ CHAVEZ | F46: 113010030302CF3320600.018849 | G46: 1130 | H46: 1003 | I46: 03 | J46: 02 | K46: CF33206 | L46: 00.0 | M46: 18849 | N46: 20180201 | O46: 99999999 | P46: 85360.02 | Q46: 0 | R46: 11DPT0013V | S46: 11APT0001T | T46: 100 | U46: DIRECCION GENERAL | V46: C | W46: COLABORAR CON PROYECTOS DE LA DIRECCION DE PLANEACION - DESARROLLO INSTITUCIONAL E INFORMATICA | X46: COLABORAR CON PROYECTOS DE LA DIRECCION DE PLANEACION - DESARROLLO INSTITUCIONAL E INFORMATICA | Y46: 0177/2018
B47: GUANAJUATO | C47: MABM8602122N2 | D47: MABM860212MGTRRL21 | E47: MELISSA MARISELA MARTINEZ BARRIOS | F47: 113010030302CF3320600.018851 | G47: 1130 | H47: 1003 | I47: 03 | J47: 02 | K47: CF33206 | L47: 00.0 | M47: 18851 | N47: 20180216 | O47: 99999999 | P47: 95815.51 | Q47: 0 | R47: 11DPT0013V | S47: 11APT0001T | T47: 100 | U47: DIRECCION GENERAL | V47: C | W47: COLABORAR CON LOS PROYECTOS DEL AREA DE CONTROL INTERNO | X47: COLABORAR CON LOS PROYECTOS DEL AREA DE CONTROL INTERNO | Y47: 0280/2018
B48: GUANAJUATO | C48: OOGM841218RRA | D48: OOGM841218HPLSNR04 | E48: MARIO SANTIAGO OSORIO GONZALEZ | F48: 113010030128CF0210400.012767 | G48: 1130 | H48: 1003 | I48: 01 | J48: 28 | K48: CF02104 | L48: 00.0 | M48: 12767 | N48: 20171129 | O48: 99999999 | P48: 92642.52 | Q48: 12100 | R48: 11DPT0004N | S48: 11DPT0005M | T48: 120 | U48: PLANTEL VALLE DE SANTIAGO | V48: C | W48: DIRECTOR DEL PLANTEL | X48: ACTIVIDADES RELATIVAS AL NOMBRAMIENTO | Y48: 1591/2017
B49: GUANAJUATO | C49: ROMR861218274 | D49: ROMR861218HGTDGC00 | E49: RICARDO RODRIGUEZ MAGDALENO | F49: 113010030174CF0210300.012663 | G49: 1130 | H49: 1003 | I49: 01 | J49: 74 | K49: CF02103 | L49: 00.0 | M49: 12663 | N49: 20180201 | O49: 99999999 | P49: 94429.46 | Q49: 12100 | R49: 11DPT0009I | S49: 11DPT0014U | T49: 120 | U49: PLANTEL SAN FELIPE | V49: C | W49: DIRECTOR DE PLANTEL | X49: DIRECTOR DE PLANTEL | Y49: 0171/2018
B50: GUANAJUATO | C50: MAJG650413GMA | D50: MAJG650413HGTLRS08 | E50: GUSTAVO MALAGON JUAREZ | F50: 113010030249CF3320600.013689 | G50: 1130 | H50: 1003 | I50: 02 | J50: 49 | K50: CF33206 | L50: 00.0 | M50: 13689 | N50: 20120816 | O50: 99999999 | P50: 140051.84 | Q50: 0 | R50: 11DPT0011X | S50: 11DPT0006L | T50: 120 | U50: PLANTEL ACAMBARO | V50: C | W50: MEJORAR LOS PROCESOS | X50: MEJORAMIENTO DE LOS PROCESOS DEL PLANTEL AL QUE FUE COMISIONADO | Y50: 1388/2012
B51: GUANAJUATO | C51: GAAE770204JK3 | D51: GAAE770204MDFYLL06 | E51: ELIA GAYTAN ALCARAZ | F51: 113010030303CF0210400.018883 | G51: 1130 | H51: 1003 | I51: 03 | J51: 03 | K51: CF02104 | L51: 00.0 | M51: 18883 | N51: 20130301 | O51: 99999999 | P51: 92642.52 | Q51: 12100 | R51: 11DPT0014U | S51: 11DPT0012W | T51: 120 | U51: PLANTEL SAN JOSE ITURBIDE | V51: C | W51: DIRECTORA DEL PLANTEL | X51: DIRECTORA DEL PLANTEL | Y51: S/N
B52: GUANAJUATO | C52: OISI790511DD8 | D52: OISI790511HHGLNS14 | E52: ISMAEL OLIVO SANCHEZ | F52: 113010030303CF3320400.018865 | G52: 1130 | H52: 1003 | I52: 03 | J52: 03 | K52: CF33204 | L52: 00.0 | M52: 18865 | N52: 20160316 | O52: 99999999 | P52: 65921.18 | Q52: 0 | R52: 11DPT0014U | S52: 11DPT0003O | T52: 120 | U52: PLANTEL LEON I | V52: C | W52: OCUPACION PUESTO VACANTE | X52: OCUPACION PUESTO DE SUBJEFE TECNICO ESPECIALISTA | Y52: 0644/2016
B53: GUANAJUATO | C53: SECG740707K72 | D53: SECG740707MZSGML05 | E53: GUILLERMINA DE LA LUZ SEGURA CAMPOS | F53: 113010030303CF3320600.018862 | G53: 1130 | H53: 1003 | I53: 03 | J53: 03 | K53: CF33206 | L53: 00.0 | M53: 18862 | N53: 20181010 | O53: 99999999 | P53: 97392.02 | Q53: 0 | R53: 11DPT0014U | S53: 11APT0001T | T53: 100 | U53: CAST | V53: C | W53: OCUPACION PUESTO VACANTE | X53: OCUPACION PUESTO DE JEFE PROYECTO EN CAST LEON | Y53: 1545/2018
B54: GUANAJUATO | C54: GAGY700725MG2 | D54: GAGY700725MGTRNS04 | E54: YESENIA GRANADOS GONZALEZ | F54: 113010030402CF0210200.012518 | G54: 1130 | H54: 1003 | I54: 04 | J54: 02 | K54: CF02102 | L54: 00.0 | M54: 12518 | N54: 20120701 | O54: 99999999 | P54: 94679.82 | Q54: 12100 | R54: 11DPT0012W | S54: 11DPT0002P | T54: 120 | U54: PLANTEL IRAPUATO I | V54: C | W54: DIRECTOR DE PLANTEL | X54: DIRECTOR DE PLANTEL | Y54: S/N
B55: GUANAJUATO | C55: GUPD810705I4A | D55: GUPD810705HQTRDM04 | E55: DOMINGO DANIEL GUERRERO PADILLA | F55: 113010030204CF0210400.012744 | G55: 1130 | H55: 1003 | I55: 02 | J55: 04 | K55: CF02104 | L55: 00.0 | M55: 12744 | N55: 20130116 | O55: 99999999 | P55: 92642.52 | Q55: 12100 | R55: 11DPT0010Y | S55: 11DPT0006L | T55: 120 | U55: PLANTEL ACAMBARO | V55: C | W55: DIRECTOR DE PLANTEL | X55: DIRECTOR DE PLANTEL | Y55: S/N
B56: GUANAJUATO | C56: MAVR700118TS6 | D56: MAVR700118HGTRRB08 | E56: RUBEN MARTINEZ VARELA | F56: 113010030204CF3320600.013251 | G56: 1130 | H56: 1003 | I56: 02 | J56: 04 | K56: CF33206 | L56: 00.0 | M56: 13251 | N56: 20160111 | O56: 99999999 | P56: 136339.94 | Q56: 0 | R56: 11DPT0010Y | S56: 11APT0001T | T56: 100 | U56: DIRECCION GENERAL | V56: C | W56: JEFE DE PROYECTO DE FORMACION TECNICA Y CAPACITACION | X56: JEFE DE PROYECTO DE DIR. FORMACION TECNICA Y CAPACITACION | Y56: 0042/2016
B57: GUANAJUATO | C57: RABR820601BH9 | D57: RABR820601HGTMND08 | E57: RODOLFO OSVALDO RAMIREZ BUENO | F57: 113010030204CF3320600.013543 | G57: 1130 | H57: 1003 | I57: 02 | J57: 04 | K57: CF33206 | L57: 00.0 | M57: 13543 | N57: 20150204 | O57: 99999999 | P57: 98572.02 | Q57: 0 | R57: 11DPT0010Y | S57: 11APT0001T | T57: 100 | U57: DIRECCION GENERAL | V57: C | W57: JEFE DE NOMINA ADMINISTRATIVA Y PRESTACIONES | X57: ACTIVIDADES RELATIVAS AL NOMBRAMIENTO | Y57: 520/2015
B58: GUANAJUATO | C58: LELE610112FLA | D58: LELE610112MGTMRL09 | E58: ELSA GUADALUPE LEMUS LIRA | F58: 113010030072CF3320600.014321 | G58: 1130 | H58: 1003 | I58: 00 | J58: 72 | K58: CF33206 | L58: 00.0 | M58: 14321 | N58: 20170502 | O58: 99999999 | P58: 118504.74 | Q58: 0 | R58: 11DPT0005M | S58: 11DPT0015T | T58: 120 | U58: PLANTEL SALAMANCA | V58: C | W58: COORDINAR EL AREA DE CAPACITACION Y VINCULACION | X58: COORDINAR EL AREA DE CAPACITACION VINCULACION | Y58: 0499/2017
B59: GUANAJUATO | C59: CAAM610823TI5 | D59: CAAM610823HDFSGR02 | E59: MARCO ARTURO CASTRO AGUILERA | F59: 113010030072CF0210500.014597 | G59: 1130 | H59: 1003 | I59: 00 | J59: 72 | K59: CF02105 | L59: 00.0 | M59: 14597 | N59: 20180201 | O59: 99999999 | P59: 80577.2 | Q59: 12100 | R59: 11DPT0005M | S59: 11DPT0003O | T59: 120 | U59: PLANTEL LEON I | V59: C | W59: COORDINADOR EJECUTIVO | X59: COORDINACION EN EL PLANTEL LEON I | Y59: 0154/2018
B60: GUANAJUATO | C60: HELF541204T82 | D60: HELF541204HGTRZR07 | E60: FRANCISCO JAVIER HERNANDEZ LOZANO | F60: 113010030072CF0210300.012617 | G60: 1130 | H60: 1003 | I60: 00 | J60: 72 | K60: CF02103 | L60: 00.0 | M60: 12617 | N60: 20180416 | O60: 99999999 | P60: 94179.46 | Q60: 12100 | R60: 11DPT0005M | S60: 11DPT0003O | T60: 120 | U60: PLANTEL LEON I | V60: C | W60: DIRECTOR DEL PLANTEL | X60: DIRECCION DEL PLANTEL | Y60: 0584/2018
B61: GUANAJUATO | C61: MORM6501066X7 | D61: MORM650106HGTRSL00 | E61: MELCHOR BENITO MORENO ROSALES | F61: 113010030072CF3320600.014320 | G61: 1130 | H61: 1003 | I61: 00 | J61: 72 | K61: CF33206 | L61: 00.0 | M61: 14320 | N61: 20181001 | O61: 20190315 | P61: 109556.88 | Q61: 0 | R61: 11DPT0005M | S61: 11DPT0004N | T61: 120 | U61: PLANTEL MOROLEON | V61: C | W61: APOYO AL AREA DE CAPACITACION Y VINCULACION | X61: APOYO AL AREA DE CAPACITACION Y VINCULACION | Y61: 1408/2018
B62: GUANAJUATO | C62: ZAHE711130S69 | D62: ZAHE711130MDFMRR03 | E62: ERIKA DE LOS ANGELES ZAMORA HERNANDEZ | F62: 113010030705CF3420200.013498 | G62: 1130 | H62: 1003 | I62: 07 | J62: 05 | K62: CF34202 | L62: 00.0 | M62: 13498 | N62: 20181203 | O62: 99999999 | P62: 125417.66 | Q62: 0 | R62: 11APT0001T | S62: 11APT0001T | T62: 100 | U62: DIRECCION GENERAL | V62: C | W62: APOYO EN FINANZAS DE LA DIRECCION GENERAL | X62: APOYO EN FINANZAS DE LA DIRECCION GENERAL | Y62: 1846/2018
B63: Total Personas : | C63: 47 | K63: Total Plazas : | M63: 47 | N63: Total Pto. Federal | P63: =SUBTOTAL(109,Tabla1[Percepciones pagadas en el Periodo de Comisión con Presupuesto Federal*]) -> 3719291.88
M65: Total Ppto. Otras Fuentes | Q65: =SUM(Q16:Q64) -> 157300
B67: *Total de Percepciones reportadas por la Entidad Federativa como pagadas al trabajador durante la comisión.
B68: Fuente : Información proporcionada por las Entidades Federativas.

Sheet A Y II D4
B8: Formato: Personal con Licencia | U8: GUANAJUATO
B9: ='[1]Caratula Resumen'!D22 -> Fondo de Aportaciones para la Educación Tecnológica y de Adultos/Colegio Nacional de Educación Profesional Técnica (FAETA/CONALEP) | U9: ='[1]Caratula Resumen'!D23 -> 1er. TRIMESTRE 2019
B12: Entidad Federativa | C12: R.F.C. | D12: CURP | E12: NOMBRE | F12: Clave integrada | G12: Clave Presupuestal | N12: Periodo Licencia | P12: Percepciones pagadas en el Periodo de la Licencia con Presupuesto Federal* | Q12: Percepciones pagadas en el Periodo de la Licencia con Presupuesto de otra fuente* | R12: Clave CT Origen | S12: Licencia | U12: Descripción de la Licencia
G13: Partida Presupuestal | H13: Código de Pago | I13: Clave de Unidad | J13: Clave de Sub Unidad | K13: Clave de Categoría | L13: Horas Semana Mes | M13: Número de Plaza | N13: Inicio | O13: Conclusión | S13: Clave | T13: Tipo
B15: Columna1 | C15: Columna2 | D15: Columna3 | E15: Columna4 | F15: Columna5 | G15: Columna6 | H15: Columna7 | I15: Columna8 | J15: Columna9 | K15: Columna10 | L15: Columna11 | M15: Columna12 | N15: Columna13 | O15: Columna14 | P15: Columna15 | Q15: Columna16 | R15: Columna17 | S15: Columna18 | T15: Columna19 | U15: Columna20
B16: GUANAJUATO | C16: CADJ720202F14 | D16: CADJ720202HMNHRN03 | E16: JUAN CHAVEZ DURAN | F16: =CONCATENATE(G16,H16,I16,J16,K16,L16,M16) -> 113010010163PC10.0630010 | G16: 1130 | H16: 1001 | I16: 01 | J16: 63 | K16: PC | L16: 10.0 | M16: 630010 | N16: 20190201 | O16: 20190731 | P16: 0 | Q16: 0 | R16: 11DPT0006L | S16: 16 | T16: SIN GOCE DE SUELDO | U16: SIN GOCE DE SUELDO O SU REFRENDO
B17: GUANAJUATO | C17: CAGG841115NK6 | D17: CAGG841115MGTLNL08 | E17: GIULIANA CALDERON GONZALEZ | F17: 113010010163PB10.0630009 | G17: 1130 | H17: 1001 | I17: 01 | J17: 63 | K17: PB | L17: 10.0 | M17: 630009 | N17: 20190107 | O17: 20190331 | P17: 15696.36 | Q17: 0 | R17: 11DPT0006L | S17: 25 | T17: GOCE DE SUELDO | U17: POR GRAVIDEZ O SU REFRENDO
B18: GUANAJUATO | C18: GUFO930509HR3 | D18: GUFO930509MGTVRL06 | E18: OLIVIA GUEVARA FARFAN | F18: 113010030163S0120100.0250384 | G18: 1130 | H18: 1003 | I18: 01 | J18: 63 | K18: S01201 | L18: 00.0 | M18: 250384 | N18: 20190218 | O18: 20190331 | P18: 16131.45 | Q18: 0 | R18: 11DPT0006L | S18: 25 | T18: GOCE DE SUELDO | U18: POR GRAVIDEZ O SU REFRENDO
B19: GUANAJUATO | C19: GUSS851005CT6 | D19: GUSS851005MGTLNN08 | E19: SANDRA GUILLEN SANCHEZ | F19: 113010010163PA15.0630080 | G19: 1130 | H19: 1001 | I19: 01 | J19: 63 | K19: PA | L19: 15.0 | M19: 630080 | N19: 20180801 | O19: 20190130 | P19: 0 | Q19: 0 | R19: 11DPT0006L | S19: 16 | T19: SIN GOCE DE SUELDO | U19: SIN GOCE DE SUELDO O SU REFRENDO
B20: GUANAJUATO | C20: HESS8606251E6 | D20: HESS860625MGTRNM00 | E20: SAMANTHA MONSERRAT HERNANDEZ SANCHEZ | F20: 113010010163PA04.0630122 | G20: 1130 | H20: 1001 | I20: 01 | J20: 63 | K20: PA | L20: 04.0 | M20: 630122 | N20: 20181112 | O20: 20190110 | P20: 4715.57 | Q20: 0 | R20: 11DPT0006L | S20: 25 | T20: GOCE DE SUELDO | U20: POR GRAVIDEZ O SU REFRENDO
B21: GUANAJUATO | C21: PASM631104DP4 | D21: PASM631104MDFDNR08 | E21: MARTHA ROCIO PADILLA SANDOVAL | F21: 113010010163PA18.0630032 | G21: 1130 | H21: 1001 | I21: 01 | J21: 63 | K21: PA | L21: 18.0 | M21: 630032 | N21: 20190201 | O21: 20190328 | P21: 13874.79 | Q21: 0 | R21: 11DPT0006L | S21: 22 | T21: GOCE DE SUELDO | U21: POR INCAPACIDAD MEDICA O SU REFRENDO
B22: GUANAJUATO | C22: RORM6503108B9 | D22: RORM650310MGTSDL03 | E22: MILAGROS ROSAS RODRIGUEZ | F22: 113010010163PA15.0630040 | G22: 1130 | H22: 1001 | I22: 01 | J22: 63 | K22: PA | L22: 15.0 | M22: 630040 | N22: 20190201 | O22: 20190731 | P22: 0 | Q22: 0 | R22: 11DPT0006L | S22: 16 | T22: SIN GOCE DE SUELDO | U22: SIN GOCE DE SUELDO O SU REFRENDO
B23: GUANAJUATO | C23: SAMC7308072M6 | D23: SAMC730807MGTNRR25 | E23: MA. DEL CARMEN SANCHEZ MORENO | F23: 113010010163PB15.0630045 | G23: 1130 | H23: 1001 | I23: 01 | J23: 63 | K23: PB | L23: 15.0 | M23: 630045 | N23: 20190201 | O23: 20190731 | P23: 0 | Q23: 0 | R23: 11DPT0006L | S23: 16 | T23: SIN GOCE DE SUELDO | U23: SIN GOCE DE SUELDO O SU REFRENDO
B24: GUANAJUATO | C24: AAVB660401UL2 | D24: AAVB660401MDFLNL01 | E24: BLANCA IVETTE ALVAREZ DEL CASTILLO VENTRE | F24: 113010010028PC20.0280002 | G24: 1130 | H24: 1001 | I24: 00 | J24: 28 | K24: PC | L24: 20.0 | M24: 280002 | N24: 20190201 | O24: 20180731 | P24: 0 | Q24: 0 | R24: 11DPT0001Q | S24: 16 | T24: SIN GOCE DE SUELDO | U24: SIN GOCE DE SUELDO O SU REFRENDO
B25: GUANAJUATO | C25: HEPM8111294E4 | D25: HEPM811129HGTRRG03 | E25: MIGUEL ANGEL HERNANDEZ PEREZ | F25: 113010010028PB15.0280040 | G25: 1130 | H25: 1001 | I25: 00 | J25: 28 | K25: PB | L25: 15.0 | M25: 280040 | N25: 20190201 | O25: 20180731 | P25: 0 | Q25: 0 | R25: 11DPT0001Q | S25: 16 | T25: SIN GOCE DE SUELDO | U25: SIN GOCE DE SUELDO O SU REFRENDO
B26: GUANAJUATO | C26: RECT770406EE9 | D26: RECT770406MMNNHR04 | E26: TERESITA DEL NIÑO JESUS RENTERIA CHAVEZ | F26: 113010010028PA20.0280069 | G26: 1130 | H26: 1001 | I26: 00 | J26: 28 | K26: PA | L26: 20.0 | M26: 280069 | N26: 20190201 | O26: 20180731 | P26: 0 | Q26: 0 | R26: 11DPT0001Q | S26: 16 | T26: SIN GOCE DE SUELDO | U26: SIN GOCE DE SUELDO O SU REFRENDO
B27: GUANAJUATO | C27: PACM941015U40 | D27: PACM941015MGTLRR06 | E27: MARIANA PALOMINO CARREÑO | F27: 113010030233S0120200.010194 | G27: 1130 | H27: 1003 | I27: 02 | J27: 33 | K27: S01202 | L27: 00.0 | M27: 10194 | N27: 20190201 | O27: 20190501 | P27: 22218.04 | Q27: 0 | R27: 11DPT0008J | S27: 25 | T27: GOCE DE SUELDO | U27: POR GRAVIDEZ O SU REFRENDO
B28: GUANAJUATO | C28: GORM820608RC9 | D28: GORC820608MGTNMN03 | E28: MA. CONCEPCION GONZALEZ RAMIREZ | F28: 113010010029PC12.0290097 | G28: 1130 | H28: 1001 | I28: 00 | J28: 29 | K28: PC | L28: 12.0 | M28: 290097 | N28: 20180801 | O28: 20190131 | P28: 0 | Q28: 0 | R28: 11DPT0002P | S28: 16 | T28: SIN GOCE DE SUELDO | U28: SIN GOCE DE SUELDO O SU REFRENDO
B29: GUANAJUATO | C29: SAGM820626E90 | D29: SAGR820626MGTNNS28 | E29: MA. DEL ROSARIO SANCHEZ GONZALEZ | F29: 113010010029PB28.0290125 | G29: 1130 | H29: 1001 | I29: 00 | J29: 29 | K29: PB | L29: 28.0 | M29: 290125 | N29: 20181001 | O29: 20190131 | P29: 0 | Q29: 0 | R29: 11DPT0002P | S29: 16 | T29: SIN GOCE DE SUELDO | U29: SIN GOCE DE SUELDO O SU REFRENDO
B30: GUANAJUATO | C30: CAMH790325MK2 | D30: CAMH790325HGTSSC09 | E30: HECTOR CASTRO MOSQUEDA | F30: 113010010029PB18.0290010 | G30: 1130 | H30: 1001 | I30: 00 | J30: 29 | K30: PB | L30: 18.0 | M30: 290010 | N30: 20190301 | O30: 20190731 | P30: 0 | Q30: 0 | R30: 11DPT0002P | S30: 16 | T30: SIN GOCE DE SUELDO | U30: SIN GOCE DE SUELDO O SU REFRENDO
B31: GUANAJUATO | C31: FABV830514ES9 | D31: FABV830514HGTRLC04 | E31: VICTOR ESTEBAN FRAUSTO BOLIO | F31: 113010010030PB15.0300104 | G31: 1130 | H31: 1001 | I31: 00 | J31: 30 | K31: PB | L31: 15.0 | M31: 300104 | N31: 20190201 | O31: 20190731 | P31: 0 | Q31: 0 | R31: 11DPT0003O | S31: 16 | T31: SIN GOCE DE SUELDO | U31: SIN GOCE DE SUELDO O SU REFRENDO
B32: GUANAJUATO | C32: GARJ690126G3A | D32: GARJ690126HQTRVN01 | E32: JOSE JUAN GARCIA RIVERA | F32: 113010030030S0120200.02633 | G32: 1130 | H32: 1003 | I32: 00 | J32: 30 | K32: S01202 | L32: 00.0 | M32: 2633 | N32: 20190116 | O32: 20190515 | P32: 0 | Q32: 0 | R32: 11DPT0003O | S32: 16 | T32: SIN GOCE DE SUELDO | U32: SIN GOCE DE SUELDO O SU REFRENDO
B33: GUANAJUATO | C33: MOSG830835MK4 | D33: MOSG830803MGTJND05 | E33: MARIA GUADALUPE JANET MOJICA SANDOVAL | F33: 113010010030PC30.0300042 | G33: 1130 | H33: 1001 | I33: 00 | J33: 30 | K33: PC | L33: 30.0 | M33: 300042 | N33: 20190201 | O33: 20190731 | P33: 0 | Q33: 0 | R33: 11DPT0003O | S33: 16 | T33: SIN GOCE DE SUELDO | U33: SIN GOCE DE SUELDO O SU REFRENDO
B34: GUANAJUATO | C34: SAHL880928KE7 | D34: SAHL880928HGTNRS02 | E34: LUIS DAVID SANCHEZ HERNANDEZ | F34: 113010010030PA20.0300068 | G34: 1130 | H34: 1001 | I34: 00 | J34: 30 | K34: PA | L34: 20.0 | M34: 300068 | N34: 20180801 | O34: 20190731 | P34: 0 | Q34: 0 | R34: 11DPT0003O | S34: 16 | T34: SIN GOCE DE SUELDO | U34: SIN GOCE DE SUELDO O SU REFRENDO
B35: GUANAJUATO | C35: SAGG7304218VA | D35: SAGG730421MGTNLL02 | E35: GLORIA SANCHEZ GALVAN | F35: 113010030203CF1920100.09188 | G35: 1130 | H35: 1003 | I35: 02 | J35: 03 | K35: CF19201 | L35: 00.0 | M35: 9188 | N35: 20190116 | O35: 20190715 | P35: 0 | Q35: 0 | R35: 11DPT0007K | S35: 16 | T35: SIN GOCE DE SUELDO | U35: SIN GOCE DE SUELDO O SU REFRENDO
B36: GUANAJUATO | C36: CAMJ6704193Z4 | D36: CAMJ670419HGTRRS00 | E36: JOSE DE JESUS CARRILLO MARTINEZ | F36: 113010010302PC25.020120 | G36: 1130 | H36: 1001 | I36: 03 | J36: 02 | K36: PC | L36: 25.0 | M36: 20120 | N36: 20190205 | O36: 20190319 | P36: 13616.21 | Q36: 4398.48 | R36: 11DPT0013V | S36: 22 | T36: GOCE DE SUELDO | U36: POR INCAPACIDAD MEDICA O SU REFRENDO
B37: GUANAJUATO | C37: REDA870319HH9 | D37: REDA870319HGTGVR03 | E37: ARTURO REGALADO DAVILA | F37: 113010010302PA15.020094 | G37: 1130 | H37: 1001 | I37: 03 | J37: 02 | K37: PA | L37: 15.0 | M37: 20094 | N37: 20190311 | O37: 20190731 | P37: 0 | Q37: 0 | R37: 11DPT0013V | S37: 16 | T37: SIN GOCE DE SUELDO | U37: SIN GOCE DE SUELDO O SU REFRENDO
B38: GUANAJUATO | C38: GOAJ880125GX4 | D38: GOAJ880125HGTNLS06 | E38: JOSUE ABRAHAM GONZALEZ ALCANTAR | F38: 113010010302TA18.020092 | G38: 1130 | H38: 1001 | I38: 03 | J38: 02 | K38: TA | L38: 18.0 | M38: 20092 | N38: 20190301 | O38: 20190331 | P38: 0 | Q38: 0 | R38: 11DPT0013V | S38: 16 | T38: SIN GOCE DE SUELDO | U38: SIN GOCE DE SUELDO O SU REFRENDO
B39: GUANAJUATO | C39: GUGA7312084M6 | D39: GUGA731208HGTTZL01 | E39: ALFREDO GUTIERREZ GUZMAN | F39: 113010030302CF2120200.018881 | G39: 1130 | H39: 1003 | I39: 03 | J39: 02 | K39: CF21202 | L39: 00.0 | M39: 18881 | N39: 20190316 | O39: 20190415 | P39: 0 | Q39: 0 | R39: 11DPT0013V | S39: 16 | T39: SIN GOCE DE SUELDO | U39: SIN GOCE DE SUELDO O SU REFRENDO
B40: GUANAJUATO | C40: MELM880414RR6 | D40: MELM880414MGTNPR03 | E40: MARISOL MENDEZ LOPEZ | F40: 113010010128PA27.0280044 | G40: 1130 | H40: 1001 | I40: 01 | J40: 28 | K40: PA | L40: 27.0 | M40: 280044 | N40: 20181218 | O40: 20190317 | P40: 16955.55 | Q40: 10991.37 | R40: 11DPT0004N | S40: 25 | T40: GOCE DE SUELDO | U40: POR GRAVIDEZ O SU REFRENDO
B41: GUANAJUATO | C41: GOMO860112AC6 | D41: GOMO860112HDFNRM01 | E41: OMAR FRANCISCO GONZALEZ MARTINEZ | F41: 113010010174PB15.0740015 | G41: 1130 | H41: 1001 | I41: 01 | J41: 74 | K41: PB | L41: 15.0 | M41: 740015 | N41: 20190201 | O41: 20190731 | P41: 0 | Q41: 0 | R41: 11DPT0009I | S41: 16 | T41: SIN GOCE DE SUELDO | U41: SIN GOCE DE SUELDO O SU REFRENDO
B42: GUANAJUATO | C42: AAGG8604281N4 | D42: AAGG860428MGTLRD04 | E42: MARIA GUADALUPE ALAMILLA GARCÍA | F42: 113010010174PA20.0740002 | G42: 1130 | H42: 1001 | I42: 01 | J42: 74 | K42: PA | L42: 20.0 | M42: 740002 | N42: 20190201 | O42: 20190731 | P42: 0 | Q42: 0 | R42: 11DPT0009I | S42: 16 | T42: SIN GOCE DE SUELDO | U42: SIN GOCE DE SUELDO O SU REFRENDO
B43: GUANAJUATO | C43: AOZL870509IYA | D43: AOZL870509MGTLRC04 | E43: LUCIA ALONSO ZARAGOZA | F43: 113010010174TA10.0740047 | G43: 1130 | H43: 1001 | I43: 01 | J43: 74 | K43: TA | L43: 10.0 | M43: 740047 | N43: 20190301 | O43: 20190731 | P43: 0 | Q43: 0 | R43: 11DPT0009I | S43: 16 | T43: SIN GOCE DE SUELDO | U43: SIN GOCE DE SUELDO O SU REFRENDO
B44: GUANAJUATO | C44: CABG7405015A5 | D44: CABG740501MGTSRB06 | E44: GABRIELA CASTRO BARBOSA | F44: 113010010249PC15.0490014 | G44: 1130 | H44: 1001 | I44: 02 | J44: 49 | K44: PC | L44: 15.0 | M44: 490014 | N44: 20190201 | O44: 20190731 | P44: 4637.35 | Q44: 0 | R44: 11DPT0011X | S44: 16 | T44: SIN GOCE DE SUELDO | U44: SIN GOCE DE SUELDO O SU REFRENDO
B45: GUANAJUATO | C45: CAER830626JA4 | D45: CAER830626MGTRSY00 | E45: REYNA LILIANA CARDOSO ESCUTIA | F45: 113010010249PB09.0490011 | G45: 1130 | H45: 1001 | I45: 02 | J45: 49 | K45: PB | L45: 09.0 | M45: 490011 | N45: 20190208 | O45: 20190508 | P45: 7951.46 | Q45: 250 | R45: 11DPT0011X | S45: 25 | T45: GOCE DE SUELDO | U45: POR GRAVIDEZ O SU REFRENDO
B46: GUANAJUATO | C46: EAMA860511UL8 | D46: EAMA860511MMNSRN08 | E46: ANA LUCIA ESCALANTE MARIN | F46: 113010010249PB15.0490017 | G46: 1130 | H46: 1001 | I46: 02 | J46: 49 | K46: PB | L46: 15.0 | M46: 490017 | N46: 20180801 | O46: 20190131 | P46: 0 | Q46: 0 | R46: 11DPT0011X | S46: 16 | T46: SIN GOCE DE SUELDO | U46: SIN GOCE DE SUELDO O SU REFRENDO
B47: GUANAJUATO | C47: GAMB800204HK9 | D47: GAMB800204MGTRR01 | E47: BERENICE ELENA MARIA GARCIA MARQUEZ | F47: 113010010249PC00.0490021 | G47: 1130 | H47: 1001 | I47: 02 | J47: 49 | K47: PC | L47: 00.0 | M47: 490021 | N47: 20190201 | O47: 20190731 | P47: 0 | Q47: 0 | R47: 11DPT0011X | S47: 16 | T47: SIN GOCE DE SUELDO | U47: SIN GOCE DE SUELDO O SU REFRENDO
B48: GUANAJUATO | C48: LUCF7002115Q9 | D48: LUCF700211HGTLND05 | E48: FIDEL LULE CONTRERAS | F48: 113010010249PC08.0490028 | G48: 1130 | H48: 1001 | I48: 02 | J48: 49 | K48: PC | L48: 08.0 | M48: 490028 | N48: 20190301 | O48: 20190731 | P48: 0 | Q48: 0 | R48: 11DPT0011X | S48: 16 | T48: SIN GOCE DE SUELDO | U48: SIN GOCE DE SUELDO O SU REFRENDO
B49: GUANAJUATO | C49: NAFE720728918 | D49: NAFE720728MDFVRV08 | E49: EVANGELINA NAVARRETE FARFAN | F49: 113010010249PA11.0490037 | G49: 1130 | H49: 1001 | I49: 02 | J49: 49 | K49: PA | L49: 11.0 | M49: 490037 | N49: 20190216 | O49: 20190731 | P49: 0 | Q49: 0 | R49: 11DPT0011X | S49: 16 | T49: SIN GOCE DE SUELDO | U49: SIN GOCE DE SUELDO O SU REFRENDO
B50: GUANAJUATO | C50: RAGE851021JI8 | D50: RAGE851021MGTYML08 | E50: ELVIA SUSANA RAYA GOMEZ | F50: 113010010249PA13.0490101 | G50: 1130 | H50: 1001 | I50: 02 | J50: 49 | K50: PA | L50: 13.0 | M50: 490101 | N50: 20190105 | O50: 20190330 | P50: 10122.94 | Q50: 250 | R50: 11DPT0011X | S50: 22 | T50: GOCE DE SUELDO | U50: POR INCAPACIDAD MEDICA O SU REFRENDO
B51: GUANAJUATO | C51: GABI850102NDA | D51: GABI850102MGTRRS03 | E51: MARIA ISABEL GARCIA BARRIENTOS | F51: 113010030303CF3320600.018864 | G51: 1130 | H51: 1003 | I51: 03 | J51: 03 | K51: CF33206 | L51: 00.0 | M51: 18864 | N51: 20181116 | O51: 20190515 | P51: 0 | Q51: 0 | R51: 11DPT0014U | S51: 16 | T51: SIN GOCE DE SUELDO | U51: SIN GOCE DE SUELDO O SU REFRENDO
B52: GUANAJUATO | C52: MAGE8309219C9 | D52: MAGE830921HSPLRD08 | E52: EDUARDO MALDONADO GARCIA | F52: 113010030303CF3320600.018862 | G52: 1130 | H52: 1003 | I52: 03 | J52: 03 | K52: CF33206 | L52: 00.0 | M52: 18862 | N52: 20181009 | O52: 20211015 | P52: 0 | Q52: 0 | R52: 11DPT0014U | S52: 16 | T52: SIN GOCE DE SUELDO | U52: SIN GOCE DE SUELDO O SU REFRENDO
B53: GUANAJUATO | C53: SACG751101985 | D53: SACG751101HDFNRR03 | E53: GERARDO JAVIER SANCHEZ CARRANZA | F53: 113010010303TA12.0030016 | G53: 1130 | H53: 1001 | I53: 03 | J53: 03 | K53: TA | L53: 12.0 | M53: 030016 | N53: 20180901 | O53: 20190131 | P53: 0 | Q53: 0 | R53: 11DPT0014U | S53: 16 | T53: SIN GOCE DE SUELDO | U53: SIN GOCE DE SUELDO O SU REFRENDO
B54: GUANAJUATO | C54: GOHS8907177Z1 | D54: GOHS890717MQTMRN05 | E54: GOMEZ HERNANDEZ SANDRA IRAIS | F54: 113010010402TA10.0700161 | G54: 1130 | H54: 1001 | I54: 04 | J54: 02 | K54: TA | L54: 10.0 | M54: 700161 | N54: 20190201 | O54: 20190731 | P54: 0 | Q54: 0 | R54: 11DPT0012W | S54: 16 | T54: SIN GOCE DE SUELDO | U54: SIN GOCE DE SUELDO O SU REFRENDO
B55: GUANAJUATO | C55: MUIM841205CWA | D55: MUIM841205MQTXBR03 | E55: MUÑOZ IBARRA MARIANA | F55: 113010010402PB20.0700020 | G55: 1130 | H55: 1001 | I55: 04 | J55: 02 | K55: PB | L55: 20.0 | M55: 700020 | N55: 20190201 | O55: 20190731 | P55: 0 | Q55: 0 | R55: 11DPT0012W | S55: 16 | T55: SIN GOCE DE SUELDO | U55: SIN GOCE DE SUELDO O SU REFRENDO
B56: GUANAJUATO | C56: CAMJ890730SG6 | D56: CAMJ890730MDFSDZ09 | E56: CASASOLA MEDINA JAZMIN | F56: 113010010402PA10.0700106 | G56: 1130 | H56: 1001 | I56: 04 | J56: 02 | K56: PA | L56: 10.0 | M56: 700106 | N56: 20190201 | O56: 20190731 | P56: 0 | Q56: 0 | R56: 11DPT0012W | S56: 16 | T56: SIN GOCE DE SUELDO | U56: SIN GOCE DE SUELDO O SU REFRENDO
B57: GUANAJUATO | C57: OAVO8206077E6 | D57: OAVO820607HMNCZ08 | E57: OCAMPO VAZQUEZ OMAR ANTONIO | F57: 113010010402PA15.0700021 | G57: 1130 | H57: 1001 | I57: 04 | J57: 02 | K57: PA | L57: 15.0 | M57: 700021 | N57: 20190201 | O57: 20190731 | P57: 0 | Q57: 0 | R57: 11DPT0012W | S57: 16 | T57: SIN GOCE DE SUELDO | U57: SIN GOCE DE SUELDO O SU REFRENDO
B58: GUANAJUATO | C58: VASS860602N16 | D58: VASS860602MQTLNN00 | E58: VALTIERRA SANCHEZ SANDRA YANET | F58: 113010030402CF3320600.014067 | G58: 1130 | H58: 1003 | I58: 04 | J58: 02 | K58: CF33206 | L58: 00.0 | M58: 14067 | N58: 20190121 | O58: 20190422 | P58: 13514.03 | Q58: 0 | R58: 11DPT0012W | S58: 25 | T58: GOCE DE SUELDO | U58: POR GRAVIDEZ O SU REFRENDO
B59: GUANAJUATO | C59: GAME651110B38 | D59: GAME651110HDFRRD00 | E59: EDUARDO GARCIA MORALES | F59: 113010010204PA17.0040020 | G59: 1130 | H59: 1001 | I59: 02 | J59: 04 | K59: PA | L59: 17.0 | M59: 040020 | N59: 20190201 | O59: 20190731 | P59: 0 | Q59: 0 | R59: 11DPT0010Y | S59: 16 | T59: SIN GOCE DE SUELDO | U59: SIN GOCE DE SUELDO O SU REFRENDO
B60: GUANAJUATO | C60: PEGO840715TW6 | D60: PEGO840715MGTRRL04 | E60: OLGA CRISTINA PEREZ GUERRERO | F60: 113010010204PB18.0040049 | G60: 1130 | H60: 1001 | I60: 02 | J60: 04 | K60: PB | L60: 18.0 | M60: 040049 | N60: 20190201 | O60: 20190731 | P60: 0 | Q60: 0 | R60: 11DPT0010Y | S60: 16 | T60: SIN GOCE DE SUELDO | U60: SIN GOCE DE SUELDO O SU REFRENDO
B61: GUANAJUATO | C61: BAGA680215FI6 | D61: BAGA680215HDFRDD03 | E61: ADRIAN BRAVO GUADARRAMA | F61: 1130110010072PB00.0720011 | G61: 11301 | H61: 1001 | I61: 00 | J61: 72 | K61: PB | L61: 00.0 | M61: 720011 | N61: 20170201 | O61: 99999999 | P61: 0 | Q61: 0 | R61: 11DPT0005M | S61: 16 | T61: SIN GOCE DE SUELDO | U61: SIN GOCE DE SUELDO O SU REFRENDO
B62: GUANAJUATO | C62: MAAA630105332 | D62: MAAA630105MGTRCN00 | E62: MARIA DE LOS ANGELES MARES ACOSTA | F62: 1130110010072PC00.0720035 | G62: 11301 | H62: 1001 | I62: 00 | J62: 72 | K62: PC | L62: 00.0 | M62: 720035 | N62: 20150201 | O62: 99999999 | P62: 0 | Q62: 0 | R62: 11DPT0005M | S62: 16 | T62: SIN GOCE DE SUELDO | U62: SIN GOCE DE SUELDO O SU REFRENDO
B63: GUANAJUATO | C63: VIZM6610296H8 | D63: VIZM661029MMNLRN03 | E63: MONICA VILLAGOMEZ ZARATE | F63: 1130110010072PB25.0720053 | G63: 11301 | H63: 1001 | I63: 00 | J63: 72 | K63: PB | L63: 25.0 | M63: 720053 | N63: 20190201 | O63: 20190731 | P63: 0 | Q63: 0 | R63: 11DPT0005M | S63: 16 | T63: SIN GOCE DE SUELDO | U63: SIN GOCE DE SUELDO O SU REFRENDO
B64: Total Personas: | C64: =COUNTA(Tabla35[Columna2]) -> 48 | K64: Total Plazas : | M64: 8 | N64: Total Pto. Federal | P64: =SUBTOTAL(109,Tabla35[Columna15]) -> 139433.75
N66: Total Ppto. Otras Fuentes | P66: =SUM(Q16:Q63) -> 15889.85
B68: *Total de Percepciones reportadas por la Entidad Federativa como pagadas al trabajador durante la Licencia.
B69: Fuente : Información proporcionada por las Entidades Federativas.

Sheet B)
B9: Formato: Registro Federal de Contribuyentes de Trabajadores con Pagos Retroactivos con un Periodo Mayor a 45 días | R9: GUANAJUATO
B10: Fondo de Aportaciones para la Educación Tecnológica y de Adultos/Colegio Nacional de Educación Profesional Técnica (FAETA/CONALEP) | R10: 1er. TRIMESTRE 2019
B13: Entidad Federativa | C13: RFC | D13: CURP | E13: Nombre | F13: Clave Presupuestal | M13: Clave de Centro de Trabajo | N13: Fecha de emisión de pago | O13: Motivo del Pago Retroactivo | P13: Periodo pagado | R13: Días transcurridos para el pago | S13: Percepciones pagadas en el periodo reportado *
F14: Partida Presupuestal | G14: Código de Pago | H14: Clave de Unidad | I14: Clave de Sub Unidad | J14: Clave de Categoría | K14: Horas Semana Mes | L14: Número de Plaza | P14: Desde | Q14: Hasta
B16: Entidad Federativa | C16: RFC | D16: CURP | E16: Nombre | F16: Partida Presupuestal | G16: Código de Pago | H16: Clave de Unidad | I16: Clave de Sub Unidad | J16: Clave de Categoría | K16: Horas semana mes | L16: Número de plaza | M16: Clave de Centro de Trabajo | N16: Fecha de emisión de pago | O16: Motivo del Pago Retroactivo | P16: Periodo pagado Desde | Q16: Periodo pagado Hasta | R16: Días transcurridos para el pago | S16: Percepciones pagadas en el periodo reportado *
B23: Total Personas : | K23: Total Plazas : | P23: Total Percepciones Pagadas:
B27: *Total de Percepciones reportadas por la Entidad Federativa como pagadas en el periodo
B28: Fuente : Información proporcionada por las Entidades Federativas

Sheet II B) Y 1
B9: Formato: Plaza / Función | X9: GUANAJUATO
B10: Fondo de Aportaciones para la Educación Tecnológica y de Adultos/Colegio Nacional de Educación Profesional Técnica (FAETA/CONALEP) | X10: 1er. TRIMESTRE 2019
B13: Entidad Federativa | C13: RFC | D13: CURP | E13: Nombre | F13: Centros de Trabajo | G13: Plazas por tipo de función | V13: Total plazas Jornada | W13: Total HSM | X13: Total de Honorarios | Y13: Total de recursos presupuestales ejercidos en servicios personales en el periodo (2)
G14: Apoyo a la labor educativa | J14: Administrativo y de servicio | M14: Docente y Apoyo Técnico Pedagógico | P14: Directivos y Supervisión | S14: Mandos medios y superiores
G15: Jornada | H15: HSM | I15: Honorarios | J15: Jornada | K15: HSM | L15: Honorarios | M15: Jornada | N15: HSM | O15: Honorarios | P15: Jornada | Q15: HSM | R15: Honorarios | S15: Jornada | T15: HSM | U15: Honorarios
B17: Entidad Federativa | C17: RFC | D17: CURP | E17: Nombre | F17: Centros de Trabajo | G17: Jornada | H17: HSM | I17: Honorarios | J17: Jornada2 | K17: HSM3 | L17: Honorarios4 | M17: Jornada5 | N17: HSM6 | O17: Honorarios7 | P17: Jornada8 | Q17: HSM9 | R17: Honorarios10 | S17: Jornada11 | T17: HSM12 | U17: Honorarios13 | V17: Total plazas Jornada | W17: Total HSM | X17: Total de Honorarios | Y17: Total de recursos presupuestales ejercidos en servicios personales en el periodo (2)
B18: GUANAJUATO | C18: VALD600108RN3 | D18: VALD600108HGRLYV09 | E18: DAVID VALDEZ LEYVA | F18: 11DPT0016S | G18: 0 | H18: 0 | I18: 0 | J18: 1 | K18: 0 | L18: 0 | M18: 0 | N18: 0 | O18: 0 | P18: 0 | Q18: 0 | R18: 0 | S18: 0 | T18: 0 | U18: 0 | V18: 1 | W18: 0 | X18: 0 | Y18: 35797.71
B19: GUANAJUATO | C19: PESM870904GM7 | D19: PESM870904HGTRNS05 | E19: MOISES JESUS PEREZ SANCHEZ | F19: 11DPT0016S | G19: 0 | H19: 0 | I19: 0 | J19: 1 | K19: 0 | L19: 0 | M19: 0 | N19: 0 | O19: 0 | P19: 0 | Q19: 0 | R19: 0 | S19: 0 | T19: 0 | U19: 0 | V19: 1 | W19: 0 | X19: 0 | Y19: 27638.4
B20: GUANAJUATO | C20: RELR8606252E2 | D20: RELR860625MGTYPS07 | E20: ROSAURA REYES LOPEZ | F20: 11DPT0016S | G20: 0 | H20: 0 | I20: 0 | J20: 1 | K20: 0 | L20: 0 | M20: 0 | N20: 0 | O20: 0 | P20: 0 | Q20: 0 | R20: 0 | S20: 0 | T20: 0 | U20: 0 | V20: 1 | W20: 0 | X20: 0 | Y20: 42439.27
B21: GUANAJUATO | C21: MOZP820305JD1 | D21: MOZP820305HGTYFB01 | E21: PABLO SEBASTIAN MOYA ZAFRA | F21: 11DPT0016S | G21: 0 | H21: 0 | I21: 0 | J21: 1 | K21: 0 | L21: 0 | M21: 0 | N21: 0 | O21: 0 | P21: 0 | Q21: 0 | R21: 0 | S21: 0 | T21: 0 | U21: 0 | V21: 1 | W21: 0 | X21: 0 | Y21: 12343.15
B22: GUANAJUATO | C22: AEEH731219SIA | D22: AEEH731219MGTRCL02 | E22: MARIA HILDA ARENAS ECHEVESTE | F22: 11DPT0016S | G22: 0 | H22: 0 | I22: 0 | J22: 1 | K22: 0 | L22: 0 | M22: 0 | N22: 0 | O22: 0 | P22: 0 | Q22: 0 | R22: 0 | S22: 0 | T22: 0 | U22: 0 | V22: 1 | W22: 0 | X22: 0 | Y22: 47730.28
B23: GUANAJUATO | C23: GOEJ9111257PA | D23: GOEJ911125MMCMSN04 | E23: JENNIFER ESKARLET GOMEZ ESCAMILLA | F23: 11DPT0016S | G23: 0 | H23: 0 | I23: 0 | J23: 1 | K23: 0 | L23: 0 | M23: 0 | N23: 0 | O23: 0 | P23: 0 | Q23: 0 | R23: 0 | S23: 0 | T23: 0 | U23: 0 | V23: 1 | W23: 0 | X23: 0 | Y23: 15501
B24: GUANAJUATO | C24: VEJM930126RV3 | D24: VEJM930126MGTLMN02 | E24: MONICA NOEMI VELAZQUEZ JAIME | F24: 11DPT0016S | G24: 0 | H24: 0 | I24: 0 | J24: 1 | K24: 0 | L24: 0 | M24: 0 | N24: 0 | O24: 0 | P24: 0 | Q24: 0 | R24: 0 | S24: 0 | T24: 0 | U24: 0 | V24: 1 | W24: 0 | X24: 0 | Y24: 13437.68
B25: GUANAJUATO | C25: BAML950713SH7 | D25: BAML950713MBCLNR04 | E25: LAURA DAYANA BLANCARTE MENDEZ | F25: 11DPT0016S | G25: 0 | H25: 0 | I25: 0 | J25: 1 | K25: 0 | L25: 0 | M25: 0 | N25: 0 | O25: 0 | P25: 0 | Q25: 0 | R25: 0 | S25: 0 | T25: 0 | U25: 0 | V25: 1 | W25: 0 | X25: 0 | Y25: 16757.84
B26: GUANAJUATO | C26: CAGJ871019QL5 | D26: CAGJ871019MGTSRH01 | E26: JAHEL DE LOS ANGELES CASTAÑEDA GARCIA | F26: 11DPT0016S | G26: 0 | H26: 0 | I26: 0 | J26: 1 | K26: 0 | L26: 0 | M26: 0 | N26: 0 | O26: 0 | P26: 0 | Q26: 0 | R26: 0 | S26: 0 | T26: 0 | U26: 0 | V26: 1 | W26: 0 | X26: 0 | Y26: 42616.84
B27: GUANAJUATO | C27: GAHB8004243J9 | D27: GAHB800424HGTYRR04 | E27: JOSE BERNARDO GAYTAN HERNANDEZ | F27: 11DPT0016S | G27: 0 | H27: 0 | I27: 0 | J27: 1 | K27: 0 | L27: 0 | M27: 0 | N27: 0 | O27: 0 | P27: 0 | Q27: 0 | R27: 0 | S27: 0 | T27: 0 | U27: 0 | V27: 1 | W27: 0 | X27: 0 | Y27: 40929.92
B28: GUANAJUATO | C28: SARA591012G77 | D28: SARA591012HHGLML06 | E28: JOSE ALEJANDRO SALAZAR ROMERO | F28: 11DPT0016S | G28: 0 | H28: 0 | I28: 0 | J28: 1 | K28: 0 | L28: 0 | M28: 0 | N28: 0 | O28: 0 | P28: 0 | Q28: 0 | R28: 0 | S28: 0 | T28: 0 | U28: 0 | V28: 1 | W28: 0 | X28: 0 | Y28: 27638.4
B29: GUANAJUATO | C29: SEHE921101FC1 | D29: SEHE921101HGTGRM08 | E29: EMMANUEL SEGOVIA HERNANDEZ | F29: 11DPT0016S | G29: 0 | H29: 0 | I29: 0 | J29: 1 | K29: 0 | L29: 0 | M29: 0 | N29: 0 | O29: 0 | P29: 0 | Q29: 0 | R29: 0 | S29: 0 | T29: 0 | U29: 0 | V29: 1 | W29: 0 | X29: 0 | Y29: 11874.16
B30: GUANAJUATO | C30: PERC941119A61 | D30: PERC941119HGTRYS09 | E30: CESAR VALENTIN PEREZ RAYA | F30: 11DPT0016S | G30: 0 | H30: 0 | I30: 0 | J30: 1 | K30: 0 | L30: 0 | M30: 0 | N30: 0 | O30: 0 | P30: 0 | Q30: 0 | R30: 0 | S30: 0 | T30: 0 | U30: 0 | V30: 1 | W30: 0 | X30: 0 | Y30: 12368.92
B31: GUANAJUATO | C31: RAGN921218HJ1 | D31: RAGN921218MGTMTL06 | E31: NELLY ALEJANDRA RAMOS GUTIERREZ | F31: 11DPT0016S | G31: 0 | H31: 0 | I31: 0 | J31: 1 | K31: 0 | L31: 0 | M31: 0 | N31: 0 | O31: 0 | P31: 0 | Q31: 0 | R31: 0 | S31: 0 | T31: 0 | U31: 0 | V31: 1 | W31: 0 | X31: 0 | Y31: 12368.92
B32: GUANAJUATO | C32: MIIJ920316JE3 | D32: MIIJ920316HGTRBN05 | E32: JUAN FRANCISCO MIRELES IBARRA | F32: 11DPT0016S | G32: 0 | H32: 0 | I32: 0 | J32: 1 | K32: 0 | L32: 0 | M32: 0 | N32: 0 | O32: 0 | P32: 0 | Q32: 0 | R32: 0 | S32: 0 | T32: 0 | U32: 0 | V32: 1 | W32: 0 | X32: 0 | Y32: 27638.4
B33: GUANAJUATO | C33: AUIJ760925C28 | D33: AUIJ760925HGTZNR06 | E33: JAIRO AZUELA INFANTE | F33: 11DPT0016S | G33: 0 | H33: 0 | I33: 0 | J33: 0 | K33: 0 | L33: 0 | M33: 0 | N33: 0 | O33: 0 | P33: 0 | Q33: 0 | R33: 0 | S33: 1 | T33: 0 | U33: 0 | V33: 1 | W33: 0 | X33: 0 | Y33: 20897.91
B34: GUANAJUATO | C34: HEGE760312P42 | D34: HEGE760312HGTRDD04 | E34: EDUARDO HERNANDEZ GODINEZ | F34: 11DPT0016S | G34: 0 | H34: 0 | I34: 0 | J34: 1 | K34: 0 | L34: 0 | M34: 0 | N34: 0 | O34: 0 | P34: 0 | Q34: 0 | R34: 0 | S34: 0 | T34: 0 | U34: 0 | V34: 1 | W34: 0 | X34: 0 | Y34: 12368.92
B35: GUANAJUATO | C35: AUDM660425P52 | D35: AUDM660425MGTGRR18 | E35: MIRIAM AGUILAR DURON | F35: 11DPT0001Q | G35: 0 | H35: 0 | I35: 0 | J35: 1 | K35: 0 | L35: 0 | M35: 0 | N35: 0 | O35: 0 | P35: 0 | Q35: 0 | R35: 0 | S35: 0 | T35: 0 | U35: 0 | V35: 1 | W35: 0 | X35: 0 | Y35: 131511.22
B36: GUANAJUATO | C36: AATE760606N24 | D36: AATE760606MGTLNV03 | E36: EVA ALMANZA TINOCO | F36: 11DPT0001Q | G36: 0 | H36: 0 | I36: 0 | J36: 1 | K36: 0 | L36: 0 | M36: 0 | N36: 0 | O36: 0 | P36: 0 | Q36: 0 | R36: 0 | S36: 0 | T36: 0 | U36: 0 | V36: 1 | W36: 0 | X36: 0 | Y36: 45934.61
B37: GUANAJUATO | C37: BAUR7105213K8 | D37: BAUR710521MDFRRT02 | E37: RITA BARCENAS URBINA | F37: 11DPT0001Q | G37: 0 | H37: 0 | I37: 0 | J37: 1 | K37: 0 | L37: 0 | M37: 0 | N37: 0 | O37: 0 | P37: 0 | Q37: 0 | R37: 0 | S37: 0 | T37: 0 | U37: 0 | V37: 1 | W37: 0 | X37: 0 | Y37: 48500.71
B38: GUANAJUATO | C38: BACM8402274W0 | D38: BACM840227HGTRNG03 | E38: MIGUEL ANGEL BARRON CONEJO | F38: 11DPT0001Q | G38: 0 | H38: 0 | I38: 0 | J38: 1 | K38: 0 | L38: 0 | M38: 0 | N38: 0 | O38: 0 | P38: 0 | Q38: 0 | R38: 0 | S38: 0 | T38: 0 | U38: 0 | V38: 1 | W38: 0 | X38: 0 | Y38: 106304.34
B39: GUANAJUATO | C39: BEEJ790327230 | D39: BEEJ790327HGTLSN06 | E39: JUAN GUSTAVO BELMAN ESPINOSA | F39: 11DPT0001Q | G39: 0 | H39: 0 | I39: 0 | J39: 1 | K39: 0 | L39: 0 | M39: 0 | N39: 0 | O39: 0 | P39: 0 | Q39: 0 | R39: 0 | S39: 0 | T39: 0 | U39: 0 | V39: 1 | W39: 0 | X39: 0 | Y39: 37379.57
B40: GUANAJUATO | C40: CARM520206UK0 | D40: CARM520206HGTBCR09 | E40: MARIO CABRERA RICO | F40: 11DPT0001Q | G40: 0 | H40: 0 | I40: 0 | J40: 0 | K40: 0 | L40: 0 | M40: 0 | N40: 0 | O40: 0 | P40: 0 | Q40: 0 | R40: 0 | S40: 1 | T40: 0 | U40: 0 | V40: 1 | W40: 0 | X40: 0 | Y40: 106629.46
B41: GUANAJUATO | C41: CAGT7903078F3 | D41: CAGT790307HGTMRM01 | E41: TOMAS ESTEBAN CAMACHO GARCIA | F41: 11DPT0001Q | G41: 0 | H41: 0 | I41: 0 | J41: 1 | K41: 0 | L41: 0 | M41: 0 | N41: 0 | O41: 0 | P41: 0 | Q41: 0 | R41: 0 | S41: 0 | T41: 0 | U41: 0 | V41: 1 | W41: 0 | X41: 0 | Y41: 33094.97
B42: GUANAJUATO | C42: CEFS680324L40 | D42: CEFS680324HJCRLL06 | E42: SAUL CERPA FLORES | F42: 11DPT0001Q | G42: 0 | H42: 0 | I42: 0 | J42: 1 | K42: 0 | L42: 0 | M42: 0 | N42: 0 | O42: 0 | P42: 0 | Q42: 0 | R42: 0 | S42: 0 | T42: 0 | U42: 0 | V42: 1 | W42: 0 | X42: 0 | Y42: 43710.97
B43: GUANAJUATO | C43: EICA780130NQ1 | D43: EICA780130MGTSRN03 | E43: ANA MARIA ESPINOZA CERVANTES | F43: 11DPT0001Q | G43: 0 | H43: 0 | I43: 0 | J43: 1 | K43: 0 | L43: 0 | M43: 0 | N43: 0 | O43: 0 | P43: 0 | Q43: 0 | R43: 0 | S43: 0 | T43: 0 | U43: 0 | V43: 1 | W43: 0 | X43: 0 | Y43: 41100.12
B44: GUANAJUATO | C44: FABC530210FR5 | D44: FABC530210MDFRRR00 | E44: MARIA DEL CARMEN FRANCO BOURET | F44: 11DPT0001Q | G44: 0 | H44: 0 | I44: 0 | J44: 1 | K44: 0 | L44: 0 | M44: 0 | N44: 0 | O44: 0 | P44: 0 | Q44: 0 | R44: 0 | S44: 0 | T44: 0 | U44: 0 | V44: 1 | W44: 0 | X44: 0 | Y44: 48772
B45: GUANAJUATO | C45: GAAR6310249B2 | D45: GAAR631024HGTLRF01 | E45: RAFAEL GALLEGOS ARELLANO | F45: 11DPT0001Q | G45: 0 | H45: 0 | I45: 0 | J45: 1 | K45: 0 | L45: 0 | M45: 0 | N45: 0 | O45: 0 | P45: 0 | Q45: 0 | R45: 0 | S45: 0 | T45: 0 | U45: 0 | V45: 1 | W45: 0 | X45: 0 | Y45: 47636.82
B46: GUANAJUATO | C46: GAMM680220L32 | D46: GAMM680220MGTLRR01 | E46: MARTHA NORMA GALLEGOS MARISCAL | F46: 11DPT0001Q | G46: 0 | H46: 0 | I46: 0 | J46: 1 | K46: 0 | L46: 0 | M46: 0 | N46: 0 | O46: 0 | P46: 0 | Q46: 0 | R46: 0 | S46: 0 | T46: 0 | U46: 0 | V46: 1 | W46: 0 | X46: 0 | Y46: 60699.84
B47: GUANAJUATO | C47: GAOH8102061G0 | D47: GAOH810206HDFLLM04 | E47: HUMBERTO ISRAEL GALVAN OLVERA | F47: 11DPT0001Q | G47: 0 | H47: 0 | I47: 0 | J47: 1 | K47: 0 | L47: 0 | M47: 0 | N47: 0 | O47: 0 | P47: 0 | Q47: 0 | R47: 0 | S47: 0 | T47: 0 | U47: 0 | V47: 1 | W47: 0 | X47: 0 | Y47: 38831.78
B48: GUANAJUATO | C48: GOMG8812289D6 | D48: GOMG881228HQTMLB01 | E48: GABRIEL GOMEZ MOLINERO | F48: 11DPT0001Q | G48: 0 | H48: 0 | I48: 0 | J48: 1 | K48: 0 | L48: 0 | M48: 0 | N48: 0 | O48: 0 | P48: 0 | Q48: 0 | R48: 0 | S48: 0 | T48: 0 | U48: 0 | V48: 1 | W48: 0 | X48: 0 | Y48: 69826.79
B49: GUANAJUATO | C49: GOGK890902JT3 | D49: GOGK890902MGTNLR04 | E49: KARLA RAFAELA GONZALEZ GALLARDO | F49: 11DPT0001Q | G49: 0 | H49: 0 | I49: 0 | J49: 1 | K49: 0 | L49: 0 | M49: 0 | N49: 0 | O49: 0 | P49: 0 | Q49: 0 | R49: 0 | S49: 0 | T49: 0 | U49: 0 | V49: 1 | W49: 0 | X49: 0 | Y49: 77153.33
B50: GUANAJUATO | C50: GIAJ670517N7A | D50: GIAJ670517HGTRLN07 | E50: JUAN MANUEL GRIMALDO ALFARO | F50: 11DPT0001Q | G50: 0 | H50: 0 | I50: 0 | J50: 1 | K50: 0 | L50: 0 | M50: 0 | N50: 0 | O50: 0 | P50: 0 | Q50: 0 | R50: 0 | S50: 0 | T50: 0 | U50: 0 | V50: 1 | W50: 0 | X50: 0 | Y50: 49792.23
B51: GUANAJUATO | C51: HEMM6706104M9 | D51: HEMM670610MGTRNR09 | E51: MA. MERCEDES HERRERA MANCERA | F51: 11DPT0001Q | G51: 0 | H51: 0 | I51: 0 | J51: 1 | K51: 0 | L51: 0 | M51: 0 | N51: 0 | O51: 0 | P51: 0 | Q51: 0 | R51: 0 | S51: 0 | T51: 0 | U51: 0 | V51: 1 | W51: 0 | X51: 0 | Y51: 129701.45
B52: GUANAJUATO | C52: JAMJ591122Q73 | D52: JAMJ591122HGTRNV07 | E52: JAVIER JARALEÑO MANCERA | F52: 11DPT0001Q | G52: 0 | H52: 0 | I52: 0 | J52: 1 | K52: 0 | L52: 0 | M52: 0 | N52: 0 | O52: 0 | P52: 0 | Q52: 0 | R52: 0 | S52: 0 | T52: 0 | U52: 0 | V52: 1 | W52: 0 | X52: 0 | Y52: 46307.74
B53: GUANAJUATO | C53: JOOM700802BM5 | D53: JOOM700802HGTYRG06 | E53: MIGUEL ANGEL JOYA ORTIZ | F53: 11DPT0001Q | G53: 0 | H53: 0 | I53: 0 | J53: 1 | K53: 0 | L53: 0 | M53: 0 | N53: 0 | O53: 0 | P53: 0 | Q53: 0 | R53: 0 | S53: 0 | T53: 0 | U53: 0 | V53: 1 | W53: 0 | X53: 0 | Y53: 123773.6
B54: GUANAJUATO | C54: LIRA890608KM8 | D54: LIRA890608MGTZZL06 | E54: ALMA ROSARIO LIZARRAGA RUIZ | F54: 11DPT0001Q | G54: 0 | H54: 0 | I54: 0 | J54: 1 | K54: 0 | L54: 0 | M54: 0 | N54: 0 | O54: 0 | P54: 0 | Q54: 0 | R54: 0 | S54: 0 | T54: 0 | U54: 0 | V54: 1 | W54: 0 | X54: 0 | Y54: 38690.51
B55: GUANAJUATO | C55: LOLA870110SJ9 | D55: LOLA870110MGTPPL02 | E55: ALMA ALEJANDRA LOPEZ LOPEZ | F55: 11DPT0001Q | G55: 0 | H55: 0 | I55: 0 | J55: 1 | K55: 0 | L55: 0 | M55: 0 | N55: 0 | O55: 0 | P55: 0 | Q55: 0 | R55: 0 | S55: 0 | T55: 0 | U55: 0 | V55: 1 | W55: 0 | X55: 0 | Y55: 71678.96
B56: GUANAJUATO | C56: MAGB8208194P2 | D56: MAGB820819MGTLRL08 | E56: BLANCA ELIA MALDONADO GARCIA | F56: 11DPT0001Q | G56: 0 | H56: 0 | I56: 0 | J56: 1 | K56: 0 | L56: 0 | M56: 0 | N56: 0 | O56: 0 | P56: 0 | Q56: 0 | R56: 0 | S56: 0 | T56: 0 | U56: 0 | V56: 1 | W56: 0 | X56: 0 | Y56: 72906.88
B57: GUANAJUATO | C57: MAGC661126AJ5 | D57: MAGC661126MGTLNR18 | E57: MA. CARMEN MALDONADO GONZALEZ | F57: 11DPT0001Q | G57: 0 | H57: 0 | I57: 0 | J57: 1 | K57: 0 | L57: 0 | M57: 0 | N57: 0 | O57: 0 | P57: 0 | Q57: 0 | R57: 0 | S57: 0 | T57: 0 | U57: 0 | V57: 1 | W57: 0 | X57: 0 | Y57: 124017.54
B58: GUANAJUATO | C58: MEMM740704297 | D58: MEMM740704MDFDRR03 | E58: MIRNA MEDINA MARIN | F58: 11DPT0001Q | G58: 0 | H58: 0 | I58: 0 | J58: 1 | K58: 0 | L58: 0 | M58: 0 | N58: 0 | O58: 0 | P58: 0 | Q58: 0 | R58: 0 | S58: 0 | T58: 0 | U58: 0 | V58: 1 | W58: 0 | X58: 0 | Y58: 37314.55
B59: GUANAJUATO | C59: MELN680719F21 | D59: MELN680719MGTLDR00 | E59: NORMA LETICIA MELGOZA LEDESMA | F59: 11DPT0001Q | G59: 0 | H59: 0 | I59: 0 | J59: 1 | K59: 0 | L59: 0 | M59: 0 | N59: 0 | O59: 0 | P59: 0 | Q59: 0 | R59: 0 | S59: 0 | T59: 0 | U59: 0 | V59: 1 | W59: 0 | X59: 0 | Y59: 46289.56
B60: GUANAJUATO | C60: MIAO8312189C2 | D60: MIAO831218HDFLPM04 | E60: OMAR MILLAN APUD | F60: 11DPT0001Q | G60: 0 | H60: 0 | I60: 0 | J60: 1 | K60: 0 | L60: 0 | M60: 0 | N60: 0 | O60: 0 | P60: 0 | Q60: 0 | R60: 0 | S60: 0 | T60: 0 | U60: 0 | V60: 1 | W60: 0 | X60: 0 | Y60: 71188.84
B61: GUANAJUATO | C61: MOHA6909151AA | D61: MOHA690915MGTRRN03 | E61: ANDREA MORALES HERNANDEZ | F61: 11DPT0001Q | G61: 0 | H61: 0 | I61: 0 | J61: 1 | K61: 0 | L61: 0 | M61: 0 | N61: 0 | O61: 0 | P61: 0 | Q61: 0 | R61: 0 | S61: 0 | T61: 0 | U61: 0 | V61: 1 | W61: 0 | X61: 0 | Y61: 42424.71
B62: GUANAJUATO | C62: MUSF920131FC2 | D62: MUSF920131MGTXCR06 | E62: MARIA FERNANDA MUÑOZ SAUCILLO | F62: 11DPT0001Q | G62: 0 | H62: 0 | I62: 0 | J62: 1 | K62: 0 | L62: 0 | M62: 0 | N62: 0 | O62: 0 | P62: 0 | Q62: 0 | R62: 0 | S62: 0 | T62: 0 | U62: 0 | V62: 1 | W62: 0 | X62: 0 | Y62: 36383.74
B63: GUANAJUATO | C63: NIHE721201VC3 | D63: NIHE721201HGTTRS04 | E63: EUSEBIO MIGUEL ANGEL NIETO HERNANDEZ | F63: 11DPT0001Q | G63: 0 | H63: 0 | I63: 0 | J63: 1 | K63: 0 | L63: 0 | M63: 0 | N63: 0 | O63: 0 | P63: 0 | Q63: 0 | R63: 0 | S63: 0 | T63: 0 | U63: 0 | V63: 1 | W63: 0 | X63: 0 | Y63: 43079.56
B64: GUANAJUATO | C64: NUBS660923RQA | D64: NUBS660923MGTXRL07 | E64: MA. SILVIA NUÑEZ BARRERA | F64: 11DPT0001Q | G64: 0 | H64: 0 | I64: 0 | J64: 1 | K64: 0 | L64: 0 | M64: 0 | N64: 0 | O64: 0 | P64: 0 | Q64: 0 | R64: 0 | S64: 0 | T64: 0 | U64: 0 | V64: 1 | W64: 0 | X64: 0 | Y64: 49156.87
B65: GUANAJUATO | C65: PACS810122DT6 | D65: PACS810122MGTLRR02 | E65: SARA PALOMINO CARREÑO | F65: 11DPT0001Q | G65: 0 | H65: 0 | I65: 0 | J65: 1 | K65: 0 | L65: 0 | M65: 0 | N65: 0 | O65: 0 | P65: 0 | Q65: 0 | R65: 0 | S65: 0 | T65: 0 | U65: 0 | V65: 1 | W65: 0 | X65: 0 | Y65: 38884.07
B66: GUANAJUATO | C66: PIOP550618BT2 | D66: PIOP550618HGTCLB08 | E66: PABLO PICHARDO OLVERA | F66: 11DPT0001Q | G66: 0 | H66: 0 | I66: 0 | J66: 1 | K66: 0 | L66: 0 | M66: 0 | N66: 0 | O66: 0 | P66: 0 | Q66: 0 | R66: 0 | S66: 0 | T66: 0 | U66: 0 | V66: 1 | W66: 0 | X66: 0 | Y66: 49741.49
B67: GUANAJUATO | C67: QUGE620101NK4 | D67: QUGE620101HGTNRF01 | E67: EFRAIN QUINTANA GARCIA | F67: 11DPT0001Q | G67: 0 | H67: 0 | I67: 0 | J67: 1 | K67: 0 | L67: 0 | M67: 0 | N67: 0 | O67: 0 | P67: 0 | Q67: 0 | R67: 0 | S67: 0 | T67: 0 | U67: 0 | V67: 1 | W67: 0 | X67: 0 | Y67: 43252.77
B68: GUANAJUATO | C68: RAAG5908278S6 | D68: RAAG590827HMNNBL08 | E68: GUILLERMO RANGEL ABURTO | F68: 11DPT0001Q | G68: 0 | H68: 0 | I68: 0 | J68: 1 | K68: 0 | L68: 0 | M68: 0 | N68: 0 | O68: 0 | P68: 0 | Q68: 0 | R68: 0 | S68: 0 | T68: 0 | U68: 0 | V68: 1 | W68: 0 | X68: 0 | Y68: 55172.22
B69: GUANAJUATO | C69: RERE8505068T2 | D69: RERE850506HMNYMD04 | E69: EDUARDO REYES RAMIREZ | F69: 11DPT0001Q | G69: 0 | H69: 0 | I69: 0 | J69: 1 | K69: 0 | L69: 0 | M69: 0 | N69: 0 | O69: 0 | P69: 0 | Q69: 0 | R69: 0 | S69: 0 | T69: 0 | U69: 0 | V69: 1 | W69: 0 | X69: 0 | Y69: 36882.15
B70: GUANAJUATO | C70: RIAA790529868 | D70: RIAA790529MMNSGN03 | E70: ANA KATHERINE RIOS AGUILAR | F70: 11DPT0001Q | G70: 0 | H70: 0 | I70: 0 | J70: 0 | K70: 0 | L70: 0 | M70: 0 | N70: 0 | O70: 0 | P70: 0 | Q70: 0 | R70: 0 | S70: 1 | T70: 0 | U70: 0 | V70: 1 | W70: 0 | X70: 0 | Y70: 92777.2
B71: GUANAJUATO | C71: ROBY7612249Q3 | D71: ROBY761224MDFDCN05 | E71: YUNUEN RODRIGUEZ BECERRA | F71: 11DPT0001Q | G71: 0 | H71: 0 | I71: 0 | J71: 1 | K71: 0 | L71: 0 | M71: 0 | N71: 0 | O71: 0 | P71: 0 | Q71: 0 | R71: 0 | S71: 0 | T71: 0 | U71: 0 | V71: 1 | W71: 0 | X71: 0 | Y71: 41269.41
B72: GUANAJUATO | C72: ROMR681004UF2 | D72: ROMR681004HGTDRM02 | E72: RAMIRO RODRIGUEZ MARTINEZ | F72: 11DPT0001Q | G72: 0 | H72: 0 | I72: 0 | J72: 1 | K72: 0 | L72: 0 | M72: 0 | N72: 0 | O72: 0 | P72: 0 | Q72: 0 | R72: 0 | S72: 0 | T72: 0 | U72: 0 | V72: 1 | W72: 0 | X72: 0 | Y72: 56985.25
B73: GUANAJUATO | C73: ROHR681221N53 | D73: ROHR681221MGTJRB00 | E73: RUBISELA ROJAS HUARACHA | F73: 11DPT0001Q | G73: 0 | H73: 0 | I73: 0 | J73: 1 | K73: 0 | L73: 0 | M73: 0 | N73: 0 | O73: 0 | P73: 0 | Q73: 0 | R73: 0 | S73: 0 | T73: 0 | U73: 0 | V73: 1 | W73: 0 | X73: 0 | Y73: 88721.23
B74: GUANAJUATO | C74: ROEJ700824751 | D74: ROEJ700824HVZMSL05 | E74: JULIO CESAR ROMERO ESCOBAR | F74: 11DPT0001Q | G74: 0 | H74: 0 | I74: 0 | J74: 1 | K74: 0 | L74: 0 | M74: 0 | N74: 0 | O74: 0 | P74: 0 | Q74: 0 | R74: 0 | S74: 0 | T74: 0 | U74: 0 | V74: 1 | W74: 0 | X74: 0 | Y74: 43186.78
B75: GUANAJUATO | C75: RURO710818A13 | D75: RURO710818MGTZFL04 | E75: OLGA AMALIA RUIZ RUFINO | F75: 11DPT0001Q | G75: 0 | H75: 0 | I75: 0 | J75: 1 | K75: 0 | L75: 0 | M75: 0 | N75: 0 | O75: 0 | P75: 0 | Q75: 0 | R75: 0 | S75: 0 | T75: 0 | U75: 0 | V75: 1 | W75: 0 | X75: 0 | Y75: 58351.9
B76: GUANAJUATO | C76: SAGM730131V93 | D76: SAGM730131MDFNRR07 | E76: MARCELA SANCHEZ GARCIA | F76: 11DPT0001Q | G76: 0 | H76: 0 | I76: 0 | J76: 1 | K76: 0 | L76: 0 | M76: 0 | N76: 0 | O76: 0 | P76: 0 | Q76: 0 | R76: 0 | S76: 0 | T76: 0 | U76: 0 | V76: 1 | W76: 0 | X76: 0 | Y76: 101616.17
B77: GUANAJUATO | C77: SARR700714SU4 | D77: SARR700714MGTCMS06 | E77: MARIA DEL ROSARIO SAUCILLO RAMIREZ | F77: 11DPT0001Q | G77: 0 | H77: 0 | I77: 0 | J77: 1 | K77: 0 | L77: 0 | M77: 0 | N77: 0 | O77: 0 | P77: 0 | Q77: 0 | R77: 0 | S77: 0 | T77: 0 | U77: 0 | V77: 1 | W77: 0 | X77: 0 | Y77: 74439.18
B78: GUANAJUATO | C78: TEHM7408294G1 | D78: TEHM740829HGTLRR02 | E78: MARCO ANTONIO TELLEZ HERRERA | F78: 11DPT0001Q | G78: 0 | H78: 0 | I78: 0 | J78: 1 | K78: 0 | L78: 0 | M78: 0 | N78: 0 | O78: 0 | P78: 0 | Q78: 0 | R78: 0 | S78: 0 | T78: 0 | U78: 0 | V78: 1 | W78: 0 | X78: 0 | Y78: 28571.97
B79: GUANAJUATO | C79: TOCF910415931 | D79: TOCF910415MGTRRT00 | E79: FATIMA DEL ROSARIO TORRES CERVANTES | F79: 11DPT0001Q | G79: 0 | H79: 0 | I79: 0 | J79: 1 | K79: 0 | L79: 0 | M79: 0 | N79: 0 | O79: 0 | P79: 0 | Q79: 0 | R79: 0 | S79: 0 | T79: 0 | U79: 0 | V79: 1 | W79: 0 | X79: 0 | Y79: 38638.26
B80: GUANAJUATO | C80: TOSS530312KL6 | D80: TOSS530312HDFRMM05 | E80: SAMUEL TORRES SUMOZA | F80: 11DPT0001Q | G80: 0 | H80: 0 | I80: 0 | J80: 1 | K80: 0 | L80: 0 | M80: 0 | N80: 0 | O80: 0 | P80: 0 | Q80: 0 | R80: 0 | S80: 0 | T80: 0 | U80: 0 | V80: 1 | W80: 0 | X80: 0 | Y80: 37054.47
B81: GUANAJUATO | C81: VAAM631105TU4 | D81: VAAM631105HGTLYR06 | E81: MARTIN VALENTE AYALA | F81: 11DPT0001Q | G81: 0 | H81: 0 | I81: 0 | J81: 1 | K81: 0 | L81: 0 | M81: 0 | N81: 0 | O81: 0 | P81: 0 | Q81: 0 | R81: 0 | S81: 0 | T81: 0 | U81: 0 | V81: 1 | W81: 0 | X81: 0 | Y81: 49164.75
B82: GUANAJUATO | C82: VEGR631014AK5 | D82: VEGR631014HGTLRB01 | E82: RUBEN VELAZQUEZ GARCIA | F82: 11DPT0001Q | G82: 0 | H82: 0 | I82: 0 | J82: 1 | K82: 0 | L82: 0 | M82: 0 | N82: 0 | O82: 0 | P82: 0 | Q82: 0 | R82: 0 | S82: 0 | T82: 0 | U82: 0 | V82: 1 | W82: 0 | X82: 0 | Y82: 47847.11
B83: GUANAJUATO | C83: ZALC5604237Q2 | D83: ZALC560423HGTVPR01 | E83: CARLOS ZAVALA LOPEZ | F83: 11DPT0001Q | G83: 0 | H83: 0 | I83: 0 | J83: 1 | K83: 0 | L83: 0 | M83: 0 | N83: 0 | O83: 0 | P83: 0 | Q83: 0 | R83: 0 | S83: 0 | T83: 0 | U83: 0 | V83: 1 | W83: 0 | X83: 0 | Y83: 46134.66
B84: GUANAJUATO | C84: BERC880813NK7 | D84: BERC880813MGTLMN05 | E84: CINDIA ELIZABETH BELTRAN RAMOS | F84: 11DPT0002P | G84: 0 | H84: 0 | I84: 0 | J84: 1 | K84: 0 | L84: 0 | M84: 0 | N84: 0 | O84: 0 | P84: 0 | Q84: 0 | R84: 0 | S84: 0 | T84: 0 | U84: 0 | V84: 1 | W84: 0 | X84: 0 | Y84: 45579.42
B85: GUANAJUATO | C85: CASI750121969 | D85: CASI750121HGTSNS13 | E85: ISAAC CASTRO SANTILLANES | F85: 11DPT0002P | G85: 0 | H85: 0 | I85: 0 | J85: 1 | K85: 0 | L85: 0 | M85: 0 | N85: 0 | O85: 0 | P85: 0 | Q85: 0 | R85: 0 | S85: 0 | T85: 0 | U85: 0 | V85: 1 | W85: 0 | X85: 0 | Y85: 47545.38
B86: GUANAJUATO | C86: COCA760915JU4 | D86: COCA760915HGTRLL02 | E86: ALEJANDRO CORIA CALDERON | F86: 11DPT0002P | G86: 0 | H86: 0 | I86: 0 | J86: 1 | K86: 0 | L86: 0 | M86: 0 | N86: 0 | O86: 0 | P86: 0 | Q86: 0 | R86: 0 | S86: 0 | T86: 0 | U86: 0 | V86: 1 | W86: 0 | X86: 0 | Y86: 39732.26
B87: GUANAJUATO | C87: CUHC5501119F9 | D87: CUHC550111HGTLNS08 | E87: CESAR CUELLAR HINOJOSA | F87: 11DPT0002P | G87: 0 | H87: 0 | I87: 0 | J87: 1 | K87: 0 | L87: 0 | M87: 0 | N87: 0 | O87: 0 | P87: 0 | Q87: 0 | R87: 0 | S87: 0 | T87: 0 | U87: 0 | V87: 1 | W87: 0 | X87: 0 | Y87: 49372.02
B88: GUANAJUATO | C88: CUVY830805JA3 | D88: CUVY830805MGTSRH00 | E88: YAHAIRA ALICIA ELENA CUESTAS VARGAS | F88: 11DPT0002P | G88: 0 | H88: 0 | I88: 0 | J88: 1 | K88: 0 | L88: 0 | M88: 0 | N88: 0 | O88: 0 | P88: 0 | Q88: 0 | R88: 0 | S88: 0 | T88: 0 | U88: 0 | V88: 1 | W88: 0 | X88: 0 | Y88: 35555.35
B89: GUANAJUATO | C89: DEHM860518J96 | D89: DEHM860518HMCLRG02 | E89: MIGUEL ANGEL DELGADO HERNANDEZ | F89: 11DPT0002P | G89: 0 | H89: 0 | I89: 0 | J89: 1 | K89: 0 | L89: 0 | M89: 0 | N89: 0 | O89: 0 | P89: 0 | Q89: 0 | R89: 0 | S89: 0 | T89: 0 | U89: 0 | V89: 1 | W89: 0 | X89: 0 | Y89: 41303.05
B90: GUANAJUATO | C90: DEJA790116BI6 | D90: DEJA790116HMCLMN00 | E90: JOSE ANTONIO DELGADO JIMENEZ | F90: 11DPT0002P | G90: 0 | H90: 0 | I90: 0 | J90: 1 | K90: 0 | L90: 0 | M90: 0 | N90: 0 | O90: 0 | P90: 0 | Q90: 0 | R90: 0 | S90: 0 | T90: 0 | U90: 0 | V90: 1 | W90: 0 | X90: 0 | Y90: 116309.13
B91: GUANAJUATO | C91: DONA780620F80 | D91: DONA780620HGTMTL04 | E91: ALEJANDRO DOMINGUEZ NIETO | F91: 11DPT0002P | G91: 0 | H91: 0 | I91: 0 | J91: 1 | K91: 0 | L91: 0 | M91: 0 | N91: 0 | O91: 0 | P91: 0 | Q91: 0 | R91: 0 | S91: 0 | T91: 0 | U91: 0 | V91: 1 | W91: 0 | X91: 0 | Y91: 37926.71
B92: GUANAJUATO | C92: EIPM591011QG5 | D92: EIPM591011MGTSRR09 | E92: MARTHA ALICIA ESPINOSA PEREZ | F92: 11DPT0002P | G92: 0 | H92: 0 | I92: 0 | J92: 1 | K92: 0 | L92: 0 | M92: 0 | N92: 0 | O92: 0 | P92: 0 | Q92: 0 | R92: 0 | S92: 0 | T92: 0 | U92: 0 | V92: 1 | W92: 0 | X92: 0 | Y92: 112856.6
B93: GUANAJUATO | C93: GULM790929U80 | D93: GULM790929HGTRGG04 | E93: MIGUEL ANGEL GUERRERO LAGUNA | F93: 11DPT0002P | G93: 0 | H93: 0 | I93: 0 | J93: 1 | K93: 0 | L93: 0 | M93: 0 | N93: 0 | O93: 0 | P93: 0 | Q93: 0 | R93: 0 | S93: 0 | T93: 0 | U93: 0 | V93: 1 | W93: 0 | X93: 0 | Y93: 45060.77
B94: GUANAJUATO | C94: GUAA600320L51 | D94: GUAA600320MGTTLL03 | E94: ALEJANDRA GUTIERREZ ALVAREZ | F94: 11DPT0002P | G94: 0 | H94: 0 | I94: 0 | J94: 1 | K94: 0 | L94: 0 | M94: 0 | N94: 0 | O94: 0 | P94: 0 | Q94: 0 | R94: 0 | S94: 0 | T94: 0 | U94: 0 | V94: 1 | W94: 0 | X94: 0 | Y94: 49179.29
B95: GUANAJUATO | C95: JUHF791105831 | D95: JUHF791105HDFRLR06 | E95: FERNANDO JUAREZ HELGUERA | F95: 11DPT0002P | G95: 0 | H95: 0 | I95: 0 | J95: 1 | K95: 0 | L95: 0 | M95: 0 | N95: 0 | O95: 0 | P95: 0 | Q95: 0 | R95: 0 | S95: 0 | T95: 0 | U95: 0 | V95: 1 | W95: 0 | X95: 0 | Y95: 39020.36
B96: GUANAJUATO | C96: LAMA800707D83 | D96: LAMA800707HGTRRL05 | E96: JOSE ALEJANDRO LARA MERCADO | F96: 11DPT0002P | G96: 0 | H96: 0 | I96: 0 | J96: 1 | K96: 0 | L96: 0 | M96: 0 | N96: 0 | O96: 0 | P96: 0 | Q96: 0 | R96: 0 | S96: 0 | T96: 0 | U96: 0 | V96: 1 | W96: 0 | X96: 0 | Y96: 45230.78
B97: GUANAJUATO | C97: LOBM750809KY1 | D97: LOBM750809HGTPRG01 | E97: MIGUEL LOPEZ BARRAGAN | F97: 11DPT0002P | G97: 0 | H97: 0 | I97: 0 | J97: 1 | K97: 0 | L97: 0 | M97: 0 | N97: 0 | O97: 0 | P97: 0 | Q97: 0 | R97: 0 | S97: 0 | T97: 0 | U97: 0 | V97: 1 | W97: 0 | X97: 0 | Y97: 37249.53
B98: GUANAJUATO | C98: MABH800524BY7 | D98: MABH800524HMNRRG02 | E98: HUGO MARTINEZ BARRERA | F98: 11DPT0002P | G98: 0 | H98: 0 | I98: 0 | J98: 1 | K98: 0 | L98: 0 | M98: 0 | N98: 0 | O98: 0 | P98: 0 | Q98: 0 | R98: 0 | S98: 0 | T98: 0 | U98: 0 | V98: 1 | W98: 0 | X98: 0 | Y98: 106447.53
B99: GUANAJUATO | C99: MACP790228577 | D99: MACP790228MGTRSL06 | E99: MARIA DEL PILAR MARTINEZ CASTRO | F99: 11DPT0002P | G99: 0 | H99: 0 | I99: 0 | J99: 1 | K99: 0 | L99: 0 | M99: 0 | N99: 0 | O99: 0 | P99: 0 | Q99: 0 | R99: 0 | S99: 0 | T99: 0 | U99: 0 | V99: 1 | W99: 0 | X99: 0 | Y99: 36478.85
B100: GUANAJUATO | C100: MADJ760413GFA | D100: MADJ760413HGTTZQ01 | E100: JOAQUIN MATA DIAZ | F100: 11DPT0002P | G100: 0 | H100: 0 | I100: 0 | J100: 1 | K100: 0 | L100: 0 | M100: 0 | N100: 0 | O100: 0 | P100: 0 | Q100: 0 | R100: 0 | S100: 0 | T100: 0 | U100: 0 | V100: 1 | W100: 0 | X100: 0 | Y100: 46048.12
B101: GUANAJUATO | C101: MEAE910606I30 | D101: MEAE910606HGTJGD01 | E101: EDGAR EMMANUEL MEJIA AGUILA | F101: 11DPT0002P | G101: 0 | H101: 0 | I101: 0 | J101: 1 | K101: 0 | L101: 0 | M101: 0 | N101: 0 | O101: 0 | P101: 0 | Q101: 0 | R101: 0 | S101: 0 | T101: 0 | U101: 0 | V101: 1 | W101: 0 | X101: 0 | Y101: 35691.34
B102: GUANAJUATO | C102: MEVJ760816A58 | D102: MEVJ760816HGTJLL19 | E102: JULIO ENRIQUE MEJIA VILLANUEVA | F102: 11DPT0002P | G102: 0 | H102: 0 | I102: 0 | J102: 1 | K102: 0 | L102: 0 | M102: 0 | N102: 0 | O102: 0 | P102: 0 | Q102: 0 | R102: 0 | S102: 0 | T102: 0 | U102: 0 | V102: 1 | W102: 0 | X102: 0 | Y102: 121770.25
B103: GUANAJUATO | C103: MOFY680125UV7 | D103: MOFY680125MGTSLL00 | E103: YOLANDA MOSQUEDA FLORES | F103: 11DPT0002P | G103: 0 | H103: 0 | I103: 0 | J103: 1 | K103: 0 | L103: 0 | M103: 0 | N103: 0 | O103: 0 | P103: 0 | Q103: 0 | R103: 0 | S103: 0 | T103: 0 | U103: 0 | V103: 1 | W103: 0 | X103: 0 | Y103: 50652.8
B104: GUANAJUATO | C104: PALM711130LV9 | D104: PALM711130HGTRGG02 | E104: MIGUEL ANGEL PARAMO LAGUNA | F104: 11DPT0002P | G104: 0 | H104: 0 | I104: 0 | J104: 1 | K104: 0 | L104: 0 | M104: 0 | N104: 0 | O104: 0 | P104: 0 | Q104: 0 | R104: 0 | S104: 0 | T104: 0 | U104: 0 | V104: 1 | W104: 0 | X104: 0 | Y104: 43860.52
B105: GUANAJUATO | C105: RODY660703MQ8 | D105: RODY660703MGTXLL07 | E105: YOLANDA ROA DELGADO | F105: 11DPT0002P | G105: 0 | H105: 0 | I105: 0 | J105: 1 | K105: 0 | L105: 0 | M105: 0 | N105: 0 | O105: 0 | P105: 0 | Q105: 0 | R105: 0 | S105: 0 | T105: 0 | U105: 0 | V105: 1 | W105: 0 | X105: 0 | Y105: 91255.17
B106: GUANAJUATO | C106: ROBA710226BG0 | D106: RXBA710226MGTBRL07 | E106: ALMA ROBLES BRAVO | F106: 11DPT0002P | G106: 0 | H106: 0 | I106: 0 | J106: 1 | K106: 0 | L106: 0 | M106: 0 | N106: 0 | O106: 0 | P106: 0 | Q106: 0 | R106: 0 | S106: 0 | T106: 0 | U106: 0 | V106: 1 | W106: 0 | X106: 0 | Y106: 45808.27
B107: GUANAJUATO | C107: ROSA621019UW4 | D107: ROSA621019HGTDNG01 | E107: AGAPITO RODRIGUEZ SANCHEZ | F107: 11DPT0002P | G107: 0 | H107: 0 | I107: 0 | J107: 1 | K107: 0 | L107: 0 | M107: 0 | N107: 0 | O107: 0 | P107: 0 | Q107: 0 | R107: 0 | S107: 0 | T107: 0 | U107: 0 | V107: 1 | W107: 0 | X107: 0 | Y107: 48744.66
B108: GUANAJUATO | C108: SAGS78112652A | D108: SAGS781126HGTLTS16 | E108: SASHA EMMANUEL SALINAS GUTIERREZ | F108: 11DPT0002P | G108: 0 | H108: 0 | I108: 0 | J108: 1 | K108: 0 | L108: 0 | M108: 0 | N108: 0 | O108: 0 | P108: 0 | Q108: 0 | R108: 0 | S108: 0 | T108: 0 | U108: 0 | V108: 1 | W108: 0 | X108: 0 | Y108: 38593.21
B109: GUANAJUATO | C109: SACM851223UV7 | D109: SACM851223MDFNSN01 | E109: MONSERRAT SANCHEZ CISNEROS | F109: 11DPT0002P | G109: 0 | H109: 0 | I109: 0 | J109: 1 | K109: 0 | L109: 0 | M109: 0 | N109: 0 | O109: 0 | P109: 0 | Q109: 0 | R109: 0 | S109: 0 | T109: 0 | U109: 0 | V109: 1 | W109: 0 | X109: 0 | Y109: 34133.66
B110: GUANAJUATO | C110: SAHL6309234X5 | D110: SAHL630923HGTNRS00 | E110: LUIS MIGUEL SANCHEZ HERNANDEZ | F110: 11DPT0002P | G110: 0 | H110: 0 | I110: 0 | J110: 1 | K110: 0 | L110: 0 | M110: 0 | N110: 0 | O110: 0 | P110: 0 | Q110: 0 | R110: 0 | S110: 0 | T110: 0 | U110: 0 | V110: 1 | W110: 0 | X110: 0 | Y110: 448141.96
B111: GUANAJUATO | C111: SALM811102IP0 | D111: SALG811102MGTNGD00 | E111: MA. GUADALUPE SANCHEZ LAGUNA | F111: 11DPT0002P | G111: 0 | H111: 0 | I111: 0 | J111: 1 | K111: 0 | L111: 0 | M111: 0 | N111: 0 | O111: 0 | P111: 0 | Q111: 0 | R111: 0 | S111: 0 | T111: 0 | U111: 0 | V111: 1 | W111: 0 | X111: 0 | Y111: 66731.21
B112: GUANAJUATO | C112: SASJ650121CF2 | D112: SAST650121HGTNMR00 | E112: J. TRINIDAD SANCHEZ SAMANO | F112: 11DPT0002P | G112: 0 | H112: 0 | I112: 0 | J112: 1 | K112: 0 | L112: 0 | M112: 0 | N112: 0 | O112: 0 | P112: 0 | Q112: 0 | R112: 0 | S112: 0 | T112: 0 | U112: 0 | V112: 1 | W112: 0 | X112: 0 | Y112: 78080.17
B113: GUANAJUATO | C113: SAVJ890118LK2 | D113: SAVJ890118HGTNZS05 | E113: JOSE DE JESUS SANCHEZ VAZQUEZ | F113: 11DPT0002P | G113: 0 | H113: 0 | I113: 0 | J113: 1 | K113: 0 | L113: 0 | M113: 0 | N113: 0 | O113: 0 | P113: 0 | Q113: 0 | R113: 0 | S113: 0 | T113: 0 | U113: 0 | V113: 1 | W113: 0 | X113: 0 | Y113: 41235.32
B114: GUANAJUATO | C114: SAHI6701211M4 | D114: SAHI670121MGTNRN07 | E114: MA. INES SANDOVAL HERNANDEZ | F114: 11DPT0002P | G114: 0 | H114: 0 | I114: 0 | J114: 1 | K114: 0 | L114: 0 | M114: 0 | N114: 0 | O114: 0 | P114: 0 | Q114: 0 | R114: 0 | S114: 0 | T114: 0 | U114: 0 | V114: 1 | W114: 0 | X114: 0 | Y114: 50763.13
B115: GUANAJUATO | C115: SARA881017KA5 | D115: SARA881017HGTNXL07 | E115: ALBERTO ALEXANDRO SANTILLAN REA | F115: 11DPT0002P | G115: 0 | H115: 0 | I115: 0 | J115: 1 | K115: 0 | L115: 0 | M115: 0 | N115: 0 | O115: 0 | P115: 0 | Q115: 0 | R115: 0 | S115: 0 | T115: 0 | U115: 0 | V115: 1 | W115: 0 | X115: 0 | Y115: 34570.13
B116: GUANAJUATO | C116: VAEA7904041V2 | D116: VAEA790404HGTLLL05 | E116: ALEJANDRO VALADEZ ELIAS | F116: 11DPT0002P | G116: 0 | H116: 0 | I116: 0 | J116: 1 | K116: 0 | L116: 0 | M116: 0 | N116: 0 | O116: 0 | P116: 0 | Q116: 0 | R116: 0 | S116: 0 | T116: 0 | U116: 0 | V116: 1 | W116: 0 | X116: 0 | Y116: 36534.25
B117: GUANAJUATO | C117: AOVP751006KA9 | D117: AOVP751006MGTLLL04 | E117: MA. DEL PILAR ALMONACI VALADEZ | F117: 11DPT0003O | G117: 0 | H117: 0 | I117: 0 | J117: 1 | K117: 0 | L117: 0 | M117: 0 | N117: 0 | O117: 0 | P117: 0 | Q117: 0 | R117: 0 | S117: 0 | T117: 0 | U117: 0 | V117: 1 | W117: 0 | X117: 0 | Y117: 85441.37
B118: GUANAJUATO | C118: AEGJ5311191A4 | D118: AEGJ531119HGTSRR09 | E118: JORGE ASCENCIO GARCIA | F118: 11DPT0003O | G118: 0 | H118: 0 | I118: 0 | J118: 1 | K118: 0 | L118: 0 | M118: 0 | N118: 0 | O118: 0 | P118: 0 | Q118: 0 | R118: 0 | S118: 0 | T118: 0 | U118: 0 | V118: 1 | W118: 0 | X118: 0 | Y118: 156733.85
B119: GUANAJUATO | C119: BUSG720302VE9 | D119: BUSG720302MGTLND02 | E119: MA GUADALUPE BULLONS SANTIAGO | F119: 11DPT0003O | G119: 0 | H119: 0 | I119: 0 | J119: 1 | K119: 0 | L119: 0 | M119: 0 | N119: 0 | O119: 0 | P119: 0 | Q119: 0 | R119: 0 | S119: 0 | T119: 0 | U119: 0 | V119: 1 | W119: 0 | X119: 0 | Y119: 44001.42
B120: GUANAJUATO | C120: CACF600221UD2 | D120: CACF600221HSPMSR07 | E120: FORTUNATO CAMACHO CASTILLO | F120: 11DPT0003O | G120: 0 | H120: 0 | I120: 0 | J120: 1 | K120: 0 | L120: 0 | M120: 0 | N120: 0 | O120: 0 | P120: 0 | Q120: 0 | R120: 0 | S120: 0 | T120: 0 | U120: 0 | V120: 1 | W120: 0 | X120: 0 | Y120: 42870.78
B121: GUANAJUATO | C121: CAGM670126RV9 | D121: CAGM670126MGTHNR09 | E121: MARTHA DELIA CHAVEZ GONZALEZ | F121: 11DPT0003O | G121: 0 | H121: 0 | I121: 0 | J121: 1 | K121: 0 | L121: 0 | M121: 0 | N121: 0 | O121: 0 | P121: 0 | Q121: 0 | R121: 0 | S121: 0 | T121: 0 | U121: 0 | V121: 1 | W121: 0 | X121: 0 | Y121: 122948.92
B122: GUANAJUATO | C122: DAFT8701278E1 | D122: DAFT870127MZSVLN04 | E122: TANIA LIZETH DAVILA FLORES | F122: 11DPT0003O | G122: 0 | H122: 0 | I122: 0 | J122: 1 | K122: 0 | L122: 0 | M122: 0 | N122: 0 | O122: 0 | P122: 0 | Q122: 0 | R122: 0 | S122: 0 | T122: 0 | U122: 0 | V122: 1 | W122: 0 | X122: 0 | Y122: 39265.99
B123: GUANAJUATO | C123: FOSA610902SG9 | D123: FOSA610902MGTLNL09 | E123: ALEJANDRA PATRICIA FLORES SANDOVAL | F123: 11DPT0003O | G123: 0 | H123: 0 | I123: 0 | J123: 1 | K123: 0 | L123: 0 | M123: 0 | N123: 0 | O123: 0 | P123: 0 | Q123: 0 | R123: 0 | S123: 0 | T123: 0 | U123: 0 | V123: 1 | W123: 0 | X123: 0 | Y123: 82843.65
B124: GUANAJUATO | C124: FAAF540219KI2 | D124: FAAF540219MGTRGX06 | E124: MARIA FE FRAUSTO AGUILAR | F124: 11DPT0003O | G124: 0 | H124: 0 | I124: 0 | J124: 1 | K124: 0 | L124: 0 | M124: 0 | N124: 0 | O124: 0 | P124: 0 | Q124: 0 | R124: 0 | S124: 0 | T124: 0 | U124: 0 | V124: 1 | W124: 0 | X124: 0 | Y124: 213921.93
B125: GUANAJUATO | C125: GALJ930324KX8 | D125: GALJ930324HGTRPN06 | E125: JUAN CARLOS GARCIA LOPEZ | F125: 11DPT0003O | G125: 0 | H125: 0 | I125: 0 | J125: 1 | K125: 0 | L125: 0 | M125: 0 | N125: 0 | O125: 0 | P125: 0 | Q125: 0 | R125: 0 | S125: 0 | T125: 0 | U125: 0 | V125: 1 | W125: 0 | X125: 0 | Y125: 37305.17
B126: GUANAJUATO | C126: GOML690426EW2 | D126: GOML690426MGTNDZ08 | E126: LUZ ESTELA GONZALEZ MEDINA | F126: 11DPT0003O | G126: 0 | H126: 0 | I126: 0 | J126: 1 | K126: 0 | L126: 0 | M126: 0 | N126: 0 | O126: 0 | P126: 0 | Q126: 0 | R126: 0 | S126: 0 | T126: 0 | U126: 0 | V126: 1 | W126: 0 | X126: 0 | Y126: 97207.02
B127: GUANAJUATO | C127: GUFV820306TSA | D127: GUFV820306HGRZLC04 | E127: VICTOR MANUEL GUZMAN FLORES | F127: 11DPT0003O | G127: 0 | H127: 0 | I127: 0 | J127: 1 | K127: 0 | L127: 0 | M127: 0 | N127: 0 | O127: 0 | P127: 0 | Q127: 0 | R127: 0 | S127: 0 | T127: 0 | U127: 0 | V127: 1 | W127: 0 | X127: 0 | Y127: 108990.5
B128: GUANAJUATO | C128: HECL6401228X2 | D128: HECL640122MDFRLT03 | E128: LETICIA HERNANDEZ CALVILLO | F128: 11DPT0003O | G128: 0 | H128: 0 | I128: 0 | J128: 1 | K128: 0 | L128: 0 | M128: 0 | N128: 0 | O128: 0 | P128: 0 | Q128: 0 | R128: 0 | S128: 0 | T128: 0 | U128: 0 | V128: 1 | W128: 0 | X128: 0 | Y128: 63762.37
B129: GUANAJUATO | C129: HEFM781229PE6 | D129: HEFM781229MGTRRL06 | E129: MARIA MILAGROS HERNANDEZ FRAUSTO | F129: 11DPT0003O | G129: 0 | H129: 0 | I129: 0 | J129: 1 | K129: 0 | L129: 0 | M129: 0 | N129: 0 | O129: 0 | P129: 0 | Q129: 0 | R129: 0 | S129: 0 | T129: 0 | U129: 0 | V129: 1 | W129: 0 | X129: 0 | Y129: 37849.77
B130: GUANAJUATO | C130: HEHA900701U81 | D130: HEHA900701MGTRRN03 | E130: ANA LETICIA HERNANDEZ HERRERA | F130: 11DPT0003O | G130: 0 | H130: 0 | I130: 0 | J130: 1 | K130: 0 | L130: 0 | M130: 0 | N130: 0 | O130: 0 | P130: 0 | Q130: 0 | R130: 0 | S130: 0 | T130: 0 | U130: 0 | V130: 1 | W130: 0 | X130: 0 | Y130: 37063.99
B131: GUANAJUATO | C131: JIOL8008248F7 | D131: JIOL800824MGTMRZ11 | E131: LIZETH ARIADNA JIMENEZ ORTEGA | F131: 11DPT0003O | G131: 0 | H131: 0 | I131: 0 | J131: 1 | K131: 0 | L131: 0 | M131: 0 | N131: 0 | O131: 0 | P131: 0 | Q131: 0 | R131: 0 | S131: 0 | T131: 0 | U131: 0 | V131: 1 | W131: 0 | X131: 0 | Y131: 77735.97
B132: GUANAJUATO | C132: MALR690904B5A | D132: MALR690904MGTRPS03 | E132: ROSA EUGENIA MARTINEZ LOPEZ | F132: 11DPT0003O | G132: 0 | H132: 0 | I132: 0 | J132: 1 | K132: 0 | L132: 0 | M132: 0 | N132: 0 | O132: 0 | P132: 0 | Q132: 0 | R132: 0 | S132: 0 | T132: 0 | U132: 0 | V132: 1 | W132: 0 | X132: 0 | Y132: 53048.46
B133: GUANAJUATO | C133: MAMJ620217DW9 | D133: MAMJ620217HGTRNN03 | E133: JUAN ANTONIO MARTINEZ MONCIBAIS | F133: 11DPT0003O | G133: 0 | H133: 0 | I133: 0 | J133: 1 | K133: 0 | L133: 0 | M133: 0 | N133: 0 | O133: 0 | P133: 0 | Q133: 0 | R133: 0 | S133: 0 | T133: 0 | U133: 0 | V133: 1 | W133: 0 | X133: 0 | Y133: 358798.96
B134: GUANAJUATO | C134: NAME6411037H1 | D134: NAME641103MDFVDV03 | E134: EVA NAVARRO MADRIGAL | F134: 11DPT0003O | G134: 0 | H134: 0 | I134: 0 | J134: 1 | K134: 0 | L134: 0 | M134: 0 | N134: 0 | O134: 0 | P134: 0 | Q134: 0 | R134: 0 | S134: 0 | T134: 0 | U134: 0 | V134: 1 | W134: 0 | X134: 0 | Y134: 43248.78
B135: GUANAJUATO | C135: NIRA700123GK9 | D135: NIRA700123MGTTVN01 | E135: ANA LAURA NIETO RIVERA | F135: 11DPT0003O | G135: 0 | H135: 0 | I135: 0 | J135: 1 | K135: 0 | L135: 0 | M135: 0 | N135: 0 | O135: 0 | P135: 0 | Q135: 0 | R135: 0 | S135: 0 | T135: 0 | U135: 0 | V135: 1 | W135: 0 | X135: 0 | Y135: 140051.84
B136: GUANAJUATO | C136: OIOM621117BE8 | D136: OIOM621117HGTLLN02 | E136: MANUEL MARTIN OLIVA OLIVA | F136: 11DPT0003O | G136: 0 | H136: 0 | I136: 0 | J136: 1 | K136: 0 | L136: 0 | M136: 0 | N136: 0 | O136: 0 | P136: 0 | Q136: 0 | R136: 0 | S136: 0 | T136: 0 | U136: 0 | V136: 1 | W136: 0 | X136: 0 | Y136: 57592.27
B137: GUANAJUATO | C137: PAPA810618AR6 | D137: PAPA810618HGTLLB03 | E137: ABRAHAM PALACIOS PALACIOS | F137: 11DPT0003O | G137: 0 | H137: 0 | I137: 0 | J137: 1 | K137: 0 | L137: 0 | M137: 0 | N137: 0 | O137: 0 | P137: 0 | Q137: 0 | R137: 0 | S137: 0 | T137: 0 | U137: 0 | V137: 1 | W137: 0 | X137: 0 | Y137: 35378.26
B138: GUANAJUATO | C138: RARR701207IA9 | D138: RARR701207MDFMMT08 | E138: RITA RAMIREZ RAMIREZ | F138: 11DPT0003O | G138: 0 | H138: 0 | I138: 0 | J138: 1 | K138: 0 | L138: 0 | M138: 0 | N138: 0 | O138: 0 | P138: 0 | Q138: 0 | R138: 0 | S138: 0 | T138: 0 | U138: 0 | V138: 1 | W138: 0 | X138: 0 | Y138: 53398.52
B139: GUANAJUATO | C139: RORJ800328CB1 | D139: RORJ800328HGTDMN01 | E139: JUAN PABLO RODRIGUEZ RAMIREZ | F139: 11DPT0003O | G139: 0 | H139: 0 | I139: 0 | J139: 1 | K139: 0 | L139: 0 | M139: 0 | N139: 0 | O139: 0 | P139: 0 | Q139: 0 | R139: 0 | S139: 0 | T139: 0 | U139: 0 | V139: 1 | W139: 0 | X139: 0 | Y139: 45977.17
B140: GUANAJUATO | C140: ROGJ631018GD6 | D140: ROGJ631018HGTMRN04 | E140: JUAN JOSE ROMERO GARCIA | F140: 11DPT0003O | G140: 0 | H140: 0 | I140: 0 | J140: 1 | K140: 0 | L140: 0 | M140: 0 | N140: 0 | O140: 0 | P140: 0 | Q140: 0 | R140: 0 | S140: 0 | T140: 0 | U140: 0 | V140: 1 | W140: 0 | X140: 0 | Y140: 191199.3
B141: GUANAJUATO | C141: TAPM7310026U1 | D141: TAPM731002HDFRSG06 | E141: MIGUEL ANGEL TAURINO PASTEN | F141: 11DPT0003O | G141: 0 | H141: 0 | I141: 0 | J141: 1 | K141: 0 | L141: 0 | M141: 0 | N141: 0 | O141: 0 | P141: 0 | Q141: 0 | R141: 0 | S141: 0 | T141: 0 | U141: 0 | V141: 1 | W141: 0 | X141: 0 | Y141: 46224.32
B142: GUANAJUATO | C142: BAQL620315PN5 | D142: BAQL620315HGTRRS00 | E142: LUIS MANUEL BRAVO QUIROZ | F142: 11DPT0005M | G142: 0 | H142: 0 | I142: 0 | J142: 1 | K142: 0 | L142: 0 | M142: 0 | N142: 0 | O142: 0 | P142: 0 | Q142: 0 | R142: 0 | S142: 0 | T142: 0 | U142: 0 | V142: 1 | W142: 0 | X142: 0 | Y142: 138233.24
B143: GUANAJUATO | C143: BASS600608U7A | D143: BASS600608MGTRRL08 | E143: MARIA SOLEDAD ROSA LETICIA BRAVO SERRANO | F143: 11DPT0005M | G143: 0 | H143: 0 | I143: 0 | J143: 1 | K143: 0 | L143: 0 | M143: 0 | N143: 0 | O143: 0 | P143: 0 | Q143: 0 | R143: 0 | S143: 0 | T143: 0 | U143: 0 | V143: 1 | W143: 0 | X143: 0 | Y143: 206153.78
B144: GUANAJUATO | C144: CANS730714K3A | D144: CANS730714MGTSTR04 | E144: SARA CASTILLO NIETO | F144: 11DPT0005M | G144: 0 | H144: 0 | I144: 0 | J144: 1 | K144: 0 | L144: 0 | M144: 0 | N144: 0 | O144: 0 | P144: 0 | Q144: 0 | R144: 0 | S144: 0 | T144: 0 | U144: 0 | V144: 1 | W144: 0 | X144: 0 | Y144: 58330.74
B145: GUANAJUATO | C145: CAGR660928KD7 | D145: CAGR660928MGTSNB07 | E145: RUBICELIA CASTRO GONZALEZ | F145: 11DPT0005M | G145: 0 | H145: 0 | I145: 0 | J145: 1 | K145: 0 | L145: 0 | M145: 0 | N145: 0 | O145: 0 | P145: 0 | Q145: 0 | R145: 0 | S145: 0 | T145: 0 | U145: 0 | V145: 1 | W145: 0 | X145: 0 | Y145: 92495.25
B146: GUANAJUATO | C146: COAD7908184B7 | D146: COAD790818MGTVRN00 | E146: DENY COVARRUBIAS ARREGUIN | F146: 11DPT0005M | G146: 0 | H146: 0 | I146: 0 | J146: 1 | K146: 0 | L146: 0 | M146: 0 | N146: 0 | O146: 0 | P146: 0 | Q146: 0 | R146: 0 | S146: 0 | T146: 0 | U146: 0 | V146: 1 | W146: 0 | X146: 0 | Y146: 36209.14
B147: GUANAJUATO | C147: FIGP640907QP7 | D147: FIGP640907HGTGRD01 | E147: PEDRO FIGUEROA GARCIA | F147: 11DPT0005M | G147: 0 | H147: 0 | I147: 0 | J147: 1 | K147: 0 | L147: 0 | M147: 0 | N147: 0 | O147: 0 | P147: 0 | Q147: 0 | R147: 0 | S147: 0 | T147: 0 | U147: 0 | V147: 1 | W147: 0 | X147: 0 | Y147: 52172.99
B148: GUANAJUATO | C148: FIRG871015PB5 | D148: FIRG871015MGTGMB07 | E148: GABRIELA FIGUEROA RAMIREZ | F148: 11DPT0005M | G148: 0 | H148: 0 | I148: 0 | J148: 1 | K148: 0 | L148: 0 | M148: 0 | N148: 0 | O148: 0 | P148: 0 | Q148: 0 | R148: 0 | S148: 0 | T148: 0 | U148: 0 | V148: 1 | W148: 0 | X148: 0 | Y148: 34655.26
B149: GUANAJUATO | C149: GOAA770911HT1 | D149: GOAA770911MGTMLN09 | E149: ANA ROSA GOMEZ ALBA | F149: 11DPT0005M | G149: 0 | H149: 0 | I149: 0 | J149: 1 | K149: 0 | L149: 0 | M149: 0 | N149: 0 | O149: 0 | P149: 0 | Q149: 0 | R149: 0 | S149: 0 | T149: 0 | U149: 0 | V149: 1 | W149: 0 | X149: 0 | Y149: 73775.85
B150: GUANAJUATO | C150: GULH680121BP6 | D150: GULH680121HDFTPR01 | E150: HORACIO GUTIERREZ LOPEZ | F150: 11DPT0005M | G150: 0 | H150: 0 | I150: 0 | J150: 1 | K150: 0 | L150: 0 | M150: 0 | N150: 0 | O150: 0 | P150: 0 | Q150: 0 | R150: 0 | S150: 0 | T150: 0 | U150: 0 | V150: 1 | W150: 0 | X150: 0 | Y150: 37374.14
B151: GUANAJUATO | C151: JUMH681213NW0 | D151: JUMH681213HGTRGL00 | E151: JOSE HILARIO JUAREZ MAGAÑA | F151: 11DPT0005M | G151: 0 | H151: 0 | I151: 0 | J151: 1 | K151: 0 | L151: 0 | M151: 0 | N151: 0 | O151: 0 | P151: 0 | Q151: 0 | R151: 0 | S151: 0 | T151: 0 | U151: 0 | V151: 1 | W151: 0 | X151: 0 | Y151: 133046.54
B152: GUANAJUATO | C152: LELE610112FLA | D152: LELE610112MGTMRL09 | E152: ELSA GUADALUPE LEMUS LIRA | F152: 11DPT0005M | G152: 0 | H152: 0 | I152: 0 | J152: 1 | K152: 0 | L152: 0 | M152: 0 | N152: 0 | O152: 0 | P152: 0 | Q152: 0 | R152: 0 | S152: 0 | T152: 0 | U152: 0 | V152: 1 | W152: 0 | X152: 0 | Y152: 118504.74
B153: GUANAJUATO | C153: MEMM670521N64 | D153: MEMM670521MDFDJR03 | E153: MARTHA PATRICIA MEDEL MEJIA | F153: 11DPT0005M | G153: 0 | H153: 0 | I153: 0 | J153: 1 | K153: 0 | L153: 0 | M153: 0 | N153: 0 | O153: 0 | P153: 0 | Q153: 0 | R153: 0 | S153: 0 | T153: 0 | U153: 0 | V153: 1 | W153: 0 | X153: 0 | Y153: 60754.27
B154: GUANAJUATO | C154: MEGG6410124T0 | D154: MEGG641012MGTDRL06 | E154: GLORIA MEDINA GARCIA | F154: 11DPT0005M | G154: 0 | H154: 0 | I154: 0 | J154: 1 | K154: 0 | L154: 0 | M154: 0 | N154: 0 | O154: 0 | P154: 0 | Q154: 0 | R154: 0 | S154: 0 | T154: 0 | U154: 0 | V154: 1 | W154: 0 | X154: 0 | Y154: 49490.88
B155: GUANAJUATO | C155: MORM6501066X7 | D155: MORM650106HGTRSL00 | E155: MELCHOR BENITO MORENO ROSALES | F155: 11DPT0005M | G155: 0 | H155: 0 | I155: 0 | J155: 1 | K155: 0 | L155: 0 | M155: 0 | N155: 0 | O155: 0 | P155: 0 | Q155: 0 | R155: 0 | S155: 0 | T155: 0 | U155: 0 | V155: 1 | W155: 0 | X155: 0 | Y155: 109556.88
B156: GUANAJUATO | C156: NIMA711025LJ1 | D156: NIMA711025MGTTRL07 | E156: ALICIA NIETO MARTINEZ | F156: 11DPT0005M | G156: 0 | H156: 0 | I156: 0 | J156: 1 | K156: 0 | L156: 0 | M156: 0 | N156: 0 | O156: 0 | P156: 0 | Q156: 0 | R156: 0 | S156: 0 | T156: 0 | U156: 0 | V156: 1 | W156: 0 | X156: 0 | Y156: 76128.14
B157: GUANAJUATO | C157: OUGM7012272G3 | D157: OUGM701227MGTRRN03 | E157: MONICA ORDUÑA GARCIA | F157: 11DPT0005M | G157: 0 | H157: 0 | I157: 0 | J157: 1 | K157: 0 | L157: 0 | M157: 0 | N157: 0 | O157: 0 | P157: 0 | Q157: 0 | R157: 0 | S157: 0 | T157: 0 | U157: 0 | V157: 1 | W157: 0 | X157: 0 | Y157: 38701.74
B158: GUANAJUATO | C158: PAGM5802105H5 | D158: PAGM580210HNTLRT06 | E158: MATIAS PALOMARES GARCIA | F158: 11DPT0005M | G158: 0 | H158: 0 | I158: 0 | J158: 1 | K158: 0 | L158: 0 | M158: 0 | N158: 0 | O158: 0 | P158: 0 | Q158: 0 | R158: 0 | S158: 0 | T158: 0 | U158: 0 | V158: 1 | W158: 0 | X158: 0 | Y158: 37487.95
B159: GUANAJUATO | C159: PIAR680730PSA | D159: PIAR680730MGTRGG01 | E159: MARIA REGINA PRIETO AGUILAR | F159: 11DPT0005M | G159: 0 | H159: 0 | I159: 0 | J159: 1 | K159: 0 | L159: 0 | M159: 0 | N159: 0 | O159: 0 | P159: 0 | Q159: 0 | R159: 0 | S159: 0 | T159: 0 | U159: 0 | V159: 1 | W159: 0 | X159: 0 | Y159: 93894.9
B160: GUANAJUATO | C160: RAFA620326696 | D160: RAFA620326HGTMNN00 | E160: JOSE ANTONIO RAMIREZ FUENTES | F160: 11DPT0005M | G160: 0 | H160: 0 | I160: 0 | J160: 1 | K160: 0 | L160: 0 | M160: 0 | N160: 0 | O160: 0 | P160: 0 | Q160: 0 | R160: 0 | S160: 0 | T160: 0 | U160: 0 | V160: 1 | W160: 0 | X160: 0 | Y160: 137986.64
B161: GUANAJUATO | C161: RORF650224FV1 | D161: RORF650224HDFDDR03 | E161: FERNANDO RODRIGUEZ RODRIGUEZ | F161: 11DPT0005M | G161: 0 | H161: 0 | I161: 0 | J161: 1 | K161: 0 | L161: 0 | M161: 0 | N161: 0 | O161: 0 | P161: 0 | Q161: 0 | R161: 0 | S161: 0 | T161: 0 | U161: 0 | V161: 1 | W161: 0 | X161: 0 | Y161: 39770.75
B162: GUANAJUATO | C162: SABM631225F45 | D162: SABM631225HGTVRR06 | E162: MARTIN SALVADOR SAAVEDRA BRAVO | F162: 11DPT0005M | G162: 0 | H162: 0 | I162: 0 | J162: 1 | K162: 0 | L162: 0 | M162: 0 | N162: 0 | O162: 0 | P162: 0 | Q162: 0 | R162: 0 | S162: 0 | T162: 0 | U162: 0 | V162: 1 | W162: 0 | X162: 0 | Y162: 38819.66
B163: GUANAJUATO | C163: SATR640529JN3 | D163: SATR640529HGTLRB08 | E163: RUBEN SALAZAR TORRES | F163: 11DPT0005M | G163: 0 | H163: 0 | I163: 0 | J163: 1 | K163: 0 | L163: 0 | M163: 0 | N163: 0 | O163: 0 | P163: 0 | Q163: 0 | R163: 0 | S163: 0 | T163: 0 | U163: 0 | V163: 1 | W163: 0 | X163: 0 | Y163: 60485.82
B164: GUANAJUATO | C164: SIFB790507EM8 | D164: SIFB790507HGTRRR00 | E164: BRAULIO ISAAC SIERRA FERREYRA | F164: 11DPT0005M | G164: 0 | H164: 0 | I164: 0 | J164: 1 | K164: 0 | L164: 0 | M164: 0 | N164: 0 | O164: 0 | P164: 0 | Q164: 0 | R164: 0 | S164: 0 | T164: 0 | U164: 0 | V164: 1 | W164: 0 | X164: 0 | Y164: 105768.68
B165: GUANAJUATO | C165: VACY6607278R7 | D165: VACY660727MGTRSL08 | E165: YOLANDA VARGAS CASTILLO | F165: 11DPT0005M | G165: 0 | H165: 0 | I165: 0 | J165: 1 | K165: 0 | L165: 0 | M165: 0 | N165: 0 | O165: 0 | P165: 0 | Q165: 0 | R165: 0 | S165: 0 | T165: 0 | U165: 0 | V165: 1 | W165: 0 | X165: 0 | Y165: 92347.11
B166: GUANAJUATO | C166: VAGC6606185V3 | D166: VAGC660618MGTRRN09 | E166: CANDELARIA VARGAS GARCIA | F166: 11DPT0005M | G166: 0 | H166: 0 | I166: 0 | J166: 1 | K166: 0 | L166: 0 | M166: 0 | N166: 0 | O166: 0 | P166: 0 | Q166: 0 | R166: 0 | S166: 0 | T166: 0 | U166: 0 | V166: 1 | W166: 0 | X166: 0 | Y166: 35653.04
B167: GUANAJUATO | C167: VALN7508285U9 | D167: VALN750828MGTZMR00 | E167: NORMA ADRIANA VAZQUEZ LOMELI | F167: 11DPT0005M | G167: 0 | H167: 0 | I167: 0 | J167: 1 | K167: 0 | L167: 0 | M167: 0 | N167: 0 | O167: 0 | P167: 0 | Q167: 0 | R167: 0 | S167: 0 | T167: 0 | U167: 0 | V167: 1 | W167: 0 | X167: 0 | Y167: 57982.79
B168: GUANAJUATO | C168: AUPM640422KR2 | D168: AUPM640422HGTGLR03 | E168: MARTIN AGUIRRE PALMERIN | F168: 11DPT0004N | G168: 0 | H168: 0 | I168: 0 | J168: 1 | K168: 0 | L168: 0 | M168: 0 | N168: 0 | O168: 0 | P168: 0 | Q168: 0 | R168: 0 | S168: 0 | T168: 0 | U168: 0 | V168: 1 | W168: 0 | X168: 0 | Y168: 58800.65
B169: GUANAJUATO | C169: AACG691218L13 | D169: AACG691218MMNLSR08 | E169: GRACIELA ALVAREZ CASTRO | F169: 11DPT0004N | G169: 0 | H169: 0 | I169: 0 | J169: 1 | K169: 0 | L169: 0 | M169: 0 | N169: 0 | O169: 0 | P169: 0 | Q169: 0 | R169: 0 | S169: 0 | T169: 0 | U169: 0 | V169: 1 | W169: 0 | X169: 0 | Y169: 65334.74
B170: GUANAJUATO | C170: DIJL7203079A3 | D170: DIJL720307MGTGCR01 | E170: MA. DE LOURDES DIEGO JACOBO | F170: 11DPT0004N | G170: 0 | H170: 0 | I170: 0 | J170: 1 | K170: 0 | L170: 0 | M170: 0 | N170: 0 | O170: 0 | P170: 0 | Q170: 0 | R170: 0 | S170: 0 | T170: 0 | U170: 0 | V170: 1 | W170: 0 | X170: 0 | Y170: 50030.94
B171: GUANAJUATO | C171: GACR6704153I2 | D171: GACR670415MGTRRT06 | E171: MARIA RITA GARCIA CERRATO | F171: 11DPT0004N | G171: 0 | H171: 0 | I171: 0 | J171: 1 | K171: 0 | L171: 0 | M171: 0 | N171: 0 | O171: 0 | P171: 0 | Q171: 0 | R171: 0 | S171: 0 | T171: 0 | U171: 0 | V171: 1 | W171: 0 | X171: 0 | Y171: 50067.44
B172: GUANAJUATO | C172: GARS670416A54 | D172: GARS670416MGTRYL05 | E172: SILVIA GARCIA REYES | F172: 11DPT0004N | G172: 0 | H172: 0 | I172: 0 | J172: 1 | K172: 0 | L172: 0 | M172: 0 | N172: 0 | O172: 0 | P172: 0 | Q172: 0 | R172: 0 | S172: 0 | T172: 0 | U172: 0 | V172: 1 | W172: 0 | X172: 0 | Y172: 93011.18
B173: GUANAJUATO | C173: GAZE690718GX3 | D173: GAZE690718MGTRVL07 | E173: ELIZABETH GARCIA ZAVALA | F173: 11DPT0004N | G173: 0 | H173: 0 | I173: 0 | J173: 1 | K173: 0 | L173: 0 | M173: 0 | N173: 0 | O173: 0 | P173: 0 | Q173: 0 | R173: 0 | S173: 0 | T173: 0 | U173: 0 | V173: 1 | W173: 0 | X173: 0 | Y173: 51595.4
B174: GUANAJUATO | C174: GOGE730923ME8 | D174: GOGE730923MMNNNL00 | E174: ELIZABETH GONZALEZ GONZALEZ | F174: 11DPT0004N | G174: 0 | H174: 0 | I174: 0 | J174: 1 | K174: 0 | L174: 0 | M174: 0 | N174: 0 | O174: 0 | P174: 0 | Q174: 0 | R174: 0 | S174: 0 | T174: 0 | U174: 0 | V174: 1 | W174: 0 | X174: 0 | Y174: 45583.59
B175: GUANAJUATO | C175: LOGM731124S65 | D175: LOGM731124MMNPZN04 | E175: MONICA IVETT LOPEZ GUZMAN | F175: 11DPT0004N | G175: 0 | H175: 0 | I175: 0 | J175: 1 | K175: 0 | L175: 0 | M175: 0 | N175: 0 | O175: 0 | P175: 0 | Q175: 0 | R175: 0 | S175: 0 | T175: 0 | U175: 0 | V175: 1 | W175: 0 | X175: 0 | Y175: 114908.17
B176: GUANAJUATO | C176: LOGY890331RG1 | D176: LOGY890331MGTPZN04 | E176: YANNET LOPEZ GUZMAN | F176: 11DPT0004N | G176: 0 | H176: 0 | I176: 0 | J176: 1 | K176: 0 | L176: 0 | M176: 0 | N176: 0 | O176: 0 | P176: 0 | Q176: 0 | R176: 0 | S176: 0 | T176: 0 | U176: 0 | V176: 1 | W176: 0 | X176: 0 | Y176: 37538.14
B177: GUANAJUATO | C177: LURR5303156L3 | D177: LURR530315HGTNMY04 | E177: RAYMUNDO LUNA RAMIREZ | F177: 11DPT0004N | G177: 0 | H177: 0 | I177: 0 | J177: 1 | K177: 0 | L177: 0 | M177: 0 | N177: 0 | O177: 0 | P177: 0 | Q177: 0 | R177: 0 | S177: 0 | T177: 0 | U177: 0 | V177: 1 | W177: 0 | X177: 0 | Y177: 296731.3
B178: GUANAJUATO | C178: MEGR631011V43 | D178: MEGR631011MGTNRS04 | E178: ROSA MENDEZ GARCIA | F178: 11DPT0005M | G178: 0 | H178: 0 | I178: 0 | J178: 1 | K178: 0 | L178: 0 | M178: 0 | N178: 0 | O178: 0 | P178: 0 | Q178: 0 | R178: 0 | S178: 0 | T178: 0 | U178: 0 | V178: 1 | W178: 0 | X178: 0 | Y178: 42764.34
B179: GUANAJUATO | C179: MORM731010QZ9 | D179: MORM731010MVZLZR03 | E179: MIRSA MARICELA MOLGORA RAZO | F179: 11DPT0008J | G179: 0 | H179: 0 | I179: 0 | J179: 0 | K179: 0 | L179: 0 | M179: 0 | N179: 0 | O179: 0 | P179: 0 | Q179: 0 | R179: 0 | S179: 1 | T179: 0 | U179: 0 | V179: 1 | W179: 0 | X179: 0 | Y179: 159912.9
B180: GUANAJUATO | C180: OEVL650213T59 | D180: OEVL650213MGTRLR01 | E180: LAURA INES ORTEGA VALADEZ | F180: 11DPT0004N | G180: 0 | H180: 0 | I180: 0 | J180: 1 | K180: 0 | L180: 0 | M180: 0 | N180: 0 | O180: 0 | P180: 0 | Q180: 0 | R180: 0 | S180: 0 | T180: 0 | U180: 0 | V180: 1 | W180: 0 | X180: 0 | Y180: 134064.75
B181: GUANAJUATO | C181: PAGR7307144R1 | D181: PAGR730714MGTNMF00 | E181: MARIA DEL REFUGIO PANTOJA GOMEZ | F181: 11DPT0004N | G181: 0 | H181: 0 | I181: 0 | J181: 1 | K181: 0 | L181: 0 | M181: 0 | N181: 0 | O181: 0 | P181: 0 | Q181: 0 | R181: 0 | S181: 0 | T181: 0 | U181: 0 | V181: 1 | W181: 0 | X181: 0 | Y181: 49121.65
B182: GUANAJUATO | C182: SAHO620602LB0 | D182: SAHO620602HSRLRS06 | E182: OSMAN SALAZAR HERNANDEZ | F182: 11DPT0004N | G182: 0 | H182: 0 | I182: 0 | J182: 1 | K182: 0 | L182: 0 | M182: 0 | N182: 0 | O182: 0 | P182: 0 | Q182: 0 | R182: 0 | S182: 0 | T182: 0 | U182: 0 | V182: 1 | W182: 0 | X182: 0 | Y182: 34625.39
B183: GUANAJUATO | C183: SOPA800206QN0 | D183: SOPA800206HMCRRB02 | E183: ABNER ISAI SORIA PEREZ | F183: 11DPT0004N | G183: 0 | H183: 0 | I183: 0 | J183: 1 | K183: 0 | L183: 0 | M183: 0 | N183: 0 | O183: 0 | P183: 0 | Q183: 0 | R183: 0 | S183: 0 | T183: 0 | U183: 0 | V183: 1 | W183: 0 | X183: 0 | Y183: 73226.75
B184: GUANAJUATO | C184: TAAS6205308FA | D184: TAAS620530MJCPLR01 | E184: SARA TAPIA ALCANTARA | F184: 11DPT0004N | G184: 0 | H184: 0 | I184: 0 | J184: 1 | K184: 0 | L184: 0 | M184: 0 | N184: 0 | O184: 0 | P184: 0 | Q184: 0 | R184: 0 | S184: 0 | T184: 0 | U184: 0 | V184: 1 | W184: 0 | X184: 0 | Y184: 48773.36
B185: GUANAJUATO | C185: VASO730804UX2 | D185: VASO730804HGTRTC00 | E185: OCTAVIO VARGAS SOTO | F185: 11DPT0004N | G185: 0 | H185: 0 | I185: 0 | J185: 1 | K185: 0 | L185: 0 | M185: 0 | N185: 0 | O185: 0 | P185: 0 | Q185: 0 | R185: 0 | S185: 0 | T185: 0 | U185: 0 | V185: 1 | W185: 0 | X185: 0 | Y185: 120801.08
B186: GUANAJUATO | C186: AARL760126331 | D186: AARL760126HGTLMN14 | E186: LEONARDO ISRAEL ALVAREZ ROMO | F186: 11DPT0006L | G186: 0 | H186: 0 | I186: 0 | J186: 1 | K186: 0 | L186: 0 | M186: 0 | N186: 0 | O186: 0 | P186: 0 | Q186: 0 | R186: 0 | S186: 0 | T186: 0 | U186: 0 | V186: 1 | W186: 0 | X186: 0 | Y186: 44714.96
B187: GUANAJUATO | C187: AALS670904235 | D187: AALS670904MGTNPL09 | E187: SILVIA ANAYA LOPEZ | F187: 11DPT0006L | G187: 0 | H187: 0 | I187: 0 | J187: 1 | K187: 0 | L187: 0 | M187: 0 | N187: 0 | O187: 0 | P187: 0 | Q187: 0 | R187: 0 | S187: 0 | T187: 0 | U187: 0 | V187: 1 | W187: 0 | X187: 0 | Y187: 86971.09
B188: GUANAJUATO | C188: AERG571209NWA | D188: AERG571209HGTRML09 | E188: GILBERTO ARREOLA ROMERO | F188: 11DPT0006L | G188: 0 | H188: 0 | I188: 0 | J188: 1 | K188: 0 | L188: 0 | M188: 0 | N188: 0 | O188: 0 | P188: 0 | Q188: 0 | R188: 0 | S188: 0 | T188: 0 | U188: 0 | V188: 1 | W188: 0 | X188: 0 | Y188: 21502.29
B189: GUANAJUATO | C189: CIGP680809983 | D189: CIGP680809HGTDRB07 | E189: PABLO MARTIN CID GARCIA | F189: 11DPT0006L | G189: 0 | H189: 0 | I189: 0 | J189: 1 | K189: 0 | L189: 0 | M189: 0 | N189: 0 | O189: 0 | P189: 0 | Q189: 0 | R189: 0 | S189: 0 | T189: 0 | U189: 0 | V189: 1 | W189: 0 | X189: 0 | Y189: 123222.03
B190: GUANAJUATO | C190: EIMJ880812BK0 | D190: EIMJ880812MGTLRH07 | E190: JHOANA IVON ELIZALDE MARTINEZ | F190: 11DPT0006L | G190: 0 | H190: 0 | I190: 0 | J190: 1 | K190: 0 | L190: 0 | M190: 0 | N190: 0 | O190: 0 | P190: 0 | Q190: 0 | R190: 0 | S190: 0 | T190: 0 | U190: 0 | V190: 1 | W190: 0 | X190: 0 | Y190: 34339.1
B191: GUANAJUATO | C191: EAMG8704104G8 | D191: EAMG870410MGTSRR00 | E191: GRECIA ROXANNA ESPARZA MARES | F191: 11DPT0006L | G191: 0 | H191: 0 | I191: 0 | J191: 1 | K191: 0 | L191: 0 | M191: 0 | N191: 0 | O191: 0 | P191: 0 | Q191: 0 | R191: 0 | S191: 0 | T191: 0 | U191: 0 | V191: 1 | W191: 0 | X191: 0 | Y191: 38012.44
B192: GUANAJUATO | C192: GUFO930509HR3 | D192: GUFO930509MGTVRL06 | E192: OLIVIA GUEVARA FARFAN | F192: 11DPT0006L | G192: 0 | H192: 0 | I192: 0 | J192: 1 | K192: 0 | L192: 0 | M192: 0 | N192: 0 | O192: 0 | P192: 0 | Q192: 0 | R192: 0 | S192: 0 | T192: 0 | U192: 0 | V192: 1 | W192: 0 | X192: 0 | Y192: 36512.73
B193: GUANAJUATO | C193: HEGN8708165Y4 | D193: HEGN870816MGTRRY05 | E193: NAYELI HERREJON GUERRERO | F193: 11DPT0006L | G193: 0 | H193: 0 | I193: 0 | J193: 1 | K193: 0 | L193: 0 | M193: 0 | N193: 0 | O193: 0 | P193: 0 | Q193: 0 | R193: 0 | S193: 0 | T193: 0 | U193: 0 | V193: 1 | W193: 0 | X193: 0 | Y193: 35872.87
B194: GUANAJUATO | C194: JUPA730712HA3 | D194: JUPA730712MGTRRN04 | E194: ANA LAURA JUAREZ PEREZ | F194: 11DPT0006L | G194: 0 | H194: 0 | I194: 0 | J194: 1 | K194: 0 | L194: 0 | M194: 0 | N194: 0 | O194: 0 | P194: 0 | Q194: 0 | R194: 0 | S194: 0 | T194: 0 | U194: 0 | V194: 1 | W194: 0 | X194: 0 | Y194: 52059.57
B195: GUANAJUATO | C195: LOAP6711257L7 | D195: LOAP671125HGTPGB09 | E195: JOSE PABLO LOPEZ AGUIRRE | F195: 11DPT0006L | G195: 0 | H195: 0 | I195: 0 | J195: 1 | K195: 0 | L195: 0 | M195: 0 | N195: 0 | O195: 0 | P195: 0 | Q195: 0 | R195: 0 | S195: 0 | T195: 0 | U195: 0 | V195: 1 | W195: 0 | X195: 0 | Y195: 43988.12
B196: GUANAJUATO | C196: MAFJ5906036T8 | D196: MAFJ590603HGTRRN00 | E196: JUAN MANUEL MARTINEZ FRIAS | F196: 11DPT0006L | G196: 0 | H196: 0 | I196: 0 | J196: 1 | K196: 0 | L196: 0 | M196: 0 | N196: 0 | O196: 0 | P196: 0 | Q196: 0 | R196: 0 | S196: 0 | T196: 0 | U196: 0 | V196: 1 | W196: 0 | X196: 0 | Y196: 51470.81
B197: GUANAJUATO | C197: MOSJ790615LD6 | D197: MOSJ790615HGTLNN00 | E197: JUAN MOLINA SANCHEZ | F197: 11DPT0006L | G197: 0 | H197: 0 | I197: 0 | J197: 1 | K197: 0 | L197: 0 | M197: 0 | N197: 0 | O197: 0 | P197: 0 | Q197: 0 | R197: 0 | S197: 0 | T197: 0 | U197: 0 | V197: 1 | W197: 0 | X197: 0 | Y197: 40802.15
B198: GUANAJUATO | C198: MOSP780508DF7 | D198: MOSP780508HGTLND02 | E198: PEDRO MOLINA SANCHEZ | F198: 11DPT0006L | G198: 0 | H198: 0 | I198: 0 | J198: 1 | K198: 0 | L198: 0 | M198: 0 | N198: 0 | O198: 0 | P198: 0 | Q198: 0 | R198: 0 | S198: 0 | T198: 0 | U198: 0 | V198: 1 | W198: 0 | X198: 0 | Y198: 48340.09
B199: GUANAJUATO | C199: NAVS621206356 | D199: NAVS621206MGTVLN00 | E199: SANDRA JUANA NAVA VELAZQUEZ | F199: 11DPT0006L | G199: 0 | H199: 0 | I199: 0 | J199: 1 | K199: 0 | L199: 0 | M199: 0 | N199: 0 | O199: 0 | P199: 0 | Q199: 0 | R199: 0 | S199: 0 | T199: 0 | U199: 0 | V199: 1 | W199: 0 | X199: 0 | Y199: 131602.7
B200: GUANAJUATO | C200: QUDW870430HH4 | D200: QUDW870430MGTNMN07 | E200: WENDY YAZMIN QUINTANA DOMINGUEZ | F200: 11DPT0006L | G200: 0 | H200: 0 | I200: 0 | J200: 1 | K200: 0 | L200: 0 | M200: 0 | N200: 0 | O200: 0 | P200: 0 | Q200: 0 | R200: 0 | S200: 0 | T200: 0 | U200: 0 | V200: 1 | W200: 0 | X200: 0 | Y200: 67139.43
B201: GUANAJUATO | C201: SAMG651113CLA | D201: SAMG651113MGTVDD08 | E201: MARIA GUADALUPE SAAVEDRA MEDRANO | F201: 11DPT0006L | G201: 0 | H201: 0 | I201: 0 | J201: 1 | K201: 0 | L201: 0 | M201: 0 | N201: 0 | O201: 0 | P201: 0 | Q201: 0 | R201: 0 | S201: 0 | T201: 0 | U201: 0 | V201: 1 | W201: 0 | X201: 0 | Y201: 47823.66
B202: GUANAJUATO | C202: SIRO600318LE2 | D202: SIRO600318HGTRDC04 | E202: JOSE OCTAVIO SIERRA RODRIGUEZ | F202: 11DPT0006L | G202: 0 | H202: 0 | I202: 0 | J202: 1 | K202: 0 | L202: 0 | M202: 0 | N202: 0 | O202: 0 | P202: 0 | Q202: 0 | R202: 0 | S202: 0 | T202: 0 | U202: 0 | V202: 1 | W202: 0 | X202: 0 | Y202: 97207.02
B203: GUANAJUATO | C203: TOMP701231IUA | D203: TOMP701231MGTRJT08 | E203: PATRICIA TORRES MEJIA | F203: 11DPT0006L | G203: 0 | H203: 0 | I203: 0 | J203: 1 | K203: 0 | L203: 0 | M203: 0 | N203: 0 | O203: 0 | P203: 0 | Q203: 0 | R203: 0 | S203: 0 | T203: 0 | U203: 0 | V203: 1 | W203: 0 | X203: 0 | Y203: 50703.07
B204: GUANAJUATO | C204: AABC720527RL6 | D204: AABC720527HGTLRR03 | E204: CARLOS ALVARADO BARRIOS | F204: 11DPT0009I | G204: 0 | H204: 0 | I204: 0 | J204: 1 | K204: 0 | L204: 0 | M204: 0 | N204: 0 | O204: 0 | P204: 0 | Q204: 0 | R204: 0 | S204: 0 | T204: 0 | U204: 0 | V204: 1 | W204: 0 | X204: 0 | Y204: 49402.17
B205: GUANAJUATO | C205: COCM710215JF9 | D205: COCM710215HMNBMR04 | E205: MARIO COBIAN CAMACHO | F205: 11DPT0009I | G205: 0 | H205: 0 | I205: 0 | J205: 1 | K205: 0 | L205: 0 | M205: 0 | N205: 0 | O205: 0 | P205: 0 | Q205: 0 | R205: 0 | S205: 0 | T205: 0 | U205: 0 | V205: 1 | W205: 0 | X205: 0 | Y205: 124813.04
B206: GUANAJUATO | C206: EICA641219IS3 | D206: EICA641219MGTLRL01 | E206: ALTAGRACIA ELIZARRARAS CERVANTES | F206: 11DPT0009I | G206: 0 | H206: 0 | I206: 0 | J206: 1 | K206: 0 | L206: 0 | M206: 0 | N206: 0 | O206: 0 | P206: 0 | Q206: 0 | R206: 0 | S206: 0 | T206: 0 | U206: 0 | V206: 1 | W206: 0 | X206: 0 | Y206: 56339.1
B207: GUANAJUATO | C207: EIVC851005GF2 | D207: EIVC851005HGTLRR07 | E207: CARLOS ELIZARRARAS VARGAS | F207: 11DPT0009I | G207: 0 | H207: 0 | I207: 0 | J207: 1 | K207: 0 | L207: 0 | M207: 0 | N207: 0 | O207: 0 | P207: 0 | Q207: 0 | R207: 0 | S207: 0 | T207: 0 | U207: 0 | V207: 1 | W207: 0 | X207: 0 | Y207: 104816.59
B208: GUANAJUATO | C208: EITG6112096F3 | D208: EITG611209MDFSBD05 | E208: MARIA GUADALUPE ESPINOSA TABLEROS | F208: 11DPT0009I | G208: 0 | H208: 0 | I208: 0 | J208: 1 | K208: 0 | L208: 0 | M208: 0 | N208: 0 | O208: 0 | P208: 0 | Q208: 0 | R208: 0 | S208: 0 | T208: 0 | U208: 0 | V208: 1 | W208: 0 | X208: 0 | Y208: 91402.81
B209: GUANAJUATO | C209: GUZA720514FG4 | D209: GUZA720514MDFTVL06 | E209: ALEJANDRA GUTIERREZ ZAVALA | F209: 11DPT0009I | G209: 0 | H209: 0 | I209: 0 | J209: 1 | K209: 0 | L209: 0 | M209: 0 | N209: 0 | O209: 0 | P209: 0 | Q209: 0 | R209: 0 | S209: 0 | T209: 0 | U209: 0 | V209: 1 | W209: 0 | X209: 0 | Y209: 55221.8
B210: GUANAJUATO | C210: LILB720207HV3 | D210: LILB720207MGTNML02 | E210: BLANCA ESTELA LINARES LOMELI | F210: 11DPT0009I | G210: 0 | H210: 0 | I210: 0 | J210: 1 | K210: 0 | L210: 0 | M210: 0 | N210: 0 | O210: 0 | P210: 0 | Q210: 0 | R210: 0 | S210: 0 | T210: 0 | U210: 0 | V210: 1 | W210: 0 | X210: 0 | Y210: 57186.53
B211: GUANAJUATO | C211: MARM6405079G7 | D211: MARM640507HGTGVR02 | E211: MARTIN MAGAÑA RIVERA | F211: 11DPT0009I | G211: 0 | H211: 0 | I211: 0 | J211: 1 | K211: 0 | L211: 0 | M211: 0 | N211: 0 | O211: 0 | P211: 0 | Q211: 0 | R211: 0 | S211: 0 | T211: 0 | U211: 0 | V211: 1 | W211: 0 | X211: 0 | Y211: 122951.56
... 1200 more rows

Sheet II D) 2
B8: Formato: Movimientos de personal por centro de trabajo | H8: GUANAJUATO
B9: Fondo de Aportaciones para la Educación Tecnológica y de Adultos/Colegio Nacional de Educación Profesional Técnica (FAETA/CONALEP) | H9: 1er. TRIMESTRE 2019
B12: nomina | C12: plaza (clave presupuestal) | D12: categoria de la plaza | E12: R.F.C. | F12: CURP | G12: NOMBRE | H12: MOVIMIENTOS
B14: Entidad Federativa | C14: RFC | D14: CURP | E14: Nombbre | F14: Origen Presupuestal de la plazas | G14: Clave de nivel de puesto | H14: Tipo de movimiento
B15: NOMINA ORDINARIA | C15: 113010030233CF0210400.012749 | D15: CF02104 | E15: MORM731010QZ9 | F15: MORM731010MVZLZR03 | G15: MIRSA MARICELA MOLGORA RAZO | H15: BAJA
B16: NOMINA ORDINARIA | C16: 113010030072CF3320600.014320 | D16: CF33206 | E16: MORM6501066X7 | F16: MORM650106HGTRSL00 | G16: MELCHOR BENITO MORENO ROSALES | H16: BAJA
B17: NOMINA ORDINARIA | C17: 113010030030CF1920100.02620 | D17: CF19201 | E17: ROGJ631018GD6 | F17: ROGJ631018HGTMRN04 | G17: JUAN JOSE ROMERO GARCIA | H17: BAJA
B18: NOMINA ORDINARIA | C18: 113010030030CF3420100.02622 | D18: CF34201 | E18: FAAF540219KI2 | F18: FAAF540219MGTRGX06 | G18: MARIA FE FRAUSTO AGUILAR | H18: BAJA
B19: NOMINA ORDINARIA | C19: 113010030030CF3320400.02638 | D19: CF33204 | E19: MAMJ620217DW9 | F19: MAMJ620217HGTRNN03 | G19: JUAN ANTONIO MARTINEZ MONCIBAIS | H19: BAJA
B20: NOMINA ORDINARIA | C20: 113010030072CF2120200.04412 | D20: CF21202 | E20: BASS600608U7A | F20: BASS600608MGTRRL08 | G20: MARIA SOLEDAD ROSA LETICIA BRAVO SERRANO | H20: BAJA
B21: NOMINA ORDINARIA | C21: 113010030302A0320200.018880 | D21: A03202 | E21: ROSJ840320PL5 | F21: ROSJ840320MMCMGL06 | G21: JULIA OYUKI ROMERO SEGURA | H21: BAJA
B22: NOMINA ORDINARIA | C22: 113010030174CF1820100.08093 | D22: CF18201 | E22: RERG910902977 | F22: RERG910902MMNYMB00 | G22: GABRIELA REYES RAMIREZ | H22: BAJA
B23: NOMINA ORDINARIA | C23: 113010030249S0120100.02557 | D23: S01201 | E23: COHM900226H20 | F23: COHM900226MGTRRR01 | G23: MIRIAM CORNEJO HERNANDEZ | H23: ALTA
B24: NOMINA ORDINARIA | C24: 113010030163S0120100.07709 | D24: S01201 | E24: MOMV8811216D9 | F24: MOMV881121MDFNRR01 | G24: VERONICA MONTALVO MARIN | H24: ALTA
B25: NOMINA ORDINARIA | C25: 113010030072S0120100.04417 | D25: S01201 | E25: ZACR791102Q49 | F25: ZACR791102MGTVRB01 | G25: RUBICELIA ZAVALA CORONA | H25: ALTA
B26: NOMINA ORDINARIA | C26: 113010030072CF1820100.04429 | D26: CF18201 | E26: MAVS860804264 | F26: MAVS860804HGTRRN04 | G26: SANTIAGO DE JESUS MARTINEZ VARGAS | H26: ALTA
B27: NOMINA ORDINARIA | C27: 113010030203CF1920100.09188 | D27: CF19201 | E27: RAGC7612134FA | F27: RAGC761213MGTMNL00 | G27: CLAUDIA ELIZET RAMIREZ GONZALEZ | H27: ALTA
B28: NOMINA ORDINARIA | C28: 1130100301283CF3320600.014055 | D28: CF33206 | E28: RULJ790405IT2 | F28: RULJ790405HGTZRL01 | G28: JULIO CESAR RUIZ LARA | H28: ALTA
B29: NOMINA ORDINARIA | C29: 113010030030S0120100.02500 | D29: S01201 | E29: GARH811021LV0 | F29: GARH811021MGRRDY00 | G29: HAYDE GARCIA RUEDA | H29: ALTA
B30: NOMINA ORDINARIA | C30: 113010030203CF3320600.013317 | D30: CF33206 | E30: AAAJ791010988 | F30: AAAJ791010HGTRVL17 | G30: JULIO PAULO ARANDA AVALOS | H30: ALTA
B31: NOMINA ORDINARIA | C31: 113010030030S0120100.02618 | D31: S01201 | E31: MAVA860212JN5 | F31: MAVA860212MGTRLD01 | G31: ADRIANA BERENICE MARTINEZ VELAZQUEZ | H31: ALTA
B32: NOMINA ORDINARIA | C32: 113010030030CF1820200.011099 | D32: CF18202 | E32: FAPG761011AA8 | F32: FAPG761011MGTRRD08 | G32: MA GUADALUPE FRAUSTO PARADA | H32: ALTA
B33: NOMINA ORDINARIA | C33: 113010030029CF3320600.013248 | D33: CF33206 | E33: SAMC7510151E9 | F33: SAMC751015MDFMML09 | G33: CLAUDIA VERONICA SANDOVAL MENDOZA | H33: ALTA
B34: NOMINA ORDINARIA | C34: 113010030302S0120100.018882 | D34: S01201 | E34: MARL950113786 | F34: MARL950113MHGRYR07 | G34: LORENA ANDREA MARTINEZ REYES | H34: ALTA
B44: Total Personas : | C44: 20
B48: Fuente : Información proporcionada por las Entidades Federativas

Sheet II D) 4
B9: Formato: Trabajadores Jubilados en el Periodo | O9: GUANAJUATO
B10: Fondo de Aportaciones para la Educación Tecnológica y de Adultos/Colegio Nacional de Educación Profesional Técnica (FAETA/CONALEP) | O10: 1er. TRIMESTRE 2019
B13: Entidad Federativa | C13: R.F.C. | D13: CURP | E13: NOMBRE | F13: Clave CT | G13: Última(s) ó Penultima(s) Plaza(s) Ocupada(s) (*) | H13: Clave Presupuestal de la Jubilación | O13: Periodo ocupado | Q13: Quincena de inicio de jubilación
H14: Partida Presupuestal | I14: Código de Pago | J14: Clave de Unidad | K14: Clave de Sub Unidad | L14: Clave de Categoría | M14: Horas Semana Mes | N14: Número de Plaza | O14: Inicio | P14: Conclusión
B16: Entidad Federativa | C16: R.F.C. | D16: CURP | E16: NOMBRE | F16: Clave Centro de Trabajo | G16: Última(s) ó Penultima(s) Plaza(s) Ocupada(s) (*) | H16: Partida Presupuestal | I16: Código de Pago | J16: Clave de Unidad | K16: Clave de Sub Unidad | L16: Clave de Categoría | M16: Horas Semana Mes | N16: Número de Plaza | O16: Periodo ocupado Inicio | P16: Periodo ocupado Conclusión | Q16: Quincena de inicio de jubilación
B17: GUANAJUATO | C17: AERG571209NWA | D17: AERG571209HGTRML09 | E17: GILBERTO ARREOLA ROMERO | F17: 11DPT0006L | G17: 1 | H17: 1130 | I17: 1003 | J17: 01 | K17: 63 | L17: S01202 | M17: 00.0 | N17: 7707 | O17: 200102 | P17: 201905 | Q17: 201906
B18: GUANAJUATO | C18: BASS600608U7A | D18: BASS600608MGTRRL08 | E18: MARIA SOLEDAD ROSA LETICIA BRAVO SERRANO | F18: 11DPT0005M | G18: 1 | H18: 1130 | I18: 1003 | J18: 00 | K18: 72 | L18: CF21202 | M18: 00.0 | N18: 4412 | O18: 201706 | P18: 201902 | Q18: 201903
B19: GUANAJUATO | C19: FAAF540219KI2 | D19: FAAF540219MGTRGX06 | E19: MARIA FE FRAUSTO AGUILAR | F19: 11DPT0003O | G19: 1 | H19: 1130 | I19: 1003 | J19: 00 | K19: 30 | L19: CF34201 | M19: 00.0 | N19: 2622 | O19: 198601 | P19: 201901 | Q19: 201902
B20: GUANAJUATO | C20: MAMJ620217DW9 | D20: MAMJ620217HGTRNN03 | E20: JUAN ANTONIO MARTINEZ MONCIBAIS | F20: 11DPT0003O | G20: 1 | H20: 1130 | I20: 1003 | J20: 00 | K20: 30 | L20: CF33204 | M20: 00.0 | N20: 2638 | O20: 198603 | P20: 201902 | Q20: 201903
B21: GUANAJUATO | C21: ROGJ631018GD6 | D21: ROGJ631018HGTMRN04 | E21: JUAN JOSE ROMERO GARCIA | F21: 11DPT0003O | G21: 1 | H21: 1130 | I21: 1003 | J21: 00 | K21: 30 | L21: CF19201 | M21: 00.0 | N21: 2620 | O21: 198913 | P21: 201901 | Q21: 201902
B22: GUANAJUATO | C22: RAHJ6410105C3 | D22: RAHJ641010MGTMRS04 | E22: MA. DE JESUS RAMIREZ HORTA | F22: 11DPT0007K | G22: 1 | H22: 1130 | I22: 1003 | J22: 02 | K22: 03 | L22: CF33206 | M22: 00.0 | N22: 13317 | O22: 199113 | P22: 201902 | Q22: 201903
B23: GUANAJUATO | C23: SAHL6309234X5 | D23: SAHL630923HGTNRS00 | E23: LUIS MIGUEL SANCHEZ HERNANDEZ | F23: 11DPT0002P | G23: 1 | H23: 1130 | I23: 1003 | J23: 00 | K23: 29 | L23: CF33206 | M23: 00.0 | N23: 13248 | O23: 198703 | P23: 201824 | Q23: 201901
B24: GUANAJUATO | C24: AEGJ5311191A4 | D24: AEGJ531119HGTSRR09 | E24: JORGE ASCENCIO GARCIA | F24: 11DPT0003O | G24: 1 | H24: 1130 | I24: 1003 | J24: 00 | K24: 30 | L24: S01202 | M24: 00.0 | N24: 2650 | O24: 199216 | P24: 201824 | Q24: 201901
B25: GUANAJUATO | C25: LURR5303156L3 | D25: LURR530315HGTNMY04 | E25: RAYMUNDO LUNA RAMIREZ | F25: 11DPT0004N | G25: 1 | H25: 1130 | I25: 1003 | J25: 01 | K25: 28 | L25: CF33206 | M25: 00.0 | N25: 14055 | O25: 199719 | P25: 201824 | Q25: 201901
B26: Total Personas : | C26: 9 | L26: Total Plazas : | N26: 9
B30: Fuente : Información proporcionada por las Entidades Federativas
B31: (*) Si el trabajador se jubila con más de una clave presupuestal, por cada plaza se debe llenar un registro hasta que se haya informado acerca de todas las plazas del trabajador.

Sheet II D) 4 A
B9: Formato: Trabajadores que Tramitaron Licencia Prejubilatoria en el Periodo | Q9: GUANAJUATO
B10: Fondo de Aportaciones para la Educación Tecnológica y de Adultos/Colegio Nacional de Educación Profesional Técnica (FAETA/CONALEP) | Q10: 1er. TRIMESTRE 2019
B13: Entidad Federativa | C13: R.F.C. | D13: CURP | E13: NOMBRE | F13: Clave integrada | G13: Clave Presupuestal | N13: Periodo Licencia | P13: Percepciones pagadas con Presupuesto Federal en el Periodo reportado* | Q13: Percepciones pagadas con Presupuesto de otra Fuente en el Periodo reportado* | R13: Clave CT Origen
G14: Partida Presupuestal | H14: Código de Pago | I14: Clave de Unidad | J14: Clave de Sub Unidad | K14: Clave de Categoría | L14: Horas Semana Mes | M14: Número de Plaza | N14: Inicio | O14: Conclusión
B16: Entidad Federativa | C16: R.F.C. | D16: CURP | E16: NOMBRE | F16: Clave integrada | G16: Partida Presupuestal | H16: Código de Pago | I16: Clave de Unidad | J16: Clave de Sub Unidad | K16: Clave de Categoría | L16: Horas Semana Mes | M16: Número de Plaza | N16: Periodo Licencia Inicio | O16: Periodo Licencia Conclusión | P16: Percepciones pagadas con Presupuesto Federal en el Periodo reportado* | Q16: Percepciones pagadas con Presupuesto de otra Fuente en el Periodo reportado* | R16: Clave CT Origen
B17: GUANAJUATO | C17: AUDM660425P52 | D17: AUDM660425MGTGRR18 | E17: MIRIAM AGUILAR DURON | F17: 113010030028 CF3320600.073561 | G17: 1130 | H17: 1003 | I17: 00 | J17: 28 | K17: CF33206 | L17: 00.0 | M17: 73561 | N17: 20190301 | O17: 20190531 | P17: 39461.8 | Q17: 0 | R17: 11DPT0001Q
B18: GUANAJUATO | C18: SABA620417HF9 | D18: SABA620417HVZNTN05 | E18: ANICETO SANTIAGO BAUTISTA | F18: 113010030233CF3320600.013504 | G18: 1130 | H18: 1003 | I18: 02 | J18: 33 | K18: CF33206 | L18: 00.0 | M18: 13504 | N18: 20190316 | O18: 20190615 | P18: 20554.24 | Q18: 0 | R18: 11DPT0008J
B19: GUANAJUATO | C19: FAAF540219KI2 | D19: FAAF540219MGTRGX06 | E19: MARIA FE FRAUSTO AGUILAR | F19: 113010030030CF3420100.02622 | G19: 1130 | H19: 1003 | I19: 00 | J19: 30 | K19: CF34201 | L19: 00.0 | M19: 2622 | N19: 20181116 | O19: 20190115 | P19: 213921.93 | Q19: 0 | R19: 11DPT0003O
B20: GUANAJUATO | C20: MAMJ620217DW9 | D20: MAMJ620217HGTRNN03 | E20: JUAN ANTONIO MARTINEZ MONCIBAIS | F20: 113010030030CF3320400.02638 | G20: 1130 | H20: 1003 | I20: 00 | J20: 30 | K20: CF33204 | L20: 00.0 | M20: 2638 | N20: 20181101 | O20: 20190131 | P20: 358798.96 | Q20: 0 | R20: 11DPT0003O
B21: GUANAJUATO | C21: ROGJ631018GD6 | D21: ROGJ631018HGTMRN04 | E21: JUAN JOSE ROMERO GARCIA | F21: 113010030030CF1920100.02620 | G21: 1130 | H21: 1003 | I21: 00 | J21: 30 | K21: CF19201 | L21: 00.0 | M21: 2620 | N21: 20181016 | O21: 20190115 | P21: 191199.3 | Q21: 0 | R21: 11DPT0003O
B22: GUANAJUATO | C22: RAHJ6410105C3 | D22: RAHJ641010MGTMRS04 | E22: MA. DE JESUS RAMIREZ HORTA | F22: 113010030203CF3320600.013317 | G22: 1130 | H22: 1003 | I22: 02 | J22: 03 | K22: CF33206 | L22: 00.0 | M22: 13317 | N22: 20181101 | O22: 20190131 | P22: 440456.17 | Q22: 0 | R22: 11DPT0007K
B23: GUANAJUATO | C23: OEVL650213T59 | D23: OEVL650213MGTRLR01 | E23: LAURA INES ORTEGA VALADEZ | F23: 113010030128CF3320600.014314 | G23: 1130 | H23: 1003 | I23: 01 | J23: 28 | K23: CF33206 | L23: 00.0 | M23: 14314 | N23: 20190216 | O23: 20190515 | P23: 61662.72 | Q23: 0 | R23: 11DPT0004N
B24: GUANAJUATO | C24: AUPM640422KR2 | D24: AUPM640422HGTGLR03 | E24: MARTIN AGUIRRE PALMERIN | F24: 113010030128S0120200.06509 | G24: 1130 | H24: 1003 | I24: 01 | J24: 28 | K24: S01202 | L24: 00.0 | M24: 6509 | N24: 20190201 | O24: 20190430 | P24: 29301.28 | Q24: 0 | R24: 11DPT0004N
B25: GUANAJUATO | C25: RAFA620326696 | D25: RAFA620326HGTMNN00 | E25: JOSE ANTONIO RAMIREZ FUENTES | F25: 113010030072CF3320600.013772 | G25: 1130 | H25: 1003 | I25: 00 | J25: 72 | K25: CF33206 | L25: 00.0 | M25: 13772 | N25: 20190201 | O25: 20190430 | P25: 81119.2 | Q25: 0 | R25: 11DPT0005M
B26: GUANAJUATO | C26: SATR640529JN3 | D26: SATR640529HGTLRB08 | E26: RUBEN SALAZAR TORRES | F26: 113010030072CF1820300.04411 | G26: 1130 | H26: 1003 | I26: 00 | J26: 72 | K26: CF18203 | L26: 00.0 | M26: 4411 | N26: 20190316 | O26: 20190615 | P26: 8602 | Q26: 0 | R26: 11DPT0005M
B27: GUANAJUATO | C27: BASS600608U7A | D27: BASS600608MGTRRL08 | E27: MARIA SOLEDAD ROSA LETICIA BRAVO SERRANO | F27: 113010030072CF2120200.04412 | G27: 1130 | H27: 1003 | I27: 00 | J27: 72 | K27: CF21202 | L27: 00.0 | M27: 4412 | N27: 20181101 | O27: 20190131 | P27: 206153.78 | Q27: 0 | R27: 11DPT0005M
B28: Total Personas : | C28: 11 | K28: Total Plazas : | M28: 11 | N28: Total Pto. Federal | P28: =SUBTOTAL(109,Tabla510[Percepciones pagadas con Presupuesto Federal en el Periodo reportado*]) -> 1651231.38
N30: Total Ppto. Otras Fuentes | Q30: =SUM(Q28:Q29) -> 0
B32: *Total de Percepciones reportadas por la Entidad Federativa como pagadas en el periodo
B33: Fuente : Información proporcionada por las Entidades Federativas

Sheet II D) 6
B10: Formato: Trabajadores Contratados por Honorarios en el Periodo | L10: GUANAJUATO
B11: Fondo de Aportaciones para la Educación Tecnológica y de Adultos/Colegio Nacional de Educación Profesional Técnica (FAETA/CONALEP) | L11: 1er. TRIMESTRE 2019
B14: Entidad Federativa | C14: Clave Centro de Trabajo | D14: R.F.C. | E14: CURP | F14: Nombre | G14: Identificador del Contrato | H14: Equivalencia | J14: Periodo de Contratación | L14: Función | M14: Percepciones pagadas dentro del periodo reportado
H15: Clave de Categoría | I15: Horas Semana Mes | J15: Inicio | K15: Conclusión
B17: Entidad Federativa | C17: Clave Centro de Trabajo | D17: R.F.C. | E17: CURP | F17: Nombre | G17: Identificador del Contrato | H17: Clave de Categoría | I17: Horas Semana Mes | J17: Periodo de Contratación Inicio | K17: Periodo de Contratación Conclusión | L17: Función | M17: Percepciones pagadas dentro del periodo reportado
B20: Total Entidad Federativa Personas : | L20: Subtotal Monto Pagado en el Periodo: | M20: =SUM(M18:M19) -> 0
J23: Total Percepciones : | L23: =+M20 -> 0
B25: Fuente : Información proporcionada por las Entidades Federativas

Sheet II D) 7 1
B9: Formato: Analítico de Categorías / Plazas Autorizadas con su Tabulador | Q9: Entidad Federativa: | R9: GUANAJUATO
B10: Fondo de Aportaciones para la Educación Tecnológica y de Adultos/Colegio Nacional de Educación Profesional Técnica (FAETA/CONALEP) | R10: 1er. TRIMESTRE 2019
B13: Clave Tipo educativo | C13: Clave Nivel educativo | D13: Clave Subnivel educativo | E13: Descripción Nivel / Subnivel | F13: Tipo Financiamiento | G13: Partida Presupuestal | H13: CATEGORIA | K13: Zona Económica | L13: Nivel Puesto | M13: Nivel Sueldo | N13: Tipo Contratación | O13: Monto mensual por plaza jornada | P13: Monto mensual Por Plaza HSM | Q13: Número de Plazas Jornada | R13: Número de Plazas HSM | S13: Monto total autorizado
H14: Tipo de Categoría | I14: Categoría | J14: Descripción
B16: Clave Tipo educativo | C16: Clave Nivel educativo | D16: Clave Subnivel educativo | E16: Descripción Nivel / Subnivel | F16: Tipo Financiamiento | G16: Partida Presupestal | H16: Tipo de Categoría | I16: Categoría | J16: Descripción | K16: Zona Económica | L16: Nivel Puesto | M16: Nivel Sueldo | N16: Tipo Contratación | O16: Monto mensual por plaza jornada | P16: Monto mensual Por Plaza HSM | Q16: Número de Plazas Jornada | R16: Número de Plazas HSM | S16: Monto total autorizado
B17: 3 | C17: 32 | D17: 31 | E17: LICENCIATURA UNIVERSITARIA | F17: 1 | G17: 1130 | H17: 3 | I17: 000000PC | J17: PROFESIONISTA INSTRUCTOR TIPO "C" | K17: A | L17: 000000D1 | M17: 1 | N17: H | O17: 0 | P17: 488.72 | Q17: 0 | R17: 2073 | S17: =+Tabla15[[#This Row],[Número de Plazas HSM]]*Tabla15[[#This Row],[Monto mensual Por Plaza HSM]] -> 1013116.56
B18: 3 | C18: 32 | D18: 31 | E18: LICENCIATURA UNIVERSITARIA | F18: 1 | G18: 1130 | H18: 3 | I18: 000000PB | J18: PROFESIONISTA INSTRUCTOR TIPO "B" | K18: A | L18: 000000D2 | M18: 1 | N18: H | O18: 0 | P18: 423.47 | Q18: 0 | R18: 2700 | S18: =+Tabla15[[#This Row],[Número de Plazas HSM]]*Tabla15[[#This Row],[Monto mensual Por Plaza HSM]] -> 1143369
B19: 3 | C19: 32 | D19: 31 | E19: LICENCIATURA UNIVERSITARIA | F19: 1 | G19: 1130 | H19: 3 | I19: 000000PA | J19: PROFESIONISTA INSTRUCTOR TIPO "A" | K19: A | L19: 000000D3 | M19: 1 | N19: H | O19: 0 | P19: 376.79 | Q19: 0 | R19: 3197 | S19: =+Tabla15[[#This Row],[Número de Plazas HSM]]*Tabla15[[#This Row],[Monto mensual Por Plaza HSM]] -> 1204597.63
B20: 2 | C20: 21 | D20: 20 | E20: PROFESIONAL TÉCNICO | F20: 1 | G20: 1130 | H20: 3 | I20: 000000TA | J20: TÉCNICO INSTRUCTOR "A" | K20: A | L20: 000000D4 | M20: 1 | N20: H | O20: 0 | P20: 277.01 | Q20: 0 | R20: 2304 | S20: =+Tabla15[[#This Row],[Número de Plazas HSM]]*Tabla15[[#This Row],[Monto mensual Por Plaza HSM]] -> 638231.04
B21: 1 | C21: 12 | D21: 4 | E21: PRIMARIA GENERAL | F21: 1 | G21: 1540 | H21: 2 | I21: 00S01201 | J21: ASISTENTE DE SERV. BASICOS | K21: A | L21: 2 | M21: 1 | N21: P | O21: 6630 | P21: =VLOOKUP(Tabla15[[#This Row],[ Categoría]],[2]Hoja2!$B$5:$V$31,16,FALSE) -> 0 | Q21: 68 | R21: 0 | S21: =+Tabla15[[#This Row],[Número de Plazas Jornada]]*Tabla15[[#This Row],[Monto mensual por plaza jornada]] -> 450840
B22: 1 | C22: 12 | D22: 4 | E22: PRIMARIA GENERAL | F22: 1 | G22: 1540 | H22: 2 | I22: 0CF18201 | J22: AUXILIAR DE SEGURIDAD | K22: A | L22: 2 | M22: 1 | N22: P | O22: 6630 | P22: =VLOOKUP(Tabla15[[#This Row],[ Categoría]],[2]Hoja2!$B$5:$V$31,16,FALSE) -> 0 | Q22: 15 | R22: 0 | S22: =+Tabla15[[#This Row],[Número de Plazas Jornada]]*Tabla15[[#This Row],[Monto mensual por plaza jornada]] -> 99450
B23: 1 | C23: 12 | D23: 4 | E23: PRIMARIA GENERAL | F23: 1 | G23: 1540 | H23: 2 | I23: 0CF18202 | J23: OPERADOR DE SERVICIOS BÁSICOS | K23: A | L23: 2 | M23: 1 | N23: P | O23: 6630 | P23: =VLOOKUP(Tabla15[[#This Row],[ Categoría]],[2]Hoja2!$B$5:$V$31,16,FALSE) -> 0 | Q23: 1 | R23: 0 | S23: =+Tabla15[[#This Row],[Número de Plazas Jornada]]*Tabla15[[#This Row],[Monto mensual por plaza jornada]] -> 6630
B24: 1 | C24: 13 | D24: 7 | E24: SECUNDARIA GENERAL | F24: 1 | G24: 1540 | H24: 2 | I24: 00S01202 | J24: AUXILIAR DE SERV. GENERALES | K24: A | L24: 4 | M24: 1 | N24: P | O24: 7224.98 | P24: =VLOOKUP(Tabla15[[#This Row],[ Categoría]],[2]Hoja2!$B$5:$V$31,16,FALSE) -> 0 | Q24: 54 | R24: 0 | S24: =+Tabla15[[#This Row],[Número de Plazas Jornada]]*Tabla15[[#This Row],[Monto mensual por plaza jornada]] -> 390148.92
B25: 1 | C25: 13 | D25: 7 | E25: SECUNDARIA GENERAL | F25: 1 | G25: 1540 | H25: 2 | I25: 0CF34202 | J25: PROMOTOR CULTURAL Y DEP. | K25: A | L25: 5 | M25: 1 | N25: P | O25: 7524.72 | P25: =VLOOKUP(Tabla15[[#This Row],[ Categoría]],[2]Hoja2!$B$5:$V$31,16,FALSE) -> 0 | Q25: 9 | R25: 0 | S25: =+Tabla15[[#This Row],[Número de Plazas Jornada]]*Tabla15[[#This Row],[Monto mensual por plaza jornada]] -> 67722.48
B26: 1 | C26: 13 | D26: 7 | E26: SECUNDARIA GENERAL | F26: 1 | G26: 1540 | H26: 2 | I26: 00A03202 | J26: SECRETARIA "C" | K26: A | L26: 5 | M26: 1 | N26: P | O26: 7524.72 | P26: =VLOOKUP(Tabla15[[#This Row],[ Categoría]],[2]Hoja2!$B$5:$V$31,16,FALSE) -> 0 | Q26: 32 | R26: 0 | S26: =+Tabla15[[#This Row],[Número de Plazas Jornada]]*Tabla15[[#This Row],[Monto mensual por plaza jornada]] -> 240791.04
B27: 2 | C27: 22 | D27: 22 | E27: BACHILLERATO GENERAL | F27: 1 | G27: 1540 | H27: 2 | I27: 0CF34201 | J27: TECNICO BIBLIOTECARIO | K27: A | L27: 6 | M27: 1 | N27: P | O27: 7827.18 | P27: =VLOOKUP(Tabla15[[#This Row],[ Categoría]],[2]Hoja2!$B$5:$V$31,16,FALSE) -> 0 | Q27: 12 | R27: 0 | S27: =+Tabla15[[#This Row],[Número de Plazas Jornada]]*Tabla15[[#This Row],[Monto mensual por plaza jornada]] -> 93926.16
B28: 2 | C28: 22 | D28: 22 | E28: BACHILLERATO GENERAL | F28: 1 | G28: 1540 | H28: 2 | I28: 0ED01201 | J28: TECNICO EN MAT. DIDÁCTICOS | K28: A | L28: 6 | M28: 1 | N28: P | O28: 7827.18 | P28: =VLOOKUP(Tabla15[[#This Row],[ Categoría]],[2]Hoja2!$B$5:$V$31,16,FALSE) -> 0 | Q28: 11 | R28: 0 | S28: =+Tabla15[[#This Row],[Número de Plazas Jornada]]*Tabla15[[#This Row],[Monto mensual por plaza jornada]] -> 86098.98
B29: 2 | C29: 22 | D29: 22 | E29: BACHILLERATO GENERAL | F29: 1 | G29: 1540 | H29: 2 | I29: 0CF19201 | J29: TUTOR ESCOLAR | K29: A | L29: 6 | M29: 1 | N29: P | O29: 7827.18 | P29: =VLOOKUP(Tabla15[[#This Row],[ Categoría]],[2]Hoja2!$B$5:$V$31,16,FALSE) -> 0 | Q29: 15 | R29: 0 | S29: =+Tabla15[[#This Row],[Número de Plazas Jornada]]*Tabla15[[#This Row],[Monto mensual por plaza jornada]] -> 117407.7
B30: 2 | C30: 22 | D30: 22 | E30: BACHILLERATO GENERAL | F30: 1 | G30: 1540 | H30: 2 | I30: 0CF21202 | J30: ASISTENTE ESCOLAR Y S. | K30: A | L30: 7 | M30: 1 | N30: P | O30: 8132.88 | P30: =VLOOKUP(Tabla15[[#This Row],[ Categoría]],[2]Hoja2!$B$5:$V$31,16,FALSE) -> 0 | Q30: 14 | R30: 0 | S30: =+Tabla15[[#This Row],[Número de Plazas Jornada]]*Tabla15[[#This Row],[Monto mensual por plaza jornada]] -> 113860.32
B31: 2 | C31: 22 | D31: 22 | E31: BACHILLERATO GENERAL | F31: 1 | G31: 1540 | H31: 2 | I31: 0CF04201 | J31: SECRETARIA "B" | K31: A | L31: 7 | M31: 1 | N31: P | O31: 8132.88 | P31: =VLOOKUP(Tabla15[[#This Row],[ Categoría]],[2]Hoja2!$B$5:$V$31,16,FALSE) -> 0 | Q31: 14 | R31: 0 | S31: =+Tabla15[[#This Row],[Número de Plazas Jornada]]*Tabla15[[#This Row],[Monto mensual por plaza jornada]] -> 113860.32
B32: 2 | C32: 22 | D32: 22 | E32: BACHILLERATO GENERAL | F32: 1 | G32: 1540 | H32: 2 | I32: 00T08201 | J32: TECNICO EN GRAFICACIÓN | K32: A | L32: 8 | M32: 1 | N32: P | O32: 8439.86 | P32: =VLOOKUP(Tabla15[[#This Row],[ Categoría]],[2]Hoja2!$B$5:$V$31,16,FALSE) -> 0 | Q32: 5 | R32: 0 | S32: =+Tabla15[[#This Row],[Número de Plazas Jornada]]*Tabla15[[#This Row],[Monto mensual por plaza jornada]] -> 42199.3
B33: 2 | C33: 22 | D33: 22 | E33: BACHILLERATO GENERAL | F33: 1 | G33: 1540 | H33: 2 | I33: 0CF33202 | J33: TECNICO EN CONTABILIDAD | K33: A | L33: 9 | M33: 1 | N33: P | O33: 8751.62 | P33: =VLOOKUP(Tabla15[[#This Row],[ Categoría]],[2]Hoja2!$B$5:$V$31,16,FALSE) -> 0 | Q33: 7 | R33: 0 | S33: =+Tabla15[[#This Row],[Número de Plazas Jornada]]*Tabla15[[#This Row],[Monto mensual por plaza jornada]] -> 61261.34
B34: 2 | C34: 22 | D34: 22 | E34: BACHILLERATO GENERAL | F34: 1 | G34: 1540 | H34: 2 | I34: 0CF33203 | J34: TECNICO FINANCIERO | K34: A | L34: 9 | M34: 1 | N34: P | O34: 8751.62 | P34: =VLOOKUP(Tabla15[[#This Row],[ Categoría]],[2]Hoja2!$B$5:$V$31,16,FALSE) -> 0 | Q34: 9 | R34: 0 | S34: =+Tabla15[[#This Row],[Número de Plazas Jornada]]*Tabla15[[#This Row],[Monto mensual por plaza jornada]] -> 78764.58
B35: 2 | C35: 22 | D35: 22 | E35: BACHILLERATO GENERAL | F35: 1 | G35: 1540 | H35: 2 | I35: 0CF18203 | J35: SUPERVISOR DE MTTO | K35: A | L35: 9 | M35: 1 | N35: P | O35: 8751.62 | P35: =VLOOKUP(Tabla15[[#This Row],[ Categoría]],[2]Hoja2!$B$5:$V$31,16,FALSE) -> 0 | Q35: 19 | R35: 0 | S35: =+Tabla15[[#This Row],[Número de Plazas Jornada]]*Tabla15[[#This Row],[Monto mensual por plaza jornada]] -> 166280.78
B36: 2 | C36: 22 | D36: 22 | E36: BACHILLERATO GENERAL | F36: 1 | G36: 1540 | H36: 2 | I36: 00A01801 | J36: ADMINISTRATIVO TEC. ESP. | K36: A | L36: 11 | M36: 1 | N36: P | O36: 9383.96 | P36: =VLOOKUP(Tabla15[[#This Row],[ Categoría]],[2]Hoja2!$B$5:$V$31,16,FALSE) -> 0 | Q36: 10 | R36: 0 | S36: =+Tabla15[[#This Row],[Número de Plazas Jornada]]*Tabla15[[#This Row],[Monto mensual por plaza jornada]] -> 93839.6
B37: 2 | C37: 22 | D37: 22 | E37: BACHILLERATO GENERAL | F37: 1 | G37: 1540 | H37: 2 | I37: 0CF33204 | J37: SUBJEFE TECNICO ESP. | K37: A | L37: 13 | M37: 1 | N37: P | O37: 15477.9 | P37: =VLOOKUP(Tabla15[[#This Row],[ Categoría]],[2]Hoja2!$B$5:$V$31,16,FALSE) -> 0 | Q37: 60 | R37: 0 | S37: =+Tabla15[[#This Row],[Número de Plazas Jornada]]*Tabla15[[#This Row],[Monto mensual por plaza jornada]] -> 928674
B38: 3 | C38: 32 | D38: 31 | E38: LICENCIATURA UNIVERSITARIA | F38: 1 | G38: 1540 | H38: 2 | I38: 0CF33206 | J38: JEFE DE PROYECTO | K38: A | L38: 15 | M38: 1 | N38: P | O38: 23865.14 | P38: =VLOOKUP(Tabla15[[#This Row],[ Categoría]],[2]Hoja2!$B$5:$V$31,16,FALSE) -> 0 | Q38: 81 | R38: 0 | S38: =+Tabla15[[#This Row],[Número de Plazas Jornada]]*Tabla15[[#This Row],[Monto mensual por plaza jornada]] -> 1933076.34
B39: 3 | C39: 32 | D39: 31 | E39: LICENCIATURA UNIVERSITARIA | F39: 1 | G39: 1540 | H39: 5 | I39: 0CF02105 | J39: COORDINADOR EJECUTIVO | K39: A | L39: 21 | M39: 1 | N39: P | O39: 6414.54 | P39: =VLOOKUP(Tabla15[[#This Row],[ Categoría]],[2]Hoja2!$B$5:$V$31,16,FALSE) -> 0 | Q39: 10 | R39: 0 | S39: =+Tabla15[[#This Row],[Número de Plazas Jornada]]*Tabla15[[#This Row],[Monto mensual por plaza jornada]] -> 64145.4
B40: 3 | C40: 32 | D40: 31 | E40: LICENCIATURA UNIVERSITARIA | F40: 1 | G40: 1540 | H40: 5 | I40: 0CF01601 | J40: JEFE DE UNIDAD | K40: A | L40: 22 | M40: 1 | N40: P | O40: 6828.12 | P40: =VLOOKUP(Tabla15[[#This Row],[ Categoría]],[2]Hoja2!$B$5:$V$31,16,FALSE) -> 0 | Q40: 6 | R40: 0 | S40: =+Tabla15[[#This Row],[Número de Plazas Jornada]]*Tabla15[[#This Row],[Monto mensual por plaza jornada]] -> 40968.72
B41: 3 | C41: 32 | D41: 31 | E41: LICENCIATURA UNIVERSITARIA | F41: 1 | G41: 1540 | H41: 5 | I41: 0CF11102 | J41: DIRECTOR DE CENTRO | K41: A | L41: 24 | M41: 1 | N41: P | O41: 9588.44 | P41: =VLOOKUP(Tabla15[[#This Row],[ Categoría]],[2]Hoja2!$B$5:$V$31,16,FALSE) -> 0 | Q41: 1 | R41: 0 | S41: =+Tabla15[[#This Row],[Número de Plazas Jornada]]*Tabla15[[#This Row],[Monto mensual por plaza jornada]] -> 9588.44
B42: 3 | C42: 32 | D42: 31 | E42: LICENCIATURA UNIVERSITARIA | F42: 1 | G42: 1540 | H42: 5 | I42: 0CF02100 | J42: SUBCOORDINADOR | K42: A | L42: 25 | M42: 1 | N42: P | O42: 7497.02 | P42: =VLOOKUP(Tabla15[[#This Row],[ Categoría]],[2]Hoja2!$B$5:$V$31,16,FALSE) -> 0 | Q42: 3 | R42: 0 | S42: =+Tabla15[[#This Row],[Número de Plazas Jornada]]*Tabla15[[#This Row],[Monto mensual por plaza jornada]] -> 22491.06
B43: 3 | C43: 32 | D43: 31 | E43: LICENCIATURA UNIVERSITARIA | F43: 1 | G43: 1540 | H43: 5 | I43: 0CF02104 | J43: DIRECTOR DE PLANTEL "D" Y "E" | K43: A | L43: 26 | M43: 1 | N43: P | O43: 7510.92 | P43: =VLOOKUP(Tabla15[[#This Row],[ Categoría]],[2]Hoja2!$B$5:$V$31,16,FALSE) -> 0 | Q43: 5 | R43: 0 | S43: =+Tabla15[[#This Row],[Número de Plazas Jornada]]*Tabla15[[#This Row],[Monto mensual por plaza jornada]] -> 37554.6
B44: 3 | C44: 32 | D44: 31 | E44: LICENCIATURA UNIVERSITARIA | F44: 1 | G44: 1540 | H44: 5 | I44: 0CF02103 | J44: DIRECTOR DE PLANTEL "B" Y "C" | K44: A | L44: 27 | M44: 1 | N44: P | O44: 7920 | P44: =VLOOKUP(Tabla15[[#This Row],[ Categoría]],[2]Hoja2!$B$5:$V$31,16,FALSE) -> 0 | Q44: 8 | R44: 0 | S44: =+Tabla15[[#This Row],[Número de Plazas Jornada]]*Tabla15[[#This Row],[Monto mensual por plaza jornada]] -> 63360
B45: 3 | C45: 32 | D45: 31 | E45: LICENCIATURA UNIVERSITARIA | F45: 1 | G45: 1540 | H45: 5 | I45: 0CF02102 | J45: DIRECTOR DE PLANTEL "A" | K45: A | L45: 28 | M45: 1 | N45: P | O45: 8839.02 | P45: =VLOOKUP(Tabla15[[#This Row],[ Categoría]],[2]Hoja2!$B$5:$V$31,16,FALSE) -> 0 | Q45: 1 | R45: 0 | S45: =+Tabla15[[#This Row],[Número de Plazas Jornada]]*Tabla15[[#This Row],[Monto mensual por plaza jornada]] -> 8839.02
B46: 3 | C46: 32 | D46: 31 | E46: LICENCIATURA UNIVERSITARIA | F46: 1 | G46: 1540 | H46: 5 | I46: 0CF11100 | J46: REPRESENTANTE | K46: A | L46: 30 | M46: 1 | N46: P | O46: 16141.22 | P46: =VLOOKUP(Tabla15[[#This Row],[ Categoría]],[2]Hoja2!$B$5:$V$31,16,FALSE) -> 0 | Q46: 1 | R46: 0 | S46: =+Tabla15[[#This Row],[Número de Plazas Jornada]]*Tabla15[[#This Row],[Monto mensual por plaza jornada]] -> 16141.22
N48: Total Jornada: | O48: =SUBTOTAL(109,Tabla15[Monto mensual por plaza jornada]) -> 236072.72 | Q48: Total Autorizado: | S48: =SUBTOTAL(109,Tabla15[Monto total autorizado]) -> 9347234.55
N49: Total HSM | P49: =SUM(P17:P48) -> 1565.99
B51: Fuente : Información proporcionada por las Entidades Federativas

Sheet II D) 7 2
B11: Formato: Catálogo de Categorías y Tabuladores | P11: Entidad Federativa: | Q11: GUANAJUATO
B12: Fondo de Aportaciones para la Educación Tecnológica y de Adultos/Colegio Nacional de Educación Profesional Técnica (FAETA/CONALEP) | Q12: 1er. TRIMESTRE 2019
B15: Identificador origen presupuestal de la plaza | C15: Clave de categoría | D15: Descripción de la categoría | E15: Tipo de contratación | F15: Tipo de categoría | G15: Clave de concepto de pago | H15: Clave de nivel de puesto | I15: Clave de nivel de sueldo | J15: Sueldo asignado por zona económica | O15: Datos adicionales de horas | R15: Fecha de actualización
J16: Inicio de vigencia del sueldo | K16: Fin de vigencia del sueldo | L16: Monto Mensual Jornada ó de HSM Zona A | M16: Monto Mensual Jornada ó de HSM Zona B | N16: Monto Mensual Jornada ó de HSM Zona C | O16: Horas de compatibilidad | P16: Horas de servicio (HSM) | Q16: Horas de docencia
B18: Identificador origen presupuestal de la plaza | C18: Clave de categoría | D18: Descripción de la categoría | E18: Tipo de contratación | F18: Tipo de categoría | G18: Clave de concepto de pago | H18: Clave de nivel de puesto | I18: Clave de nivel de sueldo | J18: Inicio de vigencia del sueldo | K18: Fin de vigencia del sueldo | L18: Monto Mensual Jornada ó de HSM Zona A | M18: Monto Mensual Jornada ó de HSM Zona B | N18: Monto Mensual Jornada ó de HSM Zona C | O18: Horas de compatibilidad | P18: Horas de servicio (HSM) | Q18: Horas de docencia | R18: Fecha de actualización
B19: 1 | C19: 0CF02105 | D19: COORDINADOR EJECUTIVO II | E19: P | F19: 5 | G19: 1003 | H19: 21 | I19: 21 | J19: 201803 | K19: 999999 | L19: 6414.54 | M19: 0 | N19: 0 | O19: 8 | P19: 0 | Q19: 00.0 | R19: 20180916
B20: 1 | C20: 0CF01601 | D20: JEFE DE UNIDAD | E20: P | F20: 5 | G20: 1003 | H20: 22 | I20: 22 | J20: 201803 | K20: 999999 | L20: 6828.12 | M20: 0 | N20: 0 | O20: 8 | P20: 0 | Q20: 00.0 | R20: 20180916
B21: 1 | C21: 0CF11102 | D21: DIRECTOR DE CENTRO | E21: P | F21: 5 | G21: 1003 | H21: 24 | I21: 24 | J21: 201803 | K21: 999999 | L21: 9588.44 | M21: 0 | N21: 0 | O21: 8 | P21: 0 | Q21: 00.0 | R21: 20180916
B22: 1 | C22: 0CF02100 | D22: SUBCOORDINADOR | E22: P | F22: 5 | G22: 1003 | H22: 25 | I22: 25 | J22: 201803 | K22: 999999 | L22: 7497.02 | M22: 0 | N22: 0 | O22: 8 | P22: 0 | Q22: 00.0 | R22: 20180916
B23: 1 | C23: 0CF02104 | D23: DIRECTOR DE PLANTEL "D" Y "E" II | E23: P | F23: 5 | G23: 1003 | H23: 26 | I23: 26 | J23: 201803 | K23: 999999 | L23: 7510.92 | M23: 0 | N23: 0 | O23: 8 | P23: 0 | Q23: 00.0 | R23: 20180916
B24: 1 | C24: 0CF02103 | D24: DIRECTOR DE PLANTEL "B" Y "C" II | E24: P | F24: 5 | G24: 1003 | H24: 27 | I24: 27 | J24: 201803 | K24: 999999 | L24: 7920 | M24: 0 | N24: 0 | O24: 8 | P24: 0 | Q24: 00.0 | R24: 20180916
B25: 1 | C25: 0CF02102 | D25: DIRECTOR DE PLANTEL "A" II | E25: P | F25: 5 | G25: 1003 | H25: 28 | I25: 28 | J25: 201803 | K25: 999999 | L25: 8839.02 | M25: 0 | N25: 0 | O25: 8 | P25: 0 | Q25: 00.0 | R25: 20180916
B26: 1 | C26: 0CF11100 | D26: REPRESENTANTE | E26: P | F26: 5 | G26: 1003 | H26: 30 | I26: 30 | J26: 201803 | K26: 999999 | L26: 16141.22 | M26: 0 | N26: 0 | O26: 8 | P26: 0 | Q26: 00.0 | R26: 20180916
B27: 4 | C27: 000000TA | D27: DOCENTE TIPO 'TA' | E27: H | F27: 1 | G27: 1001 | H27: 000000D4 | I27: 4 | J27: 201803 | K27: 999999 | L27: 277.01 | M27: 0 | N27: 0 | O27: 0 | P27: 0 | Q27: 20.0 | R27: 20180916
B28: 4 | C28: 000000PA | D28: DOCENTE TIPO 'PA' | E28: H | F28: 1 | G28: 1001 | H28: 000000D3 | I28: 3 | J28: 201803 | K28: 999999 | L28: 376.79 | M28: 0 | N28: 0 | O28: 0 | P28: 0 | Q28: 20.0 | R28: 20180916
B29: 4 | C29: 000000PB | D29: DOCENTE TIPO 'PB' | E29: H | F29: 1 | G29: 1001 | H29: 000000D2 | I29: 2 | J29: 201803 | K29: 999999 | L29: 423.47 | M29: 0 | N29: 0 | O29: 0 | P29: 0 | Q29: 20.0 | R29: 20180916
B30: 4 | C30: 000000PC | D30: DOCENTE TIPO 'PC' | E30: H | F30: 1 | G30: 1001 | H30: 000000D1 | I30: 1 | J30: 201803 | K30: 999999 | L30: 488.72 | M30: 0 | N30: 0 | O30: 0 | P30: 0 | Q30: 20.0 | R30: 20180916
B31: 1 | C31: 00S01201 | D31: ASISTENTE DE SERVICIOS BÁSICOS | E31: P | F31: 2 | G31: 1003 | H31: 2 | I31: 2 | J31: 201803 | K31: 999999 | L31: 6630 | M31: 0 | N31: 0 | O31: 8 | P31: 0 | Q31: 00.0 | R31: 20180916
B32: 1 | C32: 0CF18201 | D32: AUXILIAR DE SEGURIDAD | E32: P | F32: 2 | G32: 1003 | H32: 2 | I32: 2 | J32: 201803 | K32: 999999 | L32: 6630 | M32: 0 | N32: 0 | O32: 8 | P32: 0 | Q32: 00.0 | R32: 20180916
B33: 1 | C33: 0CF18202 | D33: OPERADOR DE SERVICIOS BASICOS | E33: P | F33: 2 | G33: 1003 | H33: 2 | I33: 2 | J33: 201803 | K33: 999999 | L33: 6630 | M33: 0 | N33: 0 | O33: 8 | P33: 0 | Q33: 00.0 | R33: 20180916
B34: 1 | C34: 00S01202 | D34: AUXILIAR DE SERVICIOS GENERALES | E34: P | F34: 2 | G34: 1003 | H34: 4 | I34: 4 | J34: 201803 | K34: 999999 | L34: 7224.98 | M34: 0 | N34: 0 | O34: 8 | P34: 0 | Q34: 00.0 | R34: 20180916
B35: 1 | C35: 0CF34202 | D35: PROMOTOR CULTURAL Y DEPORTIVO | E35: P | F35: 2 | G35: 1003 | H35: 5 | I35: 5 | J35: 201803 | K35: 999999 | L35: 7524.72 | M35: 0 | N35: 0 | O35: 8 | P35: 0 | Q35: 00.0 | R35: 20180916
B36: 1 | C36: 00A03202 | D36: SECRETARIA "C" | E36: P | F36: 2 | G36: 1003 | H36: 5 | I36: 5 | J36: 201803 | K36: 999999 | L36: 7524.72 | M36: 0 | N36: 0 | O36: 8 | P36: 0 | Q36: 00.0 | R36: 20180916
B37: 1 | C37: 0CF34201 | D37: TECNICO BIBILIOTECARIO | E37: P | F37: 2 | G37: 1003 | H37: 6 | I37: 6 | J37: 201803 | K37: 999999 | L37: 7827.18 | M37: 0 | N37: 0 | O37: 8 | P37: 0 | Q37: 00.0 | R37: 20180916
B38: 1 | C38: 0ED01201 | D38: TÉCNICO EN MATERIALES DIDÁCTICOS | E38: P | F38: 2 | G38: 1003 | H38: 6 | I38: 6 | J38: 201803 | K38: 999999 | L38: 7827.18 | M38: 0 | N38: 0 | O38: 8 | P38: 0 | Q38: 00.0 | R38: 20180916
B39: 1 | C39: 0CF19201 | D39: TUTOR ESCOLAR | E39: P | F39: 2 | G39: 1003 | H39: 6 | I39: 6 | J39: 201803 | K39: 999999 | L39: 7827.18 | M39: 0 | N39: 0 | O39: 8 | P39: 0 | Q39: 00.0 | R39: 20180916
B40: 1 | C40: 0CF21202 | D40: ASISTENTE ESCOLAR Y SOCIAL | E40: P | F40: 2 | G40: 1003 | H40: 7 | I40: 7 | J40: 201803 | K40: 999999 | L40: 8132.88 | M40: 0 | N40: 0 | O40: 8 | P40: 0 | Q40: 00.0 | R40: 20180916
B41: 1 | C41: 0CF04201 | D41: SECRETARIA "B" | E41: P | F41: 2 | G41: 1003 | H41: 7 | I41: 7 | J41: 201803 | K41: 999999 | L41: 8132.88 | M41: 0 | N41: 0 | O41: 8 | P41: 0 | Q41: 00.0 | R41: 20180916
B42: 1 | C42: 00T08201 | D42: TECNICO EN GRAFICACION | E42: P | F42: 2 | G42: 1003 | H42: 8 | I42: 8 | J42: 201803 | K42: 999999 | L42: 8439.86 | M42: 0 | N42: 0 | O42: 8 | P42: 0 | Q42: 00.0 | R42: 20180916
B43: 1 | C43: 0CF33202 | D43: TECNICO EN CONTABILIDAD | E43: P | F43: 2 | G43: 1003 | H43: 9 | I43: 9 | J43: 201803 | K43: 999999 | L43: 8751.62 | M43: 0 | N43: 0 | O43: 8 | P43: 0 | Q43: 00.0 | R43: 20180916
B44: 1 | C44: 0CF33203 | D44: TECNICO FINANCIERO | E44: P | F44: 2 | G44: 1003 | H44: 9 | I44: 9 | J44: 201803 | K44: 999999 | L44: 8751.62 | M44: 0 | N44: 0 | O44: 8 | P44: 0 | Q44: 00.0 | R44: 20180916
B45: 1 | C45: 0CF18203 | D45: SUPERVISOR DE MANTENIMIENTO | E45: P | F45: 2 | G45: 1003 | H45: 9 | I45: 9 | J45: 201803 | K45: 999999 | L45: 8751.62 | M45: 0 | N45: 0 | O45: 8 | P45: 0 | Q45: 00.0 | R45: 20180916
B46: 1 | C46: 00A01801 | D46: ADMINISTRATIVO TECNICO ESPECIALISTA | E46: P | F46: 2 | G46: 1003 | H46: 11 | I46: 11 | J46: 201803 | K46: 999999 | L46: 9383.96 | M46: 0 | N46: 0 | O46: 8 | P46: 0 | Q46: 00.0 | R46: 20180916
B47: 1 | C47: 0CF33204 | D47: SUBJEFE TECNICO ESPECIALISTA | E47: P | F47: 2 | G47: 1003 | H47: 13 | I47: 13 | J47: 201803 | K47: 999999 | L47: 15477.9 | M47: 0 | N47: 0 | O47: 8 | P47: 0 | Q47: 00.0 | R47: 20180916
B48: 1 | C48: 0CF33206 | D48: JEFE DE PROYECTO | E48: P | F48: 2 | G48: 1003 | H48: 15 | I48: 15 | J48: 201803 | K48: 999999 | L48: 23865.14 | M48: 0 | N48: 0 | O48: 8 | P48: 0 | Q48: 00.0 | R48: 20180916
K50: Total Zona A: | L50: =SUBTOTAL(109,Tabla16[Monto Mensual Jornada ó de HSM Zona A]) -> 237638.71
L51: Total Zona B: | M51: =SUM(M19:M50) -> 0
M52: Total Zona C: | N52: =SUM(N19:N51) -> 0
B54: Fuente : Información proporcionada por las Entidades Federativas

Sheet II D) 7 3
B8: Formato: Catálogo de Percepciones y Deducciones | I8: Entidad Federativa: | J8: GUANAJUATO
B9: Fondo de Aportaciones para la Educación Tecnológica y de Adultos/Colegio Nacional de Educación Profesional Técnica (FAETA/CONALEP) | J9: 1er. TRIMESTRE 2019
B12: Identificador origen presupuestal de la plaza | C12: Tipo de concepto de pago | D12: Origen de financiamiento del concepto de percepciones. | E12: Porcentaje de participación federal por fuente de recursos | F12: Grupo al que pertenece concepto de pago (Percepción y/o Deducción) | G12: Clave de concepto de pago | H12: Descripción del concepto de pago | I12: Partida presupuestal | J12: Fecha del | K12: Fecha al
B14: Identificador origen presupuestal de la plaza | C14: Tipo de concepto de pago | D14: Origen de financiamiento del concepto de percepciones. | E14: Porcentaje de participación federal por fuente de recursos | F14: Grupo al que pertenece concepto de pago (Percepción y/o Deducción) | G14: Clave de concepto de pago | H14: Descripción del concepto de pago | I14: Partida presupuestal | J14: Fecha del | K14: Fecha al
B15: 1 | C15: P | D15: F | E15: 0 | F15: P3 | G15: 1003 | H15: SALARIO BASE | I15: 11311 | J15: 20190101 | K15: 99999999
B16: 1 | C16: P | D16: F | E16: 0 | F16: P3 | G16: 1003 | H16: SALARIO BASE E. REM | I16: 11311 | J16: 20190101 | K16: 99999999
B17: 1 | C17: P | D17: F | E17: 0 | F17: P3 | G17: 1003 | H17: DIAS NO TRABAJADOS ADVO | I17: 11311 | J17: 20190101 | K17: 99999999
B18: 1 | C18: P | D18: F | E18: 0 | F18: P3 | G18: 1003 | H18: VACACIONES FED FIN | I18: 11311 | J18: 20190101 | K18: 99999999
B19: 1 | C19: P | D19: F | E19: 0 | F19: P3 | G19: 1602 | H19: DESARROLLO Y CAPACITACION | I19: 17102 | J19: 20190101 | K19: 99999999
B20: 1 | C20: P | D20: F | E20: 0 | F20: P3 | G20: 2517 | H20: ESTIMULO PRODUCTIVIDAD | I20: 17102 | J20: 20190101 | K20: 99999999
B21: 1 | C21: P | D21: F | E21: 0 | F21: P3 | G21: 2518 | H21: COMPENSACION GARANTIZADA | I21: 13422 | J21: 20190101 | K21: 99999999
B22: 1 | C22: P | D22: F | E22: 0 | F22: P3 | G22: 2553 | H22: DIAS ECONOMICOS | I22: 15409 | J22: 20190101 | K22: 99999999
B23: 1 | C23: P | D23: F | E23: 0 | F23: P3 | G23: 2553 | H23: DIAS ECONOMICOS FIN | I23: 15409 | J23: 20190101 | K23: 99999999
B24: 1 | C24: P | D24: F | E24: 0 | F24: P3 | G24: 2565 | H24: AJUSTE SALARIAL | I24: 13425 | J24: 20190101 | K24: 99999999
B25: 1 | C25: P | D25: F | E25: 0 | F25: P3 | G25: 2565 | H25: AJUSTE SALARIAL FIN | I25: 13425 | J25: 20190101 | K25: 99999999
B26: 1 | C26: P | D26: F | E26: 0 | F26: P3 | G26: 2567 | H26: DIAS DE DESCANSO | I26: 15413 | J26: 20190101 | K26: 99999999
B27: 1 | C27: P | D27: F | E27: 0 | F27: P3 | G27: 2567 | H27: DIAS DE DESCANSO FIN | I27: 15413 | J27: 20190101 | K27: 99999999
B28: 1 | C28: P | D28: F | E28: 0 | F28: P3 | G28: 2600 | H28: PUNTUALIDAD Y ASISTENCIA | I28: 17111 | J28: 20190101 | K28: 99999999
B29: 1 | C29: P | D29: F | E29: 0 | F29: P3 | G29: 2600 | H29: PUNTUALIDAD Y ASIS. FIN | I29: 17111 | J29: 20190101 | K29: 99999999
B30: 1 | C30: P | D30: F | E30: 0 | F30: P3 | G30: 2615 | H30: CANASTILLA MATERNAL | I30: 15410 | J30: 20190101 | K30: 99999999
B31: 1 | C31: P | D31: F | E31: 0 | F31: P3 | G31: 2655 | H31: APARATOS ORTOPEDICOS. | I31: 17102 | J31: 20190101 | K31: 99999999
B32: 1 | C32: P | D32: F | E32: 0 | F32: P3 | G32: 2680 | H32: ANTEOJOS O LENTES. | I32: 17102 | J32: 20190101 | K32: 99999999
B33: 1 | C33: P | D33: F | E33: 0 | F33: P3 | G33: 2703 | H33: QUINQUENIO F | I33: 13101 | J33: 20190101 | K33: 99999999
B34: 1 | C34: P | D34: F | E34: 0 | F34: P3 | G34: 2754 | H34: GUARDERIA | I34: 17102 | J34: 20190101 | K34: 99999999
B35: 1 | C35: P | D35: F | E35: 0 | F35: P3 | G35: 2766 | H35: PRIMA ANTIGÜEDAD | I35: 13101 | J35: 20190101 | K35: 99999999
B36: 1 | C36: P | D36: F | E36: 0 | F36: P3 | G36: 2766 | H36: PRIMA AÑOS DE SERVICIO G FIN | I36: 13101 | J36: 20190101 | K36: 99999999
B37: 1 | C37: P | D37: F | E37: 0 | F37: P3 | G37: 2800 | H37: DESPENSA | I37: 15907 | J37: 20190101 | K37: 99999999
B38: 1 | C38: P | D38: F | E38: 0 | F38: P3 | G38: 2800 | H38: DESPENSA MANDOS MEDIOS | I38: 15907 | J38: 20190101 | K38: 99999999
B39: 1 | C39: P | D39: F | E39: 0 | F39: P3 | G39: 2805 | H39: PREVISION MULTIPLE | I39: 15906 | J39: 20190101 | K39: 99999999
B40: 1 | C40: P | D40: F | E40: 0 | F40: P3 | G40: 2810 | H40: AYUDA PARA TITULACION | I40: 17102 | J40: 20190101 | K40: 99999999
B41: 1 | C41: P | D41: F | E41: 0 | F41: P3 | G41: 2815 | H41: GRATIFICACIÓN JUBILACIÓN GR | I41: 15207 | J41: 20190101 | K41: 99999999
B42: 1 | C42: P | D42: F | E42: 0 | F42: P3 | G42: 2850 | H42: CONDICIONES INSALUBRES | I42: 17102 | J42: 20190101 | K42: 99999999
B43: 4 | C43: P | D43: F | E43: 0 | F43: P3 | G43: 3624 | H43: SALARIO FIN | I43: 11311 | J43: 20190101 | K43: 99999999
B44: 1 | C44: P | D44: F | E44: 0 | F44: P3 | G44: 3701 | H44: PAGO POR DEFUNCION | I44: 17102 | J44: 20190101 | K44: 99999999
B45: 1 | C45: D | D45: F | E45: 0 | F45: D1 | G45: 0038 | H45: CREDITO INFONACOT | J45: 20190101 | K45: 99999999
B46: 1 | C46: D | D46: F | E46: 0 | F46: D1 | G46: 1927 | H46: SEG. DAÑOS FOVISSSTE | J46: 20190101 | K46: 99999999
B47: 4 | C47: D | D47: F | E47: 0 | F47: D1 | G47: 2014 | H47: PRESTAMO A CORTO PLAZO | J47: 20190101 | K47: 99999999
B48: 1 | C48: D | D48: F | E48: 0 | F48: D1 | G48: 2735 | H48: SEGURO DE VIDA | J48: 20190101 | K48: 99999999
B49: 1 | C49: D | D49: F | E49: 0 | F49: D1 | G49: 2735 | H49: SEGURO DE VIDA. | J49: 20190101 | K49: 99999999
B50: 1 | C50: D | D50: F | E50: 0 | F50: D1 | G50: 2737 | H50: SEG.IND. METLIFE DE MEX. | J50: 20190101 | K50: 99999999
B51: 1 | C51: D | D51: F | E51: 0 | F51: D1 | G51: 2920 | H51: SEGURO DE RETIRO | J51: 20190101 | K51: 99999999
B52: 1 | C52: D | D52: F | E52: 0 | F52: D1 | G52: 2920 | H52: SEGURO DE RETIRO. | J52: 20190101 | K52: 99999999
B53: 1 | C53: D | D53: F | E53: 0 | F53: D1 | G53: 2950 | H53: OTRAS DEDUCCIONES | J53: 20190101 | K53: 99999999
B54: 4 | C54: D | D54: F | E54: 0 | F54: D1 | G54: 2950 | H54: OTRAS DEDUCCIONES FIN | J54: 20190101 | K54: 99999999
B55: 1 | C55: D | D55: F | E55: 0 | F55: D1 | G55: 2960 | H55: FONDO DE AHORRO MM | J55: 20190101 | K55: 99999999
B56: 1 | C56: D | D56: F | E56: 0 | F56: D1 | G56: 5045 | H56: ISR ANUAL 2015 | J56: 20190101 | K56: 99999999
B57: 1 | C57: D | D57: E | E57: 0 | F57: D1 | G57: 5045 | H57: I.S.P.T. A RETENER. | J57: 20190101 | K57: 99999999
B58: 1 | C58: D | D58: F | E58: 0 | F58: D1 | G58: 6250 | H58: SEG.SALUD T.ACTIVO | J58: 20190101 | K58: 99999999
B59: 1 | C59: D | D59: F | E59: 0 | F59: D1 | G59: 6251 | H59: SEG.SALUD T.PENSIONADO | J59: 20190101 | K59: 99999999
B60: 1 | C60: D | D60: F | E60: 0 | F60: D1 | G60: 6252 | H60: SEG.INVALIDEZ Y VIDA | J60: 20190101 | K60: 99999999
B61: 1 | C61: D | D61: F | E61: 0 | F61: D1 | G61: 6253 | H61: S.SOCIALES Y CULT. | J61: 20190101 | K61: 99999999
B62: 1 | C62: D | D62: F | E62: 0 | F62: D1 | G62: 6254 | H62: S.RET.CESANTIA AVZDA. | J62: 20190101 | K62: 99999999
B63: 1 | C63: D | D63: F | E63: 0 | F63: D1 | G63: 8095 | H63: CRED. HIP. CRECIENTE | J63: 20190101 | K63: 99999999
B64: 1 | C64: D | D64: F | E64: 0 | F64: D1 | G64: 8135 | H64: PRESTAMOS ISSSTE | J64: 20190101 | K64: 99999999
B65: 1 | C65: D | D65: F | E65: 0 | F65: D1 | G65: 8523 | H65: CUOTA SINDICAL LOCAL | J65: 20190101 | K65: 99999999
B66: 4 | C66: P | D66: F | E66: 0 | F66: P3 | G66: 1001 | H66: AJU. SAL. BASE DOC.E TA F | I66: 11302 | J66: 20190101 | K66: 99999999
B67: 4 | C67: P | D67: F | E67: 0 | F67: P3 | G67: 1001 | H67: AJUS. SAL. BASE DOC. | I67: 11302 | J67: 20190101 | K67: 99999999
B68: 4 | C68: P | D68: F | E68: 0 | F68: P3 | G68: 1001 | H68: SAL. BASE DOC. | I68: 11302 | J68: 20190101 | K68: 99999999
B69: 4 | C69: P | D69: F | E69: 0 | F69: P3 | G69: 1001 | H69: SAL. BASE DOC. E PA REM | I69: 11302 | J69: 20190101 | K69: 99999999
B70: 4 | C70: P | D70: F | E70: 0 | F70: P3 | G70: 1001 | H70: SAL. BASE DOC. E PB REM | I70: 11302 | J70: 20190101 | K70: 99999999
B71: 4 | C71: P | D71: F | E71: 0 | F71: P3 | G71: 1001 | H71: SAL. BASE DOC. E REM | I71: 11302 | J71: 20190101 | K71: 99999999
B72: 4 | C72: P | D72: F | E72: 0 | F72: P3 | G72: 1001 | H72: SAL. BASE DOC. E TA REM | I72: 11302 | J72: 20190101 | K72: 99999999
B73: 4 | C73: P | D73: F | E73: 0 | F73: P3 | G73: 1001 | H73: SAL. BASE DOC. F PA | I73: 11302 | J73: 20190101 | K73: 99999999
B74: 4 | C74: P | D74: F | E74: 0 | F74: P3 | G74: 1001 | H74: SAL. BASE DOC. F PB | I74: 11302 | J74: 20190101 | K74: 99999999
B75: 4 | C75: P | D75: F | E75: 0 | F75: P3 | G75: 1001 | H75: SAL. BASE DOC. F TA | I75: 11302 | J75: 20190101 | K75: 99999999
B76: 4 | C76: P | D76: F | E76: 0 | F76: P3 | G76: 1001 | H76: SALARIO BASE DOC. | I76: 11302 | J76: 20190101 | K76: 99999999
B77: 4 | C77: P | D77: F | E77: 0 | F77: P3 | G77: 1001 | H77: SALARIO BASE DOC. E REM | I77: 11302 | J77: 20190101 | K77: 99999999
B78: 4 | C78: P | D78: F | E78: 0 | F78: P3 | G78: 1005 | H78: ESTIM. DESEMP. DOC | I78: 17104 | J78: 20190101 | K78: 99999999
B79: 1 | C79: P | D79: F | E79: 0 | F79: P3 | G79: 1005 | H79: ESTIM. DESEMP. DOCENTE FIN | I79: 17104 | J79: 20190101 | K79: 99999999
B80: 4 | C80: P | D80: F | E80: 0 | F80: P3 | G80: 2008 | H80: HORAS NO IMPAR. F TA | I80: 11302 | J80: 20190101 | K80: 99999999
B81: 4 | C81: P | D81: F | E81: 0 | F81: P3 | G81: 2008 | H81: HORAS NO IMPARTIDAS F | I81: 11302 | J81: 20190101 | K81: 99999999
B82: 4 | C82: P | D82: F | E82: 0 | F82: P3 | G82: 2011 | H82: DESC. POR MIN. RET. F | I82: 11302 | J82: 20190101 | K82: 99999999
B83: 1 | C83: P | D83: F | E83: 0 | F83: P3 | G83: 2766 | H83: PRIMA ANTIGÜEDAD DOC FIN | I83: 13109 | J83: 20190101 | K83: 99999999
B84: 1 | C84: P | D84: F | E84: 0 | F84: P3 | G84: 3624 | H84: RETRO SALARIO FIN | I84: 11302 | J84: 20190101 | K84: 99999999
B85: 4 | C85: D | D85: F | E85: 0 | F85: D1 | G85: 2017 | H85: CUOTA SINDICAL TD | J85: 20190101 | K85: 99999999
B86: 4 | C86: D | D86: F | E86: 0 | F86: D1 | G86: 8523 | H86: CUOTA SINDICAL LOCAL DOC | J86: 20190101 | K86: 99999999
B87: 4 | C87: P | D87: F | E87: 0 | F87: P3 | G87: 2008 | H87: HORAS NO IMPAR. F PA | I87: 11302 | J87: 20190101 | K87: 99999999
B88: 1 | C88: P | D88: F | E88: 0 | F88: P3 | G88: 3613 | H88: AGUINALDO FED FIN | I88: 13202 | J88: 20190101 | K88: 99999999
B89: 1 | C89: P | D89: F | E89: 0 | F89: P3 | G89: 2766 | H89: PRIMA AÑOS DE SERVICIO EX FIN | I89: 13101 | J89: 20190101 | K89: 99999999
B90: 1 | C90: P | D90: F | E90: 0 | F90: P3 | G90: 2815 | H90: GRATIFICACIÓN JUBILACIÓN EX | I90: 15207 | J90: 20190101 | K90: 99999999
B91: 1 | C91: P | D91: F | E91: 0 | F91: P3 | G91: 2815 | H91: GRATIFICA. RENUNCIA EX FIN | I91: 15207 | J91: 20190101 | K91: 99999999
B92: 1 | C92: P | D92: F | E92: 0 | F92: P3 | G92: 3613 | H92: AGUINALDO FED GR FIN | I92: 13202 | J92: 20190101 | K92: 99999999
B93: 1 | C93: P | D93: F | E93: 0 | F93: P3 | G93: 3623 | H93: PRIMA VACACIONAL GR FIN | I93: 13201 | J93: 20190101 | K93: 99999999
B94: 1 | C94: P | D94: F | E94: 0 | F94: P3 | G94: 1003 | H94: VACACIONES FIN FED | I94: 11311 | J94: 20190101 | K94: 99999999
B95: 1 | C95: P | D95: F | E95: 0 | F95: P3 | G95: 3623 | H95: PRIMA VACACIONAL FIN FED | I95: 13201 | J95: 20190101 | K95: 99999999
B96: 1 | C96: D | D96: F | E96: 0 | F96: D1 | G96: 3701 | H96: AJUSTE PAGO POR DEFUNCION | J96: 20190101 | K96: 99999999
B97: 1 | C97: P | D97: F | E97: 0 | F97: P3 | G97: 3613 | H97: AGUINALDO FED EX FIN | I97: 13202 | J97: 20190101 | K97: 99999999
B98: 4 | C98: P | D98: F | E98: 0 | F98: P3 | G98: 2008 | H98: HORAS NO IMPAR. F PC | I98: 11302 | J98: 20190101 | K98: 99999999
B99: 4 | C99: P | D99: F | E99: 0 | F99: P3 | G99: 2008 | H99: HORAS NO IMPAR. F PB | I99: 11302 | J99: 20190101 | K99: 99999999
B100: 1 | C100: D | D100: I | E100: 0 | F100: D1 | G100: 2657 | H100: ANT. VALES DE DESPENSA ELECT. MM | J100: 20190101 | K100: 99999999
B101: 1 | C101: P | D101: F | E101: 0 | F101: P3 | G101: 3623 | H101: PRIMA VACACIONAL EX FIN | I101: 13201 | J101: 20190101 | K101: 99999999
B102: 1 | C102: P | D102: F | E102: 0 | F102: P3 | G102: 2815 | H102: MES DE SALARIO POR INVALIDEZ | I102: 15207 | J102: 20190101 | K102: 99999999
B103: Fuente : Información proporcionada por las Entidades Federativas

Sheet E)
B9: Formato: Trabajadores que Cobran con RFC / CURP con Formato Incorrecto | H9: GUANAJUATO
B10: Fondo de Aportaciones para la Educación Tecnológica y de Adultos/Colegio Nacional de Educación Profesional Técnica (FAETA/CONALEP) | H10: 1er. TRIMESTRE 2019
B13: Entidad Federativa | C13: RFC | D13: CURP | E13: NOMBRE TRABAJADOR | F13: Motivo
F14: Sin RFC o erroneo | G14: RFC Sin Homoclave | H14: Sin CURP o Erronea
B17: Entidad Federativa | C17: RFC | D17: CURP | E17: NOMBRE TRABAJADOR | F17: Sin RFC o erroneo | G17: RFC Sin Homoclave | H17: Sin CURP o Erronea
B26: Total Personas : | E26: Total Sin RFC o Erroneo:
F27: Total RFC Sin Homoclave:
G28: Total Sin CURP o Erroneo:
B29: Fuente : Información proporcionada por las Entidades Federativas

Sheet F) 1
B9: Formato: Trabajadores con Doble Asignación Salarial en Municipios no Colindantes Geográficamente | R9: GUANAJUATO
B10: Fondo de Aportaciones para la Educación Tecnológica y de Adultos/Colegio Nacional de Educación Profesional Técnica (FAETA/CONALEP) | R10: 1er TRIMESTRE 2019
B13: Entidad Federativa | C13: Municipio | D13: Localidad | E13: RFC | F13: CURP | G13: Nombre del Trabajador | H13: Clave integrada | I13: Clave Presupuestal | P13: Clave CT | Q13: Nombre CT | R13: Periodo en el CT
I14: Partida Presupuestal | J14: Código de Pago | K14: Clave de Unidad | L14: Clave de Sub Unidad | M14: Clave de Categoría | N14: Horas Semana Mes | O14: Número de Plaza | R14: Desde | S14: Hasta
B16: Entidad Federativa | C16: Municipio | D16: Localidad | E16: RFC | F16: CURP | G16: Nombre del Trabajador | H16: Clave integrada | I16: Partida Presupuestal | J16: Código de Pago | K16: Clave de Unidad | L16: Clave de Sub Unidad | M16: Clave de Categoría | N16: Horas semana mes | O16: Número de Plaza | P16: Clave CT | Q16: Nombre CT | R16: Periodo en el CT Desde | S16: Periodo en el CTH asta
B29: Total Personas : | M29: Total Plazas :
B32: Fuente : Información proporcionada por las Entidades Federativas
B33: Importante: Listar Sólo los Municipios no Colindantes

Sheet F) 2
B10: Formato: Trabajadores Ocupando Plazas que Superan el Número de Horas de Compatibilidad Autorizadas | R10: GUANAJUATO
B11: Fondo de Aportaciones para la Educación Tecnológica y de Adultos/Colegio Nacional de Educación Profesional Técnica (FAETA/CONALEP) | S11: 1er. TRIMESTRE 2019
B14: Entidad Federativa | C14: RFC | D14: CURP | E14: Nombre | F14: Clave integrada | G14: Clave Presupuestal | N14: CT | O14: Nombre CT | P14: Turno CT | Q14: Periodo | S14: Total de Horas en el CT | T14: Horas de compatibilidad de la categoría
G15: Partida Presupuestal | H15: Código de Pago | I15: Clave de Unidad | J15: Clave de Sub Unidad | K15: Clave de Categoría | L15: Horas Semana Mes | M15: Número de Plaza | Q15: Desde | R15: Hasta
B17: Entidad Federativa | C17: RFC | D17: CURP | E17: Nombre | F17: Clave integrada | G17: Partida Presupuestal | H17: Código de Pago | I17: Clave de Unidad | J17: Clave de Sub Unidad | K17: Clave de Categoría | L17: Horas semana mes | M17: Número de plaza | N17: CT | O17: Nombre CT | P17: Turno CT | Q17: Periodo Desde | R17: Periodo Hasta | S17: Total de Horas en el CT | T17: Horas de compatibilidad de la categoría
B27: Total Personas : | K27: Total Plazas :
B30: Fuente : Información proporcionada por las Entidades Federativas

Sheet G)
B10: Formato: Trabajadores Cuyo Salario Básico Supere los Ingresos Promedio de un Docente en la Categoría más Alta del Tabulador Salarial Correspondiente a Cada Entidad | S10: GUANAJUATO
B11: Fondo de Aportaciones para la Educación Tecnológica y de Adultos/Colegio Nacional de Educación Profesional Técnica (FAETA/CONALEP) | S11: 1er. TRIMESTRE 2019
B14: Entidad Federativa | C14: R.F.C. | D14: CURP | E14: Nombre | F14: Clave integrada | G14: Clave Presupuestal Integrada y Categoria aparte | N14: Clave CT Origen | O14: Nombre CT | P14: Periodo | R14: Monto de Remuneraciones Mensuales | S14: Monto de referencia | T14: Diferencia (R-S)
G15: Partida Presupuestal | H15: Código de Pago | I15: Clave de Unidad | J15: Clave de Sub Unidad | K15: Clave de Categoría | L15: Horas Semana Mes | M15: Número de Plaza | P15: Desde | Q15: Hasta
B17: Entidad Federativa | C17: R.F.C. | D17: CURP | E17: Nombre | F17: Clave integrada | G17: Partida Presupuestal | H17: Código de Pago | I17: Clave de Unidad | J17: Clave de Sub Unidad | K17: Clave de Categoría | L17: Horas Semana Mes | M17: No. de plaza | N17: CT | O17: Nombre CT | P17: Periodo Desde | Q17: Periodo Hasta | R17: Monto de Remuneraciones Mensuales | S17: Monto de referencia | T17: Diferencia (R-S)
B26: Total Personas : | O26: Total Remuneraciones Mensuales:
R28: Total Diferencia:
B30: Fuente : Información proporcionada por las Entidades Federativas

Sheet Listas (hidden)
B4: Elige un Fondo…
B5: Fondo de Aportaciones para la Educación Básica y Normal (FAEB)
B6: Fondo de Aportaciones para la Educación Tecnológica y de Adultos/Colegio Nacional de Educación Profesional Técnica (FAETA/CONALEP)
B7: Fondo de Aportaciones para la Educación Tecnológica y de Adultos/Instituto Nacional para la Educación de los Adultos (FAETA/INEA)
H10: Elige la Entidad Federativa…
B11: Elige el Periodo… | H11: AGUASCALIENTES
B12: 1er. Trimestre | H12: BAJA CALIFORNIA
B13: 2do. Trimestre | H13: BAJA CALIFORNIA SUR
B14: 3er. Trimestre | H14: CAMPECHE
B15: 4to. Trimestre | H15: COAHUILA
D16: Elige el Año… | H16: COLIMA
D17: 2013 | H17: CHIAPAS
D18: 2014 | H18: CHIHUAHUA
D19: 2015 | H19: DISTRITO FEDERAL
D20: 2016 | H20: DURANGO
D21: 2017 | H21: GUANAJUATO
D22: 2018 | H22: GUERRERO
H23: HIDALGO
H24: JALISCO
H25: MEXICO
H26: MICHOACAN
H27: MORELOS
H28: NAYARIT
H29: NUEVO LEON
H30: OAXACA
H31: PUEBLA
H32: QUERETARO
H33: QUINTANA ROO
H34: SAN LUIS
H35: SINALOA
H36: SONORA
H37: TABASCO
H38: TAMAULIPAS
H39: TLAXCALA
H40: VERACRUZ
H41: YUCATÁN
H42: ZACATECAS
